Body Name,Date Paid,Transaction Number,Amount,Supplier Name,Supplier Type,Expense Area,Cost Centre Description,Expense Type
Cambridgeshire County Council,25-Nov-16,21865951-14430701,-12011.04,Fevaca,Care Establishment,S&C,Placements - Social Care,Agency Placements - In Cambs
Cambridgeshire County Council,07-Nov-16,21806561-14324474,-8600,The Red Balloon,Care Establishment,S&C,Placements - Education,Independent School Placements
Cambridgeshire County Council,17-Nov-16,22072267-14400003,-6218,Buchan Healthcare Ltd,Care Establishment,5 - Commissioning - Mental Health & Supporting People,OP Blocks - Care Placements,Nursing Independent Sector
Cambridgeshire County Council,17-Nov-16,22072272-14400005,-6218,Buchan Healthcare Ltd,Care Establishment,5 - Commissioning - Mental Health & Supporting People,OP Blocks - Care Placements,Nursing Independent Sector
Cambridgeshire County Council,17-Nov-16,22072285-14400007,-6218,Buchan Healthcare Ltd,Care Establishment,5 - Commissioning - Mental Health & Supporting People,OP Blocks - Care Placements,Nursing Independent Sector
Cambridgeshire County Council,17-Nov-16,22072287-14400008,-6218,Buchan Healthcare Ltd,Care Establishment,5 - Commissioning - Mental Health & Supporting People,OP Blocks - Care Placements,Nursing Independent Sector
Cambridgeshire County Council,17-Nov-16,22072288-14400009,-6218,Buchan Healthcare Ltd,Care Establishment,5 - Commissioning - Mental Health & Supporting People,OP Blocks - Care Placements,Nursing Independent Sector
Cambridgeshire County Council,17-Nov-16,22071282-14400011,-6218,Buchan Healthcare Ltd,Care Establishment,5 - Commissioning - Mental Health & Supporting People,OP Blocks - Care Placements,Nursing Independent Sector
Cambridgeshire County Council,17-Nov-16,22072217-14399994,-6218,Buchan Healthcare Ltd,Care Establishment,5 - Commissioning - Mental Health & Supporting People,OP Blocks - Care Placements,Nursing Independent Sector
Cambridgeshire County Council,17-Nov-16,22072222-14399995,-6218,Buchan Healthcare Ltd,Care Establishment,5 - Commissioning - Mental Health & Supporting People,OP Blocks - Care Placements,Nursing Independent Sector
Cambridgeshire County Council,11-Nov-16,21916519-14345617,-4655,Brookdale Healthcare Limited,Care Establishment,2 - Operations - Learning Disability,LDP Huntingdonshire Locality - Care,Respite Independent Sector
Cambridgeshire County Council,11-Nov-16,21916521-14345619,-4655,Brookdale Healthcare Limited,Care Establishment,2 - Operations - Learning Disability,LDP Huntingdonshire Locality - Care,Respite Independent Sector
Cambridgeshire County Council,11-Nov-16,21916523-14345621,-4655,Brookdale Healthcare Limited,Care Establishment,2 - Operations - Learning Disability,LDP Hunts special needs,Respite Independent Sector
Cambridgeshire County Council,11-Nov-16,21916524-14345622,-4655,Brookdale Healthcare Limited,Care Establishment,2 - Operations - Learning Disability,LDP Huntingdonshire Locality - Care,Respite Independent Sector
Cambridgeshire County Council,11-Nov-16,21916525-14345623,-4655,Brookdale Healthcare Limited,Care Establishment,2 - Operations - Learning Disability,LDP Hunts special needs,Respite Independent Sector
Cambridgeshire County Council,11-Nov-16,21916527-14345625,-4655,Brookdale Healthcare Limited,Care Establishment,2 - Operations - Learning Disability,LDP Hunts special needs,Respite Independent Sector
Cambridgeshire County Council,11-Nov-16,21916529-14345627,-4655,Brookdale Healthcare Limited,Care Establishment,2 - Operations - Learning Disability,LDP Huntingdonshire Locality - Care,Respite Independent Sector
Cambridgeshire County Council,11-Nov-16,21916535-14345633,-4655,Brookdale Healthcare Limited,Care Establishment,2 - Operations - Learning Disability,LDP Huntingdonshire Locality - Care,Respite Independent Sector
Cambridgeshire County Council,11-Nov-16,21916536-14345634,-4655,Brookdale Healthcare Limited,Care Establishment,2 - Operations - Learning Disability,LDP Hunts special needs,Respite Independent Sector
Cambridgeshire County Council,11-Nov-16,22021612-14345638,-4655,Brookdale Healthcare Limited,Care Establishment,2 - Operations - Learning Disability,LDP Huntingdonshire Locality - Care,Respite Independent Sector
Cambridgeshire County Council,11-Nov-16,22021613-14345639,-4655,Brookdale Healthcare Limited,Care Establishment,2 - Operations - Learning Disability,LDP Hunts special needs,Respite Independent Sector
Cambridgeshire County Council,11-Nov-16,22021614-14345640,-4655,Brookdale Healthcare Limited,Care Establishment,2 - Operations - Learning Disability,LDP Hunts special needs,Respite Independent Sector
Cambridgeshire County Council,11-Nov-16,22021615-14345641,-4655,Brookdale Healthcare Limited,Care Establishment,2 - Operations - Learning Disability,LDP Hunts special needs,Respite Independent Sector
Cambridgeshire County Council,11-Nov-16,22021623-14345649,-4655,Brookdale Healthcare Limited,Care Establishment,2 - Operations - Learning Disability,LDP Hunts special needs,Respite Independent Sector
Cambridgeshire County Council,11-Nov-16,22021624-14345650,-4655,Brookdale Healthcare Limited,Care Establishment,2 - Operations - Learning Disability,LDP Hunts special needs,Respite Independent Sector
Cambridgeshire County Council,11-Nov-16,22021627-14345653,-4655,Brookdale Healthcare Limited,Care Establishment,2 - Operations - Learning Disability,LDP Hunts special needs,Respite Independent Sector
Cambridgeshire County Council,11-Nov-16,22021629-14345655,-4655,Brookdale Healthcare Limited,Care Establishment,2 - Operations - Learning Disability,LDP Huntingdonshire Locality - Care,Respite Independent Sector
Cambridgeshire County Council,11-Nov-16,22021631-14345657,-4655,Brookdale Healthcare Limited,Care Establishment,2 - Operations - Learning Disability,LDP Hunts special needs,Respite Independent Sector
Cambridgeshire County Council,11-Nov-16,21971155-14345664,-4655,Brookdale Healthcare Limited,Care Establishment,2 - Operations - Learning Disability,LDP Hunts special needs,Respite Independent Sector
Cambridgeshire County Council,11-Nov-16,21971156-14345665,-4655,Brookdale Healthcare Limited,Care Establishment,2 - Operations - Learning Disability,LDP Hunts special needs,Respite Independent Sector
Cambridgeshire County Council,11-Nov-16,21971157-14345666,-4655,Brookdale Healthcare Limited,Care Establishment,2 - Operations - Learning Disability,LDP Huntingdonshire Locality - Care,Respite Independent Sector
Cambridgeshire County Council,11-Nov-16,21971161-14345667,-4655,Brookdale Healthcare Limited,Care Establishment,2 - Operations - Learning Disability,LDP Huntingdonshire Locality - Care,Respite Independent Sector
Cambridgeshire County Council,11-Nov-16,21971163-14345669,-4655,Brookdale Healthcare Limited,Care Establishment,2 - Operations - Learning Disability,LDP Huntingdonshire Locality - Care,Respite Independent Sector
Cambridgeshire County Council,11-Nov-16,21971166-14345672,-4655,Brookdale Healthcare Limited,Care Establishment,2 - Operations - Learning Disability,LDP Huntingdonshire Locality - Care,Respite Independent Sector
Cambridgeshire County Council,11-Nov-16,21971168-14345674,-4655,Brookdale Healthcare Limited,Care Establishment,2 - Operations - Learning Disability,LDP Huntingdonshire Locality - Care,Respite Independent Sector
Cambridgeshire County Council,11-Nov-16,21971169-14345675,-4655,Brookdale Healthcare Limited,Care Establishment,2 - Operations - Learning Disability,LDP Hunts special needs,Respite Independent Sector
Cambridgeshire County Council,11-Nov-16,21971175-14345680,-4655,Brookdale Healthcare Limited,Care Establishment,2 - Operations - Learning Disability,LDP Huntingdonshire Locality - Care,Respite Independent Sector
Cambridgeshire County Council,17-Nov-16,22073271-14394605,-4655,Brookdale Healthcare Limited,Care Establishment,2 - Operations - Learning Disability,LDP Huntingdonshire Locality - Care,Respite Independent Sector
Cambridgeshire County Council,17-Nov-16,22073251-14394618,-4655,Brookdale Healthcare Limited,Care Establishment,2 - Operations - Learning Disability,LDP Hunts special needs,Respite Independent Sector
Cambridgeshire County Council,17-Nov-16,22073252-14394619,-4655,Brookdale Healthcare Limited,Care Establishment,2 - Operations - Learning Disability,LDP Huntingdonshire Locality - Care,Respite Independent Sector
Cambridgeshire County Council,17-Nov-16,22073253-14394620,-4655,Brookdale Healthcare Limited,Care Establishment,2 - Operations - Learning Disability,LDP Huntingdonshire Locality - Care,Respite Independent Sector
Cambridgeshire County Council,17-Nov-16,22073262-14394627,-4655,Brookdale Healthcare Limited,Care Establishment,2 - Operations - Learning Disability,LDP Huntingdonshire Locality - Care,Respite Independent Sector
Cambridgeshire County Council,17-Nov-16,22073263-14394628,-4655,Brookdale Healthcare Limited,Care Establishment,2 - Operations - Learning Disability,LDP Hunts special needs,Respite Independent Sector
Cambridgeshire County Council,17-Nov-16,22073264-14394629,-4655,Brookdale Healthcare Limited,Care Establishment,2 - Operations - Learning Disability,LDP Huntingdonshire Locality - Care,Respite Independent Sector
Cambridgeshire County Council,17-Nov-16,22073267-14394631,-4655,Brookdale Healthcare Limited,Care Establishment,2 - Operations - Learning Disability,LDP Hunts special needs,Respite Independent Sector
Cambridgeshire County Council,17-Nov-16,22073268-14394632,-4655,Brookdale Healthcare Limited,Care Establishment,2 - Operations - Learning Disability,LDP Hunts special needs,Respite Independent Sector
Cambridgeshire County Council,17-Nov-16,22072228-14397916,-4270,Fitzwilliam Healthcare Ltd,Care Establishment,5 - Commissioning - Mental Health & Supporting People,OP Blocks - Care Placements,Residential Independent Sector
Cambridgeshire County Council,17-Nov-16,22072232-14397917,-4270,Fitzwilliam Healthcare Ltd,Care Establishment,5 - Commissioning - Mental Health & Supporting People,OP Blocks - Care Placements,Residential Independent Sector
Cambridgeshire County Council,17-Nov-16,22072264-14397922,-4270,Fitzwilliam Healthcare Ltd,Care Establishment,5 - Commissioning - Mental Health & Supporting People,OP Blocks - Care Placements,Residential Independent Sector
Cambridgeshire County Council,17-Nov-16,22072265-14397923,-4270,Fitzwilliam Healthcare Ltd,Care Establishment,5 - Commissioning - Mental Health & Supporting People,OP Blocks - Care Placements,Residential Independent Sector
Cambridgeshire County Council,17-Nov-16,22072273-14397927,-4270,Fitzwilliam Healthcare Ltd,Care Establishment,5 - Commissioning - Mental Health & Supporting People,OP Blocks - Care Placements,Residential Independent Sector
Cambridgeshire County Council,17-Nov-16,22072284-14397930,-4270,Fitzwilliam Healthcare Ltd,Care Establishment,5 - Commissioning - Mental Health & Supporting People,OP Blocks - Care Placements,Residential Independent Sector
Cambridgeshire County Council,17-Nov-16,22072295-14397932,-4270,Fitzwilliam Healthcare Ltd,Care Establishment,5 - Commissioning - Mental Health & Supporting People,OP Blocks - Care Placements,Residential Independent Sector
Cambridgeshire County Council,17-Nov-16,22072296-14397933,-4270,Fitzwilliam Healthcare Ltd,Care Establishment,5 - Commissioning - Mental Health & Supporting People,OP Blocks - Care Placements,Residential Independent Sector
Cambridgeshire County Council,17-Nov-16,22072303-14397934,-4270,Fitzwilliam Healthcare Ltd,Care Establishment,5 - Commissioning - Mental Health & Supporting People,OP Blocks - Care Placements,Residential Independent Sector
Cambridgeshire County Council,17-Nov-16,22071288-14397935,-4270,Fitzwilliam Healthcare Ltd,Care Establishment,5 - Commissioning - Mental Health & Supporting People,OP Blocks - Care Placements,Residential Independent Sector
Cambridgeshire County Council,11-Nov-16,21916520-14345618,-3325,Brookdale Healthcare Limited,Care Establishment,2 - Operations - Learning Disability,LDP Huntingdonshire Locality - Care,Respite Independent Sector
Cambridgeshire County Council,11-Nov-16,22021632-14345658,-3325,Brookdale Healthcare Limited,Care Establishment,2 - Operations - Learning Disability,LDP Huntingdonshire Locality - Care,Respite Independent Sector
Cambridgeshire County Council,11-Nov-16,21971173-14345678,-3325,Brookdale Healthcare Limited,Care Establishment,2 - Operations - Learning Disability,LDP Hunts special needs,Respite Independent Sector
Cambridgeshire County Council,17-Nov-16,22073250-14394617,-3325,Brookdale Healthcare Limited,Care Establishment,2 - Operations - Learning Disability,LDP Huntingdonshire Locality - Care,Respite Independent Sector
Cambridgeshire County Council,28-Nov-16,22100195-14436707,-3239.44,Stanground Academy,Education,S&C,Procurement - Out-County Mainstream,Education Recoupment
Cambridgeshire County Council,25-Nov-16,22064782-14431092,-3028.08,Fostering Solutions Ltd,Care Establishment,S&C,Placements - Social Care,Agency Placements - Out County
Cambridgeshire County Council,17-Nov-16,22073529-14393424,-3000,Children & Families Across Borders (Cfab),Charity,CSC,CSC Hunts and Fenland Unit 11,Other Hired Contract Services
Cambridgeshire County Council,30-Nov-16,22100476-14447450,-2853.5,Orange Grove Foster Care,Care Establishment,S&C,Placements - Social Care,Agency Placements - In Cambs
Cambridgeshire County Council,16-Nov-16,21894223-14380411,-2828.57,Unique Care Homes,Care Establishment,S&C,Placements - Social Care,Agency Placements - In Cambs
Cambridgeshire County Council,11-Nov-16,21970199-14343465,-2337.29,Dimensions (Uk) Ltd,Care Establishment,2 - Operations - Learning Disability,LDP South Cambs - Special Needs,Supported Living
Cambridgeshire County Council,11-Nov-16,21970205-14343471,-2337.29,Dimensions (Uk) Ltd,Care Establishment,2 - Operations - Learning Disability,LDP Cambs City - Special Needs,Supported Living
Cambridgeshire County Council,11-Nov-16,21970206-14343472,-2337.29,Dimensions (Uk) Ltd,Care Establishment,2 - Operations - Learning Disability,LDP South Cambs - Special Needs,Supported Living
Cambridgeshire County Council,11-Nov-16,21970207-14343473,-2337.29,Dimensions (Uk) Ltd,Care Establishment,2 - Operations - Learning Disability,LDP South Cambs - Special Needs,Supported Living
Cambridgeshire County Council,11-Nov-16,21970210-14343476,-2337.29,Dimensions (Uk) Ltd,Care Establishment,2 - Operations - Learning Disability,LDP South Cambs - Special Needs,Supported Living
Cambridgeshire County Council,11-Nov-16,21970212-14343478,-2337.29,Dimensions (Uk) Ltd,Care Establishment,2 - Operations - Learning Disability,LDP Cambs City - Special Needs,Supported Living
Cambridgeshire County Council,11-Nov-16,21970195-14343479,-2337.29,Dimensions (Uk) Ltd,Care Establishment,2 - Operations - Learning Disability,LDP South Cambs - Special Needs,Supported Living
Cambridgeshire County Council,11-Nov-16,21970197-14343481,-2337.29,Dimensions (Uk) Ltd,Care Establishment,2 - Operations - Learning Disability,LDP Cambs City - Special Needs,Supported Living
Cambridgeshire County Council,11-Nov-16,21915958-14343307,-2337.29,Dimensions (Uk) Ltd,Care Establishment,2 - Operations - Learning Disability,LDP Cambs City - Special Needs,Supported Living
Cambridgeshire County Council,11-Nov-16,21915961-14343310,-2337.29,Dimensions (Uk) Ltd,Care Establishment,2 - Operations - Learning Disability,LDP South Cambs - Special Needs,Supported Living
Cambridgeshire County Council,11-Nov-16,21915964-14343313,-2337.29,Dimensions (Uk) Ltd,Care Establishment,2 - Operations - Learning Disability,LDP South Cambs - Special Needs,Supported Living
Cambridgeshire County Council,11-Nov-16,21915966-14343315,-2337.29,Dimensions (Uk) Ltd,Care Establishment,2 - Operations - Learning Disability,LDP Cambs City - Special Needs,Supported Living
Cambridgeshire County Council,11-Nov-16,21915969-14343318,-2337.29,Dimensions (Uk) Ltd,Care Establishment,2 - Operations - Learning Disability,LDP Cambs City - Special Needs,Supported Living
Cambridgeshire County Council,11-Nov-16,21915972-14343321,-2337.29,Dimensions (Uk) Ltd,Care Establishment,2 - Operations - Learning Disability,LDP Cambs City - Special Needs,Supported Living
Cambridgeshire County Council,11-Nov-16,21915973-14343322,-2337.29,Dimensions (Uk) Ltd,Care Establishment,2 - Operations - Learning Disability,LDP South Cambs - Special Needs,Supported Living
Cambridgeshire County Council,11-Nov-16,21915975-14343324,-2337.29,Dimensions (Uk) Ltd,Care Establishment,2 - Operations - Learning Disability,LDP South Cambs - Special Needs,Supported Living
Cambridgeshire County Council,11-Nov-16,21888270-14343330,-2337.29,Dimensions (Uk) Ltd,Care Establishment,2 - Operations - Learning Disability,LDP South Cambs - Special Needs,Supported Living
Cambridgeshire County Council,11-Nov-16,21888274-14343334,-2337.29,Dimensions (Uk) Ltd,Care Establishment,2 - Operations - Learning Disability,LDP Cambs City - Special Needs,Supported Living
Cambridgeshire County Council,11-Nov-16,21888276-14343336,-2337.29,Dimensions (Uk) Ltd,Care Establishment,2 - Operations - Learning Disability,LDP Cambs City - Special Needs,Supported Living
Cambridgeshire County Council,11-Nov-16,21888279-14343339,-2337.29,Dimensions (Uk) Ltd,Care Establishment,2 - Operations - Learning Disability,LDP Cambs City - Special Needs,Supported Living
Cambridgeshire County Council,11-Nov-16,21888280-14343340,-2337.29,Dimensions (Uk) Ltd,Care Establishment,2 - Operations - Learning Disability,LDP South Cambs - Special Needs,Supported Living
Cambridgeshire County Council,11-Nov-16,21888281-14343341,-2337.29,Dimensions (Uk) Ltd,Care Establishment,2 - Operations - Learning Disability,LDP South Cambs - Special Needs,Supported Living
Cambridgeshire County Council,11-Nov-16,21888282-14343342,-2337.29,Dimensions (Uk) Ltd,Care Establishment,2 - Operations - Learning Disability,LDP South Cambs - Special Needs,Supported Living
Cambridgeshire County Council,11-Nov-16,21888283-14343343,-2337.29,Dimensions (Uk) Ltd,Care Establishment,2 - Operations - Learning Disability,LDP Cambs City - Special Needs,Supported Living
Cambridgeshire County Council,11-Nov-16,22023707-14343348,-2337.29,Dimensions (Uk) Ltd,Care Establishment,2 - Operations - Learning Disability,LDP Cambs City - Special Needs,Supported Living
Cambridgeshire County Council,11-Nov-16,22023708-14343349,-2337.29,Dimensions (Uk) Ltd,Care Establishment,2 - Operations - Learning Disability,LDP Cambs City - Special Needs,Supported Living
Cambridgeshire County Council,11-Nov-16,22023711-14343352,-2337.29,Dimensions (Uk) Ltd,Care Establishment,2 - Operations - Learning Disability,LDP South Cambs - Special Needs,Supported Living
Cambridgeshire County Council,11-Nov-16,22023712-14343353,-2337.29,Dimensions (Uk) Ltd,Care Establishment,2 - Operations - Learning Disability,LDP Cambs City - Special Needs,Supported Living
Cambridgeshire County Council,11-Nov-16,22023717-14343357,-2337.29,Dimensions (Uk) Ltd,Care Establishment,2 - Operations - Learning Disability,LDP Cambs City - Special Needs,Supported Living
Cambridgeshire County Council,11-Nov-16,22023724-14343363,-2337.29,Dimensions (Uk) Ltd,Care Establishment,2 - Operations - Learning Disability,LDP South Cambs - Special Needs,Supported Living
Cambridgeshire County Council,11-Nov-16,22023726-14343365,-2337.29,Dimensions (Uk) Ltd,Care Establishment,2 - Operations - Learning Disability,LDP South Cambs - Special Needs,Supported Living
Cambridgeshire County Council,11-Nov-16,22023728-14343367,-2337.29,Dimensions (Uk) Ltd,Care Establishment,2 - Operations - Learning Disability,LDP Cambs City - Special Needs,Supported Living
Cambridgeshire County Council,11-Nov-16,21882074-14347356,-2224.58,Turning Point Services Ltd,Care Establishment,2 - Operations - Learning Disability,LDP Fenland Locality - Care,Day and Domicillary Care Independent Sector
Cambridgeshire County Council,11-Nov-16,21882075-14347357,-2224.58,Turning Point Services Ltd,Care Establishment,2 - Operations - Learning Disability,LDP Fenland Locality - Care,Day and Domicillary Care Independent Sector
Cambridgeshire County Council,11-Nov-16,21882076-14347358,-2224.58,Turning Point Services Ltd,Care Establishment,2 - Operations - Learning Disability,LDP Fenland Locality - Care,Day and Domicillary Care Independent Sector
Cambridgeshire County Council,11-Nov-16,21882079-14347361,-2224.58,Turning Point Services Ltd,Care Establishment,2 - Operations - Learning Disability,LDP Fenland Locality - Care,Day and Domicillary Care Independent Sector
Cambridgeshire County Council,11-Nov-16,21882080-14347362,-2224.58,Turning Point Services Ltd,Care Establishment,2 - Operations - Learning Disability,LDP Fenland Locality - Care,Day and Domicillary Care Independent Sector
Cambridgeshire County Council,11-Nov-16,21882081-14347363,-2224.58,Turning Point Services Ltd,Care Establishment,2 - Operations - Learning Disability,LDP Fenland Locality - Care,Day and Domicillary Care Independent Sector
Cambridgeshire County Council,11-Nov-16,21882083-14347365,-2224.58,Turning Point Services Ltd,Care Establishment,2 - Operations - Learning Disability,LDP Fenland Locality - Care,Day and Domicillary Care Independent Sector
Cambridgeshire County Council,11-Nov-16,21879831-14347370,-2224.58,Turning Point Services Ltd,Care Establishment,2 - Operations - Learning Disability,LDP Fenland Locality - Care,Day and Domicillary Care Independent Sector
Cambridgeshire County Council,11-Nov-16,21879832-14347371,-2224.58,Turning Point Services Ltd,Care Establishment,2 - Operations - Learning Disability,LDP Fenland Locality - Care,Day and Domicillary Care Independent Sector
Cambridgeshire County Council,11-Nov-16,21879838-14347377,-2224.58,Turning Point Services Ltd,Care Establishment,2 - Operations - Learning Disability,LDP Fenland Locality - Care,Day and Domicillary Care Independent Sector
Cambridgeshire County Council,11-Nov-16,21879840-14347379,-2224.58,Turning Point Services Ltd,Care Establishment,2 - Operations - Learning Disability,LDP Fenland Locality - Care,Day and Domicillary Care Independent Sector
Cambridgeshire County Council,11-Nov-16,21879844-14347383,-2224.58,Turning Point Services Ltd,Care Establishment,2 - Operations - Learning Disability,LDP Fenland Locality - Care,Day and Domicillary Care Independent Sector
Cambridgeshire County Council,11-Nov-16,21879846-14347385,-2224.58,Turning Point Services Ltd,Care Establishment,2 - Operations - Learning Disability,LDP Fenland Locality - Care,Day and Domicillary Care Independent Sector
Cambridgeshire County Council,11-Nov-16,21879847-14347386,-2224.58,Turning Point Services Ltd,Care Establishment,2 - Operations - Learning Disability,LDP Fenland Locality - Care,Day and Domicillary Care Independent Sector
Cambridgeshire County Council,11-Nov-16,21879849-14347388,-2224.58,Turning Point Services Ltd,Care Establishment,2 - Operations - Learning Disability,LDP Fenland Locality - Care,Day and Domicillary Care Independent Sector
Cambridgeshire County Council,11-Nov-16,21879851-14347390,-2224.58,Turning Point Services Ltd,Care Establishment,2 - Operations - Learning Disability,LDP Fenland Locality - Care,Day and Domicillary Care Independent Sector
Cambridgeshire County Council,11-Nov-16,21884196-14347281,-2224.58,Turning Point Services Ltd,Care Establishment,2 - Operations - Learning Disability,LDP Fenland Locality - Care,Day and Domicillary Care Independent Sector
Cambridgeshire County Council,11-Nov-16,21884197-14347282,-2224.58,Turning Point Services Ltd,Care Establishment,2 - Operations - Learning Disability,LDP Fenland Locality - Care,Day and Domicillary Care Independent Sector
Cambridgeshire County Council,11-Nov-16,21884204-14347285,-2224.58,Turning Point Services Ltd,Care Establishment,2 - Operations - Learning Disability,LDP Fenland Locality - Care,Day and Domicillary Care Independent Sector
Cambridgeshire County Council,11-Nov-16,21884205-14347286,-2224.58,Turning Point Services Ltd,Care Establishment,2 - Operations - Learning Disability,LDP Fenland Locality - Care,Day and Domicillary Care Independent Sector
Cambridgeshire County Council,11-Nov-16,21884211-14347290,-2224.58,Turning Point Services Ltd,Care Establishment,2 - Operations - Learning Disability,LDP Fenland Locality - Care,Day and Domicillary Care Independent Sector
Cambridgeshire County Council,11-Nov-16,21884216-14347294,-2224.58,Turning Point Services Ltd,Care Establishment,2 - Operations - Learning Disability,LDP Fenland Locality - Care,Day and Domicillary Care Independent Sector
Cambridgeshire County Council,11-Nov-16,21884217-14347295,-2224.58,Turning Point Services Ltd,Care Establishment,2 - Operations - Learning Disability,LDP Fenland Locality - Care,Day and Domicillary Care Independent Sector
Cambridgeshire County Council,11-Nov-16,21884222-14347297,-2224.58,Turning Point Services Ltd,Care Establishment,2 - Operations - Learning Disability,LDP Fenland Locality - Care,Day and Domicillary Care Independent Sector
Cambridgeshire County Council,11-Nov-16,21884224-14347299,-2224.58,Turning Point Services Ltd,Care Establishment,2 - Operations - Learning Disability,LDP Fenland Locality - Care,Day and Domicillary Care Independent Sector
Cambridgeshire County Council,11-Nov-16,21884228-14347302,-2224.58,Turning Point Services Ltd,Care Establishment,2 - Operations - Learning Disability,LDP Fenland Locality - Care,Day and Domicillary Care Independent Sector
Cambridgeshire County Council,11-Nov-16,21884231-14347305,-2224.58,Turning Point Services Ltd,Care Establishment,2 - Operations - Learning Disability,LDP Fenland Locality - Care,Day and Domicillary Care Independent Sector
Cambridgeshire County Council,11-Nov-16,21884236-14347308,-2224.58,Turning Point Services Ltd,Care Establishment,2 - Operations - Learning Disability,LDP Fenland Locality - Care,Day and Domicillary Care Independent Sector
Cambridgeshire County Council,11-Nov-16,21884238-14347309,-2224.58,Turning Point Services Ltd,Care Establishment,2 - Operations - Learning Disability,LDP Fenland Locality - Care,Day and Domicillary Care Independent Sector
Cambridgeshire County Council,11-Nov-16,21884242-14347311,-2224.58,Turning Point Services Ltd,Care Establishment,2 - Operations - Learning Disability,LDP Fenland Locality - Care,Day and Domicillary Care Independent Sector
Cambridgeshire County Council,11-Nov-16,21884243-14347312,-2224.58,Turning Point Services Ltd,Care Establishment,2 - Operations - Learning Disability,LDP Fenland Locality - Care,Day and Domicillary Care Independent Sector
Cambridgeshire County Council,11-Nov-16,21884245-14347313,-2224.58,Turning Point Services Ltd,Care Establishment,2 - Operations - Learning Disability,LDP Fenland Locality - Care,Day and Domicillary Care Independent Sector
Cambridgeshire County Council,11-Nov-16,21884246-14347314,-2224.58,Turning Point Services Ltd,Care Establishment,2 - Operations - Learning Disability,LDP Fenland Locality - Care,Day and Domicillary Care Independent Sector
Cambridgeshire County Council,11-Nov-16,21884256-14347321,-2224.58,Turning Point Services Ltd,Care Establishment,2 - Operations - Learning Disability,LDP Fenland Locality - Care,Day and Domicillary Care Independent Sector
Cambridgeshire County Council,11-Nov-16,21884257-14347322,-2224.58,Turning Point Services Ltd,Care Establishment,2 - Operations - Learning Disability,LDP Fenland Locality - Care,Day and Domicillary Care Independent Sector
Cambridgeshire County Council,11-Nov-16,21884259-14347324,-2224.58,Turning Point Services Ltd,Care Establishment,2 - Operations - Learning Disability,LDP Fenland Locality - Care,Day and Domicillary Care Independent Sector
Cambridgeshire County Council,11-Nov-16,21884260-14347325,-2224.58,Turning Point Services Ltd,Care Establishment,2 - Operations - Learning Disability,LDP Fenland Locality - Care,Day and Domicillary Care Independent Sector
Cambridgeshire County Council,11-Nov-16,21884261-14347326,-2224.58,Turning Point Services Ltd,Care Establishment,2 - Operations - Learning Disability,LDP Fenland Locality - Care,Day and Domicillary Care Independent Sector
Cambridgeshire County Council,11-Nov-16,21884185-14347327,-2224.58,Turning Point Services Ltd,Care Establishment,2 - Operations - Learning Disability,LDP Fenland Locality - Care,Day and Domicillary Care Independent Sector
Cambridgeshire County Council,11-Nov-16,21884186-14347328,-2224.58,Turning Point Services Ltd,Care Establishment,2 - Operations - Learning Disability,LDP Fenland Locality - Care,Day and Domicillary Care Independent Sector
Cambridgeshire County Council,11-Nov-16,21884191-14347332,-2224.58,Turning Point Services Ltd,Care Establishment,2 - Operations - Learning Disability,LDP Fenland Locality - Care,Day and Domicillary Care Independent Sector
Cambridgeshire County Council,11-Nov-16,21884193-14347334,-2224.58,Turning Point Services Ltd,Care Establishment,2 - Operations - Learning Disability,LDP Fenland Locality - Care,Day and Domicillary Care Independent Sector
Cambridgeshire County Council,11-Nov-16,21884195-14347336,-2224.58,Turning Point Services Ltd,Care Establishment,2 - Operations - Learning Disability,LDP Fenland Locality - Care,Day and Domicillary Care Independent Sector
Cambridgeshire County Council,11-Nov-16,21882057-14347339,-2224.58,Turning Point Services Ltd,Care Establishment,2 - Operations - Learning Disability,LDP Fenland Locality - Care,Day and Domicillary Care Independent Sector
Cambridgeshire County Council,11-Nov-16,21882060-14347342,-2224.58,Turning Point Services Ltd,Care Establishment,2 - Operations - Learning Disability,LDP Fenland Locality - Care,Day and Domicillary Care Independent Sector
Cambridgeshire County Council,11-Nov-16,21882062-14347344,-2224.58,Turning Point Services Ltd,Care Establishment,2 - Operations - Learning Disability,LDP Fenland Locality - Care,Day and Domicillary Care Independent Sector
Cambridgeshire County Council,11-Nov-16,21882063-14347345,-2224.58,Turning Point Services Ltd,Care Establishment,2 - Operations - Learning Disability,LDP Fenland Locality - Care,Day and Domicillary Care Independent Sector
Cambridgeshire County Council,11-Nov-16,21882064-14347346,-2224.58,Turning Point Services Ltd,Care Establishment,2 - Operations - Learning Disability,LDP Fenland Locality - Care,Day and Domicillary Care Independent Sector
Cambridgeshire County Council,11-Nov-16,21882066-14347348,-2224.58,Turning Point Services Ltd,Care Establishment,2 - Operations - Learning Disability,LDP Fenland Locality - Care,Day and Domicillary Care Independent Sector
Cambridgeshire County Council,11-Nov-16,21882067-14347349,-2224.58,Turning Point Services Ltd,Care Establishment,2 - Operations - Learning Disability,LDP Fenland Locality - Care,Day and Domicillary Care Independent Sector
Cambridgeshire County Council,11-Nov-16,21882068-14347350,-2224.58,Turning Point Services Ltd,Care Establishment,2 - Operations - Learning Disability,LDP Fenland Locality - Care,Day and Domicillary Care Independent Sector
Cambridgeshire County Council,11-Nov-16,21882069-14347351,-2224.58,Turning Point Services Ltd,Care Establishment,2 - Operations - Learning Disability,LDP Fenland Locality - Care,Day and Domicillary Care Independent Sector
Cambridgeshire County Council,11-Nov-16,21882070-14347352,-2224.58,Turning Point Services Ltd,Care Establishment,2 - Operations - Learning Disability,LDP Fenland Locality - Care,Day and Domicillary Care Independent Sector
Cambridgeshire County Council,11-Nov-16,21882073-14347355,-2224.58,Turning Point Services Ltd,Care Establishment,2 - Operations - Learning Disability,LDP Fenland Locality - Care,Day and Domicillary Care Independent Sector
Cambridgeshire County Council,08-Nov-16,21973854-14325873,-1950,Hinchingbrooke Healthcare Nhs Trust#1,Trust (Other),2 - Commissioning - Older people Pool,CITY-OP (Non-Pool),Other Hired Contract Services
Cambridgeshire County Council,07-Nov-16,21688749-14324437,-1914.48,Demco Interiors Ltd T/A Gresswell,Company,Corporate Services,Support - Business Support,Capital WIP - land and buildings  -  Fixtures and fittings
Cambridgeshire County Council,11-Nov-16,21882084-14347366,-1906.78,Turning Point Services Ltd,Care Establishment,2 - Operations - Learning Disability,LDP Fenland Locality - Care,Day and Domicillary Care Independent Sector
Cambridgeshire County Council,11-Nov-16,21884190-14347331,-1906.78,Turning Point Services Ltd,Care Establishment,2 - Operations - Learning Disability,LDP Fenland Locality - Care,Day and Domicillary Care Independent Sector
Cambridgeshire County Council,08-Nov-16,21972933-14325856,-1820,Hinchingbrooke Healthcare Nhs Trust#1,Trust (Other),2 - Commissioning - Older people Pool,CITY-OP (Non-Pool),Other Hired Contract Services
Cambridgeshire County Council,03-Nov-16,21970322-14311618,-1800,Granta Housing- 71 /73 Fen Road,Care Establishment,2 - Operations - Learning Disability,LDP South Cambs - Special Needs,Nursing Independent Sector
Cambridgeshire County Council,03-Nov-16,21970325-14311621,-1800,Granta Housing- 71 /73 Fen Road,Care Establishment,2 - Operations - Learning Disability,LDP Cambs City - Special Needs,Nursing Independent Sector
Cambridgeshire County Council,03-Nov-16,21970326-14311622,-1800,Granta Housing- 71 /73 Fen Road,Care Establishment,2 - Operations - Learning Disability,LDP South Cambs - Special Needs,Nursing Independent Sector
Cambridgeshire County Council,03-Nov-16,21970328-14311624,-1800,Granta Housing- 71 /73 Fen Road,Care Establishment,2 - Operations - Learning Disability,LDP South Cambs - Special Needs,Nursing Independent Sector
Cambridgeshire County Council,03-Nov-16,21970330-14311626,-1800,Granta Housing- 71 /73 Fen Road,Care Establishment,2 - Operations - Learning Disability,LDP South Cambs - Special Needs,Nursing Independent Sector
Cambridgeshire County Council,03-Nov-16,21970331-14311627,-1800,Granta Housing- 71 /73 Fen Road,Care Establishment,2 - Operations - Learning Disability,LDP South Cambs - Special Needs,Nursing Independent Sector
Cambridgeshire County Council,03-Nov-16,21970332-14311628,-1800,Granta Housing- 71 /73 Fen Road,Care Establishment,2 - Operations - Learning Disability,LDP Cambs City - Special Needs,Nursing Independent Sector
Cambridgeshire County Council,03-Nov-16,21970335-14311631,-1800,Granta Housing- 71 /73 Fen Road,Care Establishment,2 - Operations - Learning Disability,LDP Cambs City - Special Needs,Nursing Independent Sector
Cambridgeshire County Council,03-Nov-16,21970336-14311632,-1800,Granta Housing- 71 /73 Fen Road,Care Establishment,2 - Operations - Learning Disability,LDP South Cambs - Special Needs,Nursing Independent Sector
Cambridgeshire County Council,03-Nov-16,21970997-14311648,-1800,Granta Housing- 71 /73 Fen Road,Care Establishment,2 - Operations - Learning Disability,LDP Cambs City - Special Needs,Nursing Independent Sector
Cambridgeshire County Council,03-Nov-16,21971001-14311652,-1800,Granta Housing- 71 /73 Fen Road,Care Establishment,2 - Operations - Learning Disability,LDP Cambs City - Special Needs,Nursing Independent Sector
Cambridgeshire County Council,03-Nov-16,21971003-14311654,-1800,Granta Housing- 71 /73 Fen Road,Care Establishment,2 - Operations - Learning Disability,LDP Cambs City - Special Needs,Nursing Independent Sector
Cambridgeshire County Council,03-Nov-16,21971004-14311655,-1800,Granta Housing- 71 /73 Fen Road,Care Establishment,2 - Operations - Learning Disability,LDP Cambs City - Special Needs,Nursing Independent Sector
Cambridgeshire County Council,03-Nov-16,21971007-14311658,-1800,Granta Housing- 71 /73 Fen Road,Care Establishment,2 - Operations - Learning Disability,LDP Cambs City - Special Needs,Nursing Independent Sector
Cambridgeshire County Council,03-Nov-16,21971009-14311660,-1800,Granta Housing- 71 /73 Fen Road,Care Establishment,2 - Operations - Learning Disability,LDP South Cambs - Special Needs,Nursing Independent Sector
Cambridgeshire County Council,03-Nov-16,21971011-14311662,-1800,Granta Housing- 71 /73 Fen Road,Care Establishment,2 - Operations - Learning Disability,LDP South Cambs - Special Needs,Nursing Independent Sector
Cambridgeshire County Council,03-Nov-16,21971012-14311663,-1800,Granta Housing- 71 /73 Fen Road,Care Establishment,2 - Operations - Learning Disability,LDP South Cambs - Special Needs,Nursing Independent Sector
Cambridgeshire County Council,03-Nov-16,21971015-14311666,-1800,Granta Housing- 71 /73 Fen Road,Care Establishment,2 - Operations - Learning Disability,LDP Cambs City - Special Needs,Nursing Independent Sector
Cambridgeshire County Council,11-Nov-16,22024647-14365214,-1800,Granta Housing- 71 /73 Fen Road,Care Establishment,2 - Operations - Learning Disability,LDP Cambs City - Special Needs,Nursing Independent Sector
Cambridgeshire County Council,11-Nov-16,22024649-14365216,-1800,Granta Housing- 71 /73 Fen Road,Care Establishment,2 - Operations - Learning Disability,LDP Cambs City - Special Needs,Nursing Independent Sector
Cambridgeshire County Council,11-Nov-16,22024651-14365218,-1800,Granta Housing- 71 /73 Fen Road,Care Establishment,2 - Operations - Learning Disability,LDP Cambs City - Special Needs,Nursing Independent Sector
Cambridgeshire County Council,11-Nov-16,22024652-14365219,-1800,Granta Housing- 71 /73 Fen Road,Care Establishment,2 - Operations - Learning Disability,LDP South Cambs - Special Needs,Nursing Independent Sector
Cambridgeshire County Council,11-Nov-16,22024656-14365223,-1800,Granta Housing- 71 /73 Fen Road,Care Establishment,2 - Operations - Learning Disability,LDP Cambs City - Special Needs,Nursing Independent Sector
Cambridgeshire County Council,11-Nov-16,22024657-14365224,-1800,Granta Housing- 71 /73 Fen Road,Care Establishment,2 - Operations - Learning Disability,LDP South Cambs - Special Needs,Nursing Independent Sector
Cambridgeshire County Council,11-Nov-16,22024658-14365225,-1800,Granta Housing- 71 /73 Fen Road,Care Establishment,2 - Operations - Learning Disability,LDP South Cambs - Special Needs,Nursing Independent Sector
Cambridgeshire County Council,11-Nov-16,22024660-14365227,-1800,Granta Housing- 71 /73 Fen Road,Care Establishment,2 - Operations - Learning Disability,LDP Cambs City - Special Needs,Nursing Independent Sector
Cambridgeshire County Council,11-Nov-16,22024662-14365229,-1800,Granta Housing- 71 /73 Fen Road,Care Establishment,2 - Operations - Learning Disability,LDP South Cambs - Special Needs,Nursing Independent Sector
Cambridgeshire County Council,11-Nov-16,22024665-14365232,-1800,Granta Housing- 71 /73 Fen Road,Care Establishment,2 - Operations - Learning Disability,LDP Cambs City - Special Needs,Nursing Independent Sector
Cambridgeshire County Council,11-Nov-16,22024666-14365233,-1800,Granta Housing- 71 /73 Fen Road,Care Establishment,2 - Operations - Learning Disability,LDP Cambs City - Special Needs,Nursing Independent Sector
Cambridgeshire County Council,11-Nov-16,22024667-14365234,-1800,Granta Housing- 71 /73 Fen Road,Care Establishment,2 - Operations - Learning Disability,LDP Cambs City - Special Needs,Nursing Independent Sector
Cambridgeshire County Council,11-Nov-16,22024668-14365235,-1800,Granta Housing- 71 /73 Fen Road,Care Establishment,2 - Operations - Learning Disability,LDP Cambs City - Special Needs,Nursing Independent Sector
Cambridgeshire County Council,11-Nov-16,22024672-14365239,-1800,Granta Housing- 71 /73 Fen Road,Care Establishment,2 - Operations - Learning Disability,LDP Cambs City - Special Needs,Nursing Independent Sector
Cambridgeshire County Council,11-Nov-16,22024674-14365241,-1800,Granta Housing- 71 /73 Fen Road,Care Establishment,2 - Operations - Learning Disability,LDP South Cambs - Special Needs,Nursing Independent Sector
Cambridgeshire County Council,11-Nov-16,22024677-14365244,-1800,Granta Housing- 71 /73 Fen Road,Care Establishment,2 - Operations - Learning Disability,LDP Cambs City - Special Needs,Nursing Independent Sector
Cambridgeshire County Council,11-Nov-16,22024678-14365245,-1800,Granta Housing- 71 /73 Fen Road,Care Establishment,2 - Operations - Learning Disability,LDP Cambs City - Special Needs,Nursing Independent Sector
Cambridgeshire County Council,11-Nov-16,22024679-14365246,-1800,Granta Housing- 71 /73 Fen Road,Care Establishment,2 - Operations - Learning Disability,LDP South Cambs - Special Needs,Nursing Independent Sector
Cambridgeshire County Council,17-Nov-16,22066083-14401028,-1800,Granta Housing- 71 /73 Fen Road,Care Establishment,2 - Operations - Learning Disability,LDP South Cambs - Special Needs,Nursing Independent Sector
Cambridgeshire County Council,17-Nov-16,22066087-14401032,-1800,Granta Housing- 71 /73 Fen Road,Care Establishment,2 - Operations - Learning Disability,LDP South Cambs - Special Needs,Nursing Independent Sector
Cambridgeshire County Council,17-Nov-16,22066092-14401037,-1800,Granta Housing- 71 /73 Fen Road,Care Establishment,2 - Operations - Learning Disability,LDP South Cambs - Special Needs,Nursing Independent Sector
Cambridgeshire County Council,17-Nov-16,22066093-14401038,-1800,Granta Housing- 71 /73 Fen Road,Care Establishment,2 - Operations - Learning Disability,LDP South Cambs - Special Needs,Nursing Independent Sector
Cambridgeshire County Council,17-Nov-16,22066097-14401042,-1800,Granta Housing- 71 /73 Fen Road,Care Establishment,2 - Operations - Learning Disability,LDP Cambs City - Special Needs,Nursing Independent Sector
Cambridgeshire County Council,17-Nov-16,22066098-14401043,-1800,Granta Housing- 71 /73 Fen Road,Care Establishment,2 - Operations - Learning Disability,LDP Cambs City - Special Needs,Nursing Independent Sector
Cambridgeshire County Council,17-Nov-16,22066104-14401049,-1800,Granta Housing- 71 /73 Fen Road,Care Establishment,2 - Operations - Learning Disability,LDP South Cambs - Special Needs,Nursing Independent Sector
Cambridgeshire County Council,17-Nov-16,22066105-14401050,-1800,Granta Housing- 71 /73 Fen Road,Care Establishment,2 - Operations - Learning Disability,LDP Cambs City - Special Needs,Nursing Independent Sector
Cambridgeshire County Council,17-Nov-16,22066106-14401051,-1800,Granta Housing- 71 /73 Fen Road,Care Establishment,2 - Operations - Learning Disability,LDP Cambs City - Special Needs,Nursing Independent Sector
Cambridgeshire County Council,17-Nov-16,22066110-14401055,-1800,Granta Housing- 71 /73 Fen Road,Care Establishment,2 - Operations - Learning Disability,LDP South Cambs - Special Needs,Nursing Independent Sector
Cambridgeshire County Council,17-Nov-16,22066115-14401060,-1800,Granta Housing- 71 /73 Fen Road,Care Establishment,2 - Operations - Learning Disability,LDP Cambs City - Special Needs,Nursing Independent Sector
Cambridgeshire County Council,17-Nov-16,22066118-14401063,-1800,Granta Housing- 71 /73 Fen Road,Care Establishment,2 - Operations - Learning Disability,LDP South Cambs - Special Needs,Nursing Independent Sector
Cambridgeshire County Council,17-Nov-16,22066120-14401065,-1800,Granta Housing- 71 /73 Fen Road,Care Establishment,2 - Operations - Learning Disability,LDP Cambs City - Special Needs,Nursing Independent Sector
Cambridgeshire County Council,17-Nov-16,22066121-14401066,-1800,Granta Housing- 71 /73 Fen Road,Care Establishment,2 - Operations - Learning Disability,LDP Cambs City - Special Needs,Nursing Independent Sector
Cambridgeshire County Council,17-Nov-16,22066126-14401071,-1800,Granta Housing- 71 /73 Fen Road,Care Establishment,2 - Operations - Learning Disability,LDP South Cambs - Special Needs,Nursing Independent Sector
Cambridgeshire County Council,17-Nov-16,22066127-14401072,-1800,Granta Housing- 71 /73 Fen Road,Care Establishment,2 - Operations - Learning Disability,LDP South Cambs - Special Needs,Nursing Independent Sector
Cambridgeshire County Council,17-Nov-16,22066132-14401077,-1800,Granta Housing- 71 /73 Fen Road,Care Establishment,2 - Operations - Learning Disability,LDP Cambs City - Special Needs,Nursing Independent Sector
Cambridgeshire County Council,17-Nov-16,22066134-14401078,-1800,Granta Housing- 71 /73 Fen Road,Care Establishment,2 - Operations - Learning Disability,LDP Cambs City - Special Needs,Nursing Independent Sector
Cambridgeshire County Council,17-Nov-16,22071281-14400010,-1776.57,Buchan Healthcare Ltd,Care Establishment,5 - Commissioning - Mental Health & Supporting People,OP Blocks - Care Placements,Nursing Independent Sector
Cambridgeshire County Council,08-Nov-16,21972931-14325854,-1690,Hinchingbrooke Healthcare Nhs Trust#1,Trust (Other),2 - Commissioning - Older people Pool,CITY-OP (Non-Pool),Other Hired Contract Services
Cambridgeshire County Council,08-Nov-16,21973842-14325863,-1690,Hinchingbrooke Healthcare Nhs Trust#1,Trust (Other),2 - Commissioning - Older people Pool,CITY-OP (Non-Pool),Other Hired Contract Services
Cambridgeshire County Council,08-Nov-16,21973848-14325869,-1690,Hinchingbrooke Healthcare Nhs Trust#1,Trust (Other),2 - Commissioning - Older people Pool,CITY-OP (Non-Pool),Other Hired Contract Services
Cambridgeshire County Council,24-Nov-16,22037855-14421207,-1680,Redacted Personal Data,Individual,2 - Operations - Learning Disability,LDP City Locality - Care,Direct Payments - Social Services
Cambridgeshire County Council,24-Nov-16,22037863-14421215,-1680,Redacted Personal Data,Individual,2 - Operations - Learning Disability,LDP City Locality - Care,Direct Payments - Social Services
Cambridgeshire County Council,28-Nov-16,22054110-14435972,-1555.72,Chs Group,Care Establishment,S&C,Placements - Social Care,Agency Placements - In Cambs
Cambridgeshire County Council,11-Nov-16,21884555-14354933,-1529.79,23 Lions Cross (Voyage),Care Establishment,2 - Operations - Learning Disability,LDP Huntingdonshire Locality - Care,Supported Living
Cambridgeshire County Council,11-Nov-16,21884556-14354934,-1529.79,23 Lions Cross (Voyage),Care Establishment,2 - Operations - Learning Disability,LDP Huntingdonshire Locality - Care,Supported Living
Cambridgeshire County Council,11-Nov-16,21884565-14354939,-1529.79,23 Lions Cross (Voyage),Care Establishment,2 - Operations - Learning Disability,LDP Huntingdonshire Locality - Care,Supported Living
Cambridgeshire County Council,11-Nov-16,21884566-14354940,-1529.79,23 Lions Cross (Voyage),Care Establishment,2 - Operations - Learning Disability,LDP Huntingdonshire Locality - Care,Supported Living
Cambridgeshire County Council,11-Nov-16,21969798-14351459,-1526.7,Voyage,Care Establishment,2 - Operations - Learning Disability,LDP City Locality - Care,Supported Living
Cambridgeshire County Council,11-Nov-16,21969800-14351460,-1526.7,Voyage,Care Establishment,2 - Operations - Learning Disability,LDP City Locality - Care,Supported Living
Cambridgeshire County Council,11-Nov-16,21969803-14351462,-1526.7,Voyage,Care Establishment,2 - Operations - Learning Disability,LDP City Locality - Care,Supported Living
Cambridgeshire County Council,17-Nov-16,22072224-14400296,-1497,Hunters Healthcare (Hunters Down),Care Establishment,5 - Commissioning - Mental Health & Supporting People,OP Blocks - Care Placements,Residential Independent Sector
Cambridgeshire County Council,17-Nov-16,22072245-14400309,-1497,Hunters Healthcare (Hunters Down),Care Establishment,5 - Commissioning - Mental Health & Supporting People,OP Blocks - Care Placements,Residential Independent Sector
Cambridgeshire County Council,17-Nov-16,22072251-14400313,-1497,Hunters Healthcare (Hunters Down),Care Establishment,5 - Commissioning - Mental Health & Supporting People,OP Blocks - Care Placements,Residential Independent Sector
Cambridgeshire County Council,17-Nov-16,22072259-14400318,-1497,Hunters Healthcare (Hunters Down),Care Establishment,5 - Commissioning - Mental Health & Supporting People,OP Blocks - Care Placements,Residential Independent Sector
Cambridgeshire County Council,17-Nov-16,22072260-14400319,-1497,Hunters Healthcare (Hunters Down),Care Establishment,5 - Commissioning - Mental Health & Supporting People,OP Blocks - Care Placements,Residential Independent Sector
Cambridgeshire County Council,17-Nov-16,22072274-14400324,-1497,Hunters Healthcare (Hunters Down),Care Establishment,5 - Commissioning - Mental Health & Supporting People,OP Blocks - Care Placements,Residential Independent Sector
Cambridgeshire County Council,17-Nov-16,22072275-14400325,-1497,Hunters Healthcare (Hunters Down),Care Establishment,5 - Commissioning - Mental Health & Supporting People,OP Blocks - Care Placements,Residential Independent Sector
Cambridgeshire County Council,17-Nov-16,22072283-14400330,-1497,Hunters Healthcare (Hunters Down),Care Establishment,5 - Commissioning - Mental Health & Supporting People,OP Blocks - Care Placements,Residential Independent Sector
Cambridgeshire County Council,17-Nov-16,22072299-14400339,-1497,Hunters Healthcare (Hunters Down),Care Establishment,5 - Commissioning - Mental Health & Supporting People,OP Blocks - Care Placements,Residential Independent Sector
Cambridgeshire County Council,17-Nov-16,22071283-14400345,-1497,Hunters Healthcare (Hunters Down),Care Establishment,5 - Commissioning - Mental Health & Supporting People,OP Blocks - Care Placements,Residential Independent Sector
Cambridgeshire County Council,11-Nov-16,21887213-14354925,-1382.78,23 Lions Cross (Voyage),Care Establishment,2 - Operations - Learning Disability,LDP Huntingdonshire Locality - Care,Supported Living
Cambridgeshire County Council,11-Nov-16,21887215-14354927,-1382.78,23 Lions Cross (Voyage),Care Establishment,2 - Operations - Learning Disability,LDP Huntingdonshire Locality - Care,Supported Living
Cambridgeshire County Council,11-Nov-16,21887217-14354929,-1382.78,23 Lions Cross (Voyage),Care Establishment,2 - Operations - Learning Disability,LDP Huntingdonshire Locality - Care,Supported Living
Cambridgeshire County Council,11-Nov-16,21887221-14354932,-1382.78,23 Lions Cross (Voyage),Care Establishment,2 - Operations - Learning Disability,LDP Huntingdonshire Locality - Care,Supported Living
Cambridgeshire County Council,11-Nov-16,21885583-14354991,-1380.9,Renton Court (Voyage),Care Establishment,2 - Operations - Learning Disability,LDP Hunts special needs,Supported Living
Cambridgeshire County Council,11-Nov-16,21885591-14354994,-1380.9,Renton Court (Voyage),Care Establishment,2 - Operations - Learning Disability,LDP Hunts special needs,Supported Living
Cambridgeshire County Council,11-Nov-16,21885593-14354996,-1380.9,Renton Court (Voyage),Care Establishment,2 - Operations - Learning Disability,LDP Hunts special needs,Supported Living
Cambridgeshire County Council,11-Nov-16,21885594-14354997,-1380.9,Renton Court (Voyage),Care Establishment,2 - Operations - Learning Disability,LDP Hunts special needs,Supported Living
Cambridgeshire County Council,11-Nov-16,21887956-14354905,-1377.29,23 Lions Cross (Voyage),Care Establishment,2 - Operations - Learning Disability,LDP Huntingdonshire Locality - Care,Supported Living
Cambridgeshire County Council,11-Nov-16,21887959-14354908,-1377.29,23 Lions Cross (Voyage),Care Establishment,2 - Operations - Learning Disability,LDP Huntingdonshire Locality - Care,Supported Living
Cambridgeshire County Council,11-Nov-16,21887960-14354909,-1377.29,23 Lions Cross (Voyage),Care Establishment,2 - Operations - Learning Disability,LDP Huntingdonshire Locality - Care,Supported Living
Cambridgeshire County Council,11-Nov-16,21887961-14354910,-1377.29,23 Lions Cross (Voyage),Care Establishment,2 - Operations - Learning Disability,LDP Huntingdonshire Locality - Care,Supported Living
Cambridgeshire County Council,11-Nov-16,21884834-14355010,-1371.75,Renton Court (Voyage),Care Establishment,2 - Operations - Learning Disability,LDP Huntingdonshire Locality - Care,Supported Living
Cambridgeshire County Council,11-Nov-16,21884836-14355012,-1371.75,Renton Court (Voyage),Care Establishment,2 - Operations - Learning Disability,LDP Huntingdonshire Locality - Care,Supported Living
Cambridgeshire County Council,11-Nov-16,21884837-14355013,-1371.75,Renton Court (Voyage),Care Establishment,2 - Operations - Learning Disability,LDP Huntingdonshire Locality - Care,Supported Living
Cambridgeshire County Council,11-Nov-16,21884838-14355014,-1371.75,Renton Court (Voyage),Care Establishment,2 - Operations - Learning Disability,LDP Huntingdonshire Locality - Care,Supported Living
Cambridgeshire County Council,11-Nov-16,21888111-14354916,-1370.08,23 Lions Cross (Voyage),Care Establishment,2 - Operations - Learning Disability,LDP Huntingdonshire Locality - Care,Supported Living
Cambridgeshire County Council,11-Nov-16,21888113-14354918,-1370.08,23 Lions Cross (Voyage),Care Establishment,2 - Operations - Learning Disability,LDP Huntingdonshire Locality - Care,Supported Living
Cambridgeshire County Council,11-Nov-16,21888114-14354919,-1370.08,23 Lions Cross (Voyage),Care Establishment,2 - Operations - Learning Disability,LDP Huntingdonshire Locality - Care,Supported Living
Cambridgeshire County Council,11-Nov-16,21888115-14354920,-1370.08,23 Lions Cross (Voyage),Care Establishment,2 - Operations - Learning Disability,LDP Huntingdonshire Locality - Care,Supported Living
Cambridgeshire County Council,11-Nov-16,21880506-14355097,-1367.26,2 Cheveril Lane (Voyage),Care Establishment,2 - Operations - Learning Disability,LDP Huntingdonshire Locality - Care,Supported Living
Cambridgeshire County Council,11-Nov-16,21880509-14355100,-1367.26,2 Cheveril Lane (Voyage),Care Establishment,2 - Operations - Learning Disability,LDP Huntingdonshire Locality - Care,Supported Living
Cambridgeshire County Council,11-Nov-16,21880510-14355101,-1367.26,2 Cheveril Lane (Voyage),Care Establishment,2 - Operations - Learning Disability,LDP Huntingdonshire Locality - Care,Supported Living
Cambridgeshire County Council,11-Nov-16,21880512-14355103,-1367.26,2 Cheveril Lane (Voyage),Care Establishment,2 - Operations - Learning Disability,LDP Huntingdonshire Locality - Care,Supported Living
Cambridgeshire County Council,11-Nov-16,22024081-14357982,-1342.88,Caretech Community Services,Care Establishment,2 - Operations - Learning Disability,LDP Huntingdonshire Locality - Care,Residential Independent Sector
Cambridgeshire County Council,11-Nov-16,22024084-14357984,-1342.88,Caretech Community Services,Care Establishment,2 - Operations - Learning Disability,LDP Huntingdonshire Locality - Care,Residential Independent Sector
Cambridgeshire County Council,11-Nov-16,22024086-14357985,-1342.88,Caretech Community Services,Care Establishment,2 - Operations - Learning Disability,LDP Huntingdonshire Locality - Care,Residential Independent Sector
Cambridgeshire County Council,11-Nov-16,22024087-14357986,-1342.88,Caretech Community Services,Care Establishment,2 - Operations - Learning Disability,LDP Huntingdonshire Locality - Care,Residential Independent Sector
Cambridgeshire County Council,11-Nov-16,22024089-14357987,-1342.88,Caretech Community Services,Care Establishment,2 - Operations - Learning Disability,LDP Huntingdonshire Locality - Care,Residential Independent Sector
Cambridgeshire County Council,11-Nov-16,22024093-14357989,-1342.88,Caretech Community Services,Care Establishment,2 - Operations - Learning Disability,LDP Huntingdonshire Locality - Care,Residential Independent Sector
Cambridgeshire County Council,11-Nov-16,22024094-14357990,-1342.88,Caretech Community Services,Care Establishment,2 - Operations - Learning Disability,LDP Huntingdonshire Locality - Care,Residential Independent Sector
Cambridgeshire County Council,11-Nov-16,22024075-14357993,-1342.88,Caretech Community Services,Care Establishment,2 - Operations - Learning Disability,LDP Huntingdonshire Locality - Care,Residential Independent Sector
Cambridgeshire County Council,11-Nov-16,21882455-14355088,-1342.86,2 Cheveril Lane (Voyage),Care Establishment,2 - Operations - Learning Disability,LDP Huntingdonshire Locality - Care,Supported Living
Cambridgeshire County Council,11-Nov-16,21882460-14355091,-1342.86,2 Cheveril Lane (Voyage),Care Establishment,2 - Operations - Learning Disability,LDP Huntingdonshire Locality - Care,Supported Living
Cambridgeshire County Council,11-Nov-16,21882461-14355092,-1342.86,2 Cheveril Lane (Voyage),Care Establishment,2 - Operations - Learning Disability,LDP Huntingdonshire Locality - Care,Supported Living
Cambridgeshire County Council,11-Nov-16,21882465-14355095,-1342.86,2 Cheveril Lane (Voyage),Care Establishment,2 - Operations - Learning Disability,LDP Huntingdonshire Locality - Care,Supported Living
Cambridgeshire County Council,11-Nov-16,21882582-14355018,-1326.01,Renton Court (Voyage),Care Establishment,2 - Operations - Learning Disability,LDP Huntingdonshire Locality - Care,Supported Living
Cambridgeshire County Council,11-Nov-16,21882583-14355019,-1326.01,Renton Court (Voyage),Care Establishment,2 - Operations - Learning Disability,LDP Huntingdonshire Locality - Care,Supported Living
Cambridgeshire County Council,11-Nov-16,21882585-14355021,-1326.01,Renton Court (Voyage),Care Establishment,2 - Operations - Learning Disability,LDP Huntingdonshire Locality - Care,Supported Living
Cambridgeshire County Council,11-Nov-16,21882586-14355022,-1326.01,Renton Court (Voyage),Care Establishment,2 - Operations - Learning Disability,LDP Huntingdonshire Locality - Care,Supported Living
Cambridgeshire County Council,11-Nov-16,21879919-14355024,-1303.16,Renton Court (Voyage),Care Establishment,2 - Operations - Learning Disability,LDP Huntingdonshire Locality - Care,Supported Living
Cambridgeshire County Council,11-Nov-16,21879924-14355029,-1303.16,Renton Court (Voyage),Care Establishment,2 - Operations - Learning Disability,LDP Huntingdonshire Locality - Care,Supported Living
Cambridgeshire County Council,11-Nov-16,21879925-14355030,-1303.16,Renton Court (Voyage),Care Establishment,2 - Operations - Learning Disability,LDP Huntingdonshire Locality - Care,Supported Living
Cambridgeshire County Council,11-Nov-16,21879926-14355031,-1303.16,Renton Court (Voyage),Care Establishment,2 - Operations - Learning Disability,LDP Huntingdonshire Locality - Care,Supported Living
Cambridgeshire County Council,08-Nov-16,21973838-14325859,-1300,Hinchingbrooke Healthcare Nhs Trust#1,Trust (Other),2 - Commissioning - Older people Pool,CITY-OP (Non-Pool),Other Hired Contract Services
Cambridgeshire County Council,11-Nov-16,21885874-14354921,-1263.38,23 Lions Cross (Voyage),Care Establishment,2 - Operations - Learning Disability,LDP Huntingdonshire Locality - Care,Supported Living
Cambridgeshire County Council,11-Nov-16,21885875-14354922,-1263.38,23 Lions Cross (Voyage),Care Establishment,2 - Operations - Learning Disability,LDP Huntingdonshire Locality - Care,Supported Living
Cambridgeshire County Council,11-Nov-16,21885876-14354923,-1263.38,23 Lions Cross (Voyage),Care Establishment,2 - Operations - Learning Disability,LDP Huntingdonshire Locality - Care,Supported Living
Cambridgeshire County Council,11-Nov-16,21885877-14354924,-1263.38,23 Lions Cross (Voyage),Care Establishment,2 - Operations - Learning Disability,LDP Huntingdonshire Locality - Care,Supported Living
Cambridgeshire County Council,17-Nov-16,22059541-14384225,-1260,Priory Hospital School,Education,S&C,Procurement - Out-County Hospitals,Education Recoupment
Cambridgeshire County Council,03-Nov-16,21969598-14311635,-1223.95,Granta Housing- 71 /73 Fen Road,Care Establishment,2 - Operations - Learning Disability,LDP City Locality - Care,Nursing Independent Sector
Cambridgeshire County Council,03-Nov-16,21969599-14311636,-1223.95,Granta Housing- 71 /73 Fen Road,Care Establishment,2 - Operations - Learning Disability,LDP City Locality - Care,Nursing Independent Sector
Cambridgeshire County Council,03-Nov-16,21969600-14311637,-1223.95,Granta Housing- 71 /73 Fen Road,Care Establishment,2 - Operations - Learning Disability,LDP City Locality - Care,Nursing Independent Sector
Cambridgeshire County Council,03-Nov-16,21969601-14311638,-1223.95,Granta Housing- 71 /73 Fen Road,Care Establishment,2 - Operations - Learning Disability,LDP City Locality - Care,Nursing Independent Sector
Cambridgeshire County Council,03-Nov-16,21969602-14311639,-1223.95,Granta Housing- 71 /73 Fen Road,Care Establishment,2 - Operations - Learning Disability,LDP City Locality - Care,Nursing Independent Sector
Cambridgeshire County Council,03-Nov-16,21969603-14311640,-1223.95,Granta Housing- 71 /73 Fen Road,Care Establishment,2 - Operations - Learning Disability,LDP City Locality - Care,Nursing Independent Sector
Cambridgeshire County Council,03-Nov-16,21969605-14311642,-1223.95,Granta Housing- 71 /73 Fen Road,Care Establishment,2 - Operations - Learning Disability,LDP City Locality - Care,Nursing Independent Sector
Cambridgeshire County Council,03-Nov-16,21969606-14311643,-1223.95,Granta Housing- 71 /73 Fen Road,Care Establishment,2 - Operations - Learning Disability,LDP City Locality - Care,Nursing Independent Sector
Cambridgeshire County Council,03-Nov-16,21969607-14311644,-1223.95,Granta Housing- 71 /73 Fen Road,Care Establishment,2 - Operations - Learning Disability,LDP City Locality - Care,Nursing Independent Sector
Cambridgeshire County Council,03-Nov-16,21969609-14311645,-1223.95,Granta Housing- 71 /73 Fen Road,Care Establishment,2 - Operations - Learning Disability,LDP City Locality - Care,Nursing Independent Sector
Cambridgeshire County Council,03-Nov-16,21969610-14311646,-1223.95,Granta Housing- 71 /73 Fen Road,Care Establishment,2 - Operations - Learning Disability,LDP City Locality - Care,Nursing Independent Sector
Cambridgeshire County Council,17-Nov-16,22072271-14397926,-1220,Fitzwilliam Healthcare Ltd,Care Establishment,5 - Commissioning - Mental Health & Supporting People,OP Blocks - Care Placements,Residential Independent Sector
Cambridgeshire County Council,03-Nov-16,21969941-14310777,-1198.04,Caretech Community Services,Care Establishment,2 - Operations - Learning Disability,LDP South Cambs Locality - Care,Residential Independent Sector
Cambridgeshire County Council,03-Nov-16,21969942-14310778,-1198.04,Caretech Community Services,Care Establishment,2 - Operations - Learning Disability,LDP South Cambs - Special Needs,Residential Independent Sector
Cambridgeshire County Council,03-Nov-16,21969943-14310779,-1198.04,Caretech Community Services,Care Establishment,2 - Operations - Learning Disability,LDP South Cambs - Special Needs,Residential Independent Sector
Cambridgeshire County Council,03-Nov-16,21969944-14310780,-1198.04,Caretech Community Services,Care Establishment,2 - Operations - Learning Disability,LDP South Cambs - Special Needs,Residential Independent Sector
Cambridgeshire County Council,03-Nov-16,21969945-14310781,-1198.04,Caretech Community Services,Care Establishment,2 - Operations - Learning Disability,LDP South Cambs Locality - Care,Residential Independent Sector
Cambridgeshire County Council,03-Nov-16,21969946-14310782,-1198.04,Caretech Community Services,Care Establishment,2 - Operations - Learning Disability,LDP South Cambs - Special Needs,Residential Independent Sector
Cambridgeshire County Council,03-Nov-16,21969949-14310785,-1198.04,Caretech Community Services,Care Establishment,2 - Operations - Learning Disability,LDP South Cambs - Special Needs,Residential Independent Sector
Cambridgeshire County Council,03-Nov-16,21969954-14310790,-1198.04,Caretech Community Services,Care Establishment,2 - Operations - Learning Disability,LDP South Cambs Locality - Care,Residential Independent Sector
Cambridgeshire County Council,03-Nov-16,21969957-14310793,-1198.04,Caretech Community Services,Care Establishment,2 - Operations - Learning Disability,LDP South Cambs - Special Needs,Residential Independent Sector
Cambridgeshire County Council,03-Nov-16,21969964-14310800,-1198.04,Caretech Community Services,Care Establishment,2 - Operations - Learning Disability,LDP South Cambs Locality - Care,Residential Independent Sector
Cambridgeshire County Council,03-Nov-16,21969966-14310802,-1198.04,Caretech Community Services,Care Establishment,2 - Operations - Learning Disability,LDP South Cambs - Special Needs,Residential Independent Sector
Cambridgeshire County Council,03-Nov-16,21969968-14310804,-1198.04,Caretech Community Services,Care Establishment,2 - Operations - Learning Disability,LDP South Cambs - Special Needs,Residential Independent Sector
Cambridgeshire County Council,03-Nov-16,21969971-14310807,-1198.04,Caretech Community Services,Care Establishment,2 - Operations - Learning Disability,LDP South Cambs Locality - Care,Residential Independent Sector
Cambridgeshire County Council,03-Nov-16,21969972-14310808,-1198.04,Caretech Community Services,Care Establishment,2 - Operations - Learning Disability,LDP South Cambs Locality - Care,Residential Independent Sector
Cambridgeshire County Council,03-Nov-16,21969973-14310809,-1198.04,Caretech Community Services,Care Establishment,2 - Operations - Learning Disability,LDP South Cambs Locality - Care,Residential Independent Sector
Cambridgeshire County Council,03-Nov-16,21969979-14310815,-1198.04,Caretech Community Services,Care Establishment,2 - Operations - Learning Disability,LDP South Cambs Locality - Care,Residential Independent Sector
Cambridgeshire County Council,03-Nov-16,21969981-14310817,-1198.04,Caretech Community Services,Care Establishment,2 - Operations - Learning Disability,LDP South Cambs - Special Needs,Residential Independent Sector
Cambridgeshire County Council,03-Nov-16,21969982-14310818,-1198.04,Caretech Community Services,Care Establishment,2 - Operations - Learning Disability,LDP South Cambs Locality - Care,Residential Independent Sector
Cambridgeshire County Council,03-Nov-16,21969985-14310821,-1198.04,Caretech Community Services,Care Establishment,2 - Operations - Learning Disability,LDP South Cambs Locality - Care,Residential Independent Sector
Cambridgeshire County Council,03-Nov-16,21969924-14310838,-1198.04,Caretech Community Services,Care Establishment,2 - Operations - Learning Disability,LDP South Cambs Locality - Care,Residential Independent Sector
Cambridgeshire County Council,03-Nov-16,21969926-14310840,-1198.04,Caretech Community Services,Care Establishment,2 - Operations - Learning Disability,LDP South Cambs - Special Needs,Residential Independent Sector
Cambridgeshire County Council,03-Nov-16,21969927-14310841,-1198.04,Caretech Community Services,Care Establishment,2 - Operations - Learning Disability,LDP South Cambs Locality - Care,Residential Independent Sector
Cambridgeshire County Council,03-Nov-16,21969928-14310842,-1198.04,Caretech Community Services,Care Establishment,2 - Operations - Learning Disability,LDP South Cambs Locality - Care,Residential Independent Sector
Cambridgeshire County Council,03-Nov-16,21969931-14310845,-1198.04,Caretech Community Services,Care Establishment,2 - Operations - Learning Disability,LDP South Cambs Locality - Care,Residential Independent Sector
Cambridgeshire County Council,03-Nov-16,21969932-14310846,-1198.04,Caretech Community Services,Care Establishment,2 - Operations - Learning Disability,LDP South Cambs Locality - Care,Residential Independent Sector
Cambridgeshire County Council,03-Nov-16,21969933-14310847,-1198.04,Caretech Community Services,Care Establishment,2 - Operations - Learning Disability,LDP South Cambs - Special Needs,Residential Independent Sector
Cambridgeshire County Council,03-Nov-16,21969937-14310851,-1198.04,Caretech Community Services,Care Establishment,2 - Operations - Learning Disability,LDP South Cambs Locality - Care,Residential Independent Sector
Cambridgeshire County Council,11-Nov-16,22026649-14358052,-1198.04,Caretech Community Services,Care Establishment,2 - Operations - Learning Disability,LDP South Cambs Locality - Care,Residential Independent Sector
Cambridgeshire County Council,11-Nov-16,22026651-14358054,-1198.04,Caretech Community Services,Care Establishment,2 - Operations - Learning Disability,LDP South Cambs - Special Needs,Residential Independent Sector
Cambridgeshire County Council,11-Nov-16,22026652-14358055,-1198.04,Caretech Community Services,Care Establishment,2 - Operations - Learning Disability,LDP South Cambs Locality - Care,Residential Independent Sector
Cambridgeshire County Council,11-Nov-16,22026653-14358056,-1198.04,Caretech Community Services,Care Establishment,2 - Operations - Learning Disability,LDP South Cambs - Special Needs,Residential Independent Sector
Cambridgeshire County Council,11-Nov-16,22026657-14358060,-1198.04,Caretech Community Services,Care Establishment,2 - Operations - Learning Disability,LDP South Cambs Locality - Care,Residential Independent Sector
Cambridgeshire County Council,11-Nov-16,22026660-14358063,-1198.04,Caretech Community Services,Care Establishment,2 - Operations - Learning Disability,LDP South Cambs Locality - Care,Residential Independent Sector
Cambridgeshire County Council,11-Nov-16,22026661-14358064,-1198.04,Caretech Community Services,Care Establishment,2 - Operations - Learning Disability,LDP South Cambs - Special Needs,Residential Independent Sector
Cambridgeshire County Council,11-Nov-16,22026662-14358065,-1198.04,Caretech Community Services,Care Establishment,2 - Operations - Learning Disability,LDP South Cambs Locality - Care,Residential Independent Sector
Cambridgeshire County Council,11-Nov-16,22026664-14358067,-1198.04,Caretech Community Services,Care Establishment,2 - Operations - Learning Disability,LDP South Cambs - Special Needs,Residential Independent Sector
Cambridgeshire County Council,11-Nov-16,22026666-14358069,-1198.04,Caretech Community Services,Care Establishment,2 - Operations - Learning Disability,LDP South Cambs Locality - Care,Residential Independent Sector
Cambridgeshire County Council,11-Nov-16,22026668-14358071,-1198.04,Caretech Community Services,Care Establishment,2 - Operations - Learning Disability,LDP South Cambs Locality - Care,Residential Independent Sector
Cambridgeshire County Council,11-Nov-16,22026670-14358073,-1198.04,Caretech Community Services,Care Establishment,2 - Operations - Learning Disability,LDP South Cambs Locality - Care,Residential Independent Sector
Cambridgeshire County Council,11-Nov-16,22026671-14358074,-1198.04,Caretech Community Services,Care Establishment,2 - Operations - Learning Disability,LDP South Cambs - Special Needs,Residential Independent Sector
Cambridgeshire County Council,11-Nov-16,22026672-14358075,-1198.04,Caretech Community Services,Care Establishment,2 - Operations - Learning Disability,LDP South Cambs Locality - Care,Residential Independent Sector
Cambridgeshire County Council,11-Nov-16,22026674-14358077,-1198.04,Caretech Community Services,Care Establishment,2 - Operations - Learning Disability,LDP South Cambs - Special Needs,Residential Independent Sector
Cambridgeshire County Council,11-Nov-16,22026675-14358078,-1198.04,Caretech Community Services,Care Establishment,2 - Operations - Learning Disability,LDP South Cambs Locality - Care,Residential Independent Sector
Cambridgeshire County Council,11-Nov-16,22026679-14358082,-1198.04,Caretech Community Services,Care Establishment,2 - Operations - Learning Disability,LDP South Cambs Locality - Care,Residential Independent Sector
Cambridgeshire County Council,11-Nov-16,22026682-14358085,-1198.04,Caretech Community Services,Care Establishment,2 - Operations - Learning Disability,LDP South Cambs - Special Needs,Residential Independent Sector
Cambridgeshire County Council,11-Nov-16,22026685-14358088,-1198.04,Caretech Community Services,Care Establishment,2 - Operations - Learning Disability,LDP South Cambs Locality - Care,Residential Independent Sector
Cambridgeshire County Council,11-Nov-16,22026687-14358090,-1198.04,Caretech Community Services,Care Establishment,2 - Operations - Learning Disability,LDP South Cambs - Special Needs,Residential Independent Sector
Cambridgeshire County Council,11-Nov-16,22026692-14358095,-1198.04,Caretech Community Services,Care Establishment,2 - Operations - Learning Disability,LDP South Cambs Locality - Care,Residential Independent Sector
Cambridgeshire County Council,11-Nov-16,22026696-14358099,-1198.04,Caretech Community Services,Care Establishment,2 - Operations - Learning Disability,LDP South Cambs Locality - Care,Residential Independent Sector
Cambridgeshire County Council,11-Nov-16,22026697-14358100,-1198.04,Caretech Community Services,Care Establishment,2 - Operations - Learning Disability,LDP South Cambs Locality - Care,Residential Independent Sector
Cambridgeshire County Council,11-Nov-16,22026700-14358103,-1198.04,Caretech Community Services,Care Establishment,2 - Operations - Learning Disability,LDP South Cambs - Special Needs,Residential Independent Sector
Cambridgeshire County Council,11-Nov-16,22026703-14358106,-1198.04,Caretech Community Services,Care Establishment,2 - Operations - Learning Disability,LDP South Cambs - Special Needs,Residential Independent Sector
Cambridgeshire County Council,11-Nov-16,22026704-14358107,-1198.04,Caretech Community Services,Care Establishment,2 - Operations - Learning Disability,LDP South Cambs Locality - Care,Residential Independent Sector
Cambridgeshire County Council,11-Nov-16,22026707-14358110,-1198.04,Caretech Community Services,Care Establishment,2 - Operations - Learning Disability,LDP South Cambs - Special Needs,Residential Independent Sector
Cambridgeshire County Council,24-Nov-16,22073449-14423167,-1198.04,Caretech Community Services,Care Establishment,2 - Operations - Learning Disability,LDP South Cambs Locality - Care,Residential Independent Sector
Cambridgeshire County Council,24-Nov-16,22070750-14423174,-1198.04,Caretech Community Services,Care Establishment,2 - Operations - Learning Disability,LDP South Cambs Locality - Care,Residential Independent Sector
Cambridgeshire County Council,24-Nov-16,22070751-14423175,-1198.04,Caretech Community Services,Care Establishment,2 - Operations - Learning Disability,LDP South Cambs Locality - Care,Residential Independent Sector
Cambridgeshire County Council,24-Nov-16,22070753-14423177,-1198.04,Caretech Community Services,Care Establishment,2 - Operations - Learning Disability,LDP South Cambs Locality - Care,Residential Independent Sector
Cambridgeshire County Council,24-Nov-16,22070754-14423178,-1198.04,Caretech Community Services,Care Establishment,2 - Operations - Learning Disability,LDP South Cambs - Special Needs,Residential Independent Sector
Cambridgeshire County Council,24-Nov-16,22070756-14423180,-1198.04,Caretech Community Services,Care Establishment,2 - Operations - Learning Disability,LDP South Cambs - Special Needs,Residential Independent Sector
Cambridgeshire County Council,24-Nov-16,22070759-14423183,-1198.04,Caretech Community Services,Care Establishment,2 - Operations - Learning Disability,LDP South Cambs - Special Needs,Residential Independent Sector
Cambridgeshire County Council,24-Nov-16,22070760-14423184,-1198.04,Caretech Community Services,Care Establishment,2 - Operations - Learning Disability,LDP South Cambs Locality - Care,Residential Independent Sector
Cambridgeshire County Council,24-Nov-16,22070761-14423185,-1198.04,Caretech Community Services,Care Establishment,2 - Operations - Learning Disability,LDP South Cambs - Special Needs,Residential Independent Sector
Cambridgeshire County Council,24-Nov-16,22070763-14423187,-1198.04,Caretech Community Services,Care Establishment,2 - Operations - Learning Disability,LDP South Cambs Locality - Care,Residential Independent Sector
Cambridgeshire County Council,24-Nov-16,22070764-14423188,-1198.04,Caretech Community Services,Care Establishment,2 - Operations - Learning Disability,LDP South Cambs - Special Needs,Residential Independent Sector
Cambridgeshire County Council,24-Nov-16,22073410-14423196,-1198.04,Caretech Community Services,Care Establishment,2 - Operations - Learning Disability,LDP South Cambs Locality - Care,Residential Independent Sector
Cambridgeshire County Council,24-Nov-16,22073413-14423199,-1198.04,Caretech Community Services,Care Establishment,2 - Operations - Learning Disability,LDP South Cambs - Special Needs,Residential Independent Sector
Cambridgeshire County Council,24-Nov-16,22073418-14423204,-1198.04,Caretech Community Services,Care Establishment,2 - Operations - Learning Disability,LDP South Cambs Locality - Care,Residential Independent Sector
Cambridgeshire County Council,24-Nov-16,22073419-14423205,-1198.04,Caretech Community Services,Care Establishment,2 - Operations - Learning Disability,LDP South Cambs Locality - Care,Residential Independent Sector
Cambridgeshire County Council,24-Nov-16,22073420-14423206,-1198.04,Caretech Community Services,Care Establishment,2 - Operations - Learning Disability,LDP South Cambs Locality - Care,Residential Independent Sector
Cambridgeshire County Council,24-Nov-16,22073422-14423208,-1198.04,Caretech Community Services,Care Establishment,2 - Operations - Learning Disability,LDP South Cambs - Special Needs,Residential Independent Sector
Cambridgeshire County Council,24-Nov-16,22073425-14423211,-1198.04,Caretech Community Services,Care Establishment,2 - Operations - Learning Disability,LDP South Cambs Locality - Care,Residential Independent Sector
Cambridgeshire County Council,24-Nov-16,22093098-14423009,-1198.04,Caretech Community Services,Care Establishment,2 - Operations - Learning Disability,LDP South Cambs - Special Needs,Residential Independent Sector
Cambridgeshire County Council,24-Nov-16,22093099-14423010,-1198.04,Caretech Community Services,Care Establishment,2 - Operations - Learning Disability,LDP South Cambs Locality - Care,Residential Independent Sector
Cambridgeshire County Council,24-Nov-16,22093100-14423011,-1198.04,Caretech Community Services,Care Establishment,2 - Operations - Learning Disability,LDP South Cambs Locality - Care,Residential Independent Sector
Cambridgeshire County Council,24-Nov-16,22093102-14423013,-1198.04,Caretech Community Services,Care Establishment,2 - Operations - Learning Disability,LDP South Cambs Locality - Care,Residential Independent Sector
Cambridgeshire County Council,24-Nov-16,22093103-14423014,-1198.04,Caretech Community Services,Care Establishment,2 - Operations - Learning Disability,LDP South Cambs - Special Needs,Residential Independent Sector
Cambridgeshire County Council,24-Nov-16,22093115-14423026,-1198.04,Caretech Community Services,Care Establishment,2 - Operations - Learning Disability,LDP South Cambs - Special Needs,Residential Independent Sector
Cambridgeshire County Council,24-Nov-16,22093116-14423027,-1198.04,Caretech Community Services,Care Establishment,2 - Operations - Learning Disability,LDP South Cambs Locality - Care,Residential Independent Sector
Cambridgeshire County Council,24-Nov-16,22093119-14423030,-1198.04,Caretech Community Services,Care Establishment,2 - Operations - Learning Disability,LDP South Cambs Locality - Care,Residential Independent Sector
Cambridgeshire County Council,24-Nov-16,22093120-14423031,-1198.04,Caretech Community Services,Care Establishment,2 - Operations - Learning Disability,LDP South Cambs - Special Needs,Residential Independent Sector
Cambridgeshire County Council,24-Nov-16,22093122-14423033,-1198.04,Caretech Community Services,Care Establishment,2 - Operations - Learning Disability,LDP South Cambs Locality - Care,Residential Independent Sector
Cambridgeshire County Council,24-Nov-16,22093123-14423034,-1198.04,Caretech Community Services,Care Establishment,2 - Operations - Learning Disability,LDP South Cambs Locality - Care,Residential Independent Sector
Cambridgeshire County Council,24-Nov-16,22093125-14423036,-1198.04,Caretech Community Services,Care Establishment,2 - Operations - Learning Disability,LDP South Cambs - Special Needs,Residential Independent Sector
Cambridgeshire County Council,24-Nov-16,22093130-14423041,-1198.04,Caretech Community Services,Care Establishment,2 - Operations - Learning Disability,LDP South Cambs Locality - Care,Residential Independent Sector
Cambridgeshire County Council,24-Nov-16,22093133-14423044,-1198.04,Caretech Community Services,Care Establishment,2 - Operations - Learning Disability,LDP South Cambs - Special Needs,Residential Independent Sector
Cambridgeshire County Council,24-Nov-16,22093135-14423046,-1198.04,Caretech Community Services,Care Establishment,2 - Operations - Learning Disability,LDP South Cambs - Special Needs,Residential Independent Sector
Cambridgeshire County Council,24-Nov-16,22093136-14423047,-1198.04,Caretech Community Services,Care Establishment,2 - Operations - Learning Disability,LDP South Cambs Locality - Care,Residential Independent Sector
Cambridgeshire County Council,24-Nov-16,22093137-14423048,-1198.04,Caretech Community Services,Care Establishment,2 - Operations - Learning Disability,LDP South Cambs - Special Needs,Residential Independent Sector
Cambridgeshire County Council,24-Nov-16,22093142-14423053,-1198.04,Caretech Community Services,Care Establishment,2 - Operations - Learning Disability,LDP South Cambs - Special Needs,Residential Independent Sector
Cambridgeshire County Council,24-Nov-16,22093143-14423054,-1198.04,Caretech Community Services,Care Establishment,2 - Operations - Learning Disability,LDP South Cambs - Special Needs,Residential Independent Sector
Cambridgeshire County Council,24-Nov-16,22093145-14423056,-1198.04,Caretech Community Services,Care Establishment,2 - Operations - Learning Disability,LDP South Cambs Locality - Care,Residential Independent Sector
Cambridgeshire County Council,24-Nov-16,22093146-14423057,-1198.04,Caretech Community Services,Care Establishment,2 - Operations - Learning Disability,LDP South Cambs Locality - Care,Residential Independent Sector
Cambridgeshire County Council,24-Nov-16,22093147-14423058,-1198.04,Caretech Community Services,Care Establishment,2 - Operations - Learning Disability,LDP South Cambs - Special Needs,Residential Independent Sector
Cambridgeshire County Council,24-Nov-16,22093148-14423059,-1198.04,Caretech Community Services,Care Establishment,2 - Operations - Learning Disability,LDP South Cambs Locality - Care,Residential Independent Sector
Cambridgeshire County Council,24-Nov-16,22093149-14423060,-1198.04,Caretech Community Services,Care Establishment,2 - Operations - Learning Disability,LDP South Cambs Locality - Care,Residential Independent Sector
Cambridgeshire County Council,24-Nov-16,22093150-14423061,-1198.04,Caretech Community Services,Care Establishment,2 - Operations - Learning Disability,LDP South Cambs - Special Needs,Residential Independent Sector
Cambridgeshire County Council,24-Nov-16,22093151-14423062,-1198.04,Caretech Community Services,Care Establishment,2 - Operations - Learning Disability,LDP South Cambs Locality - Care,Residential Independent Sector
Cambridgeshire County Council,24-Nov-16,22093152-14423063,-1198.04,Caretech Community Services,Care Establishment,2 - Operations - Learning Disability,LDP South Cambs Locality - Care,Residential Independent Sector
Cambridgeshire County Council,24-Nov-16,22073432-14423150,-1198.04,Caretech Community Services,Care Establishment,2 - Operations - Learning Disability,LDP South Cambs - Special Needs,Residential Independent Sector
Cambridgeshire County Council,24-Nov-16,22073433-14423151,-1198.04,Caretech Community Services,Care Establishment,2 - Operations - Learning Disability,LDP South Cambs Locality - Care,Residential Independent Sector
Cambridgeshire County Council,24-Nov-16,22073435-14423153,-1198.04,Caretech Community Services,Care Establishment,2 - Operations - Learning Disability,LDP South Cambs - Special Needs,Residential Independent Sector
Cambridgeshire County Council,24-Nov-16,22073436-14423154,-1198.04,Caretech Community Services,Care Establishment,2 - Operations - Learning Disability,LDP South Cambs Locality - Care,Residential Independent Sector
Cambridgeshire County Council,24-Nov-16,22073438-14423156,-1198.04,Caretech Community Services,Care Establishment,2 - Operations - Learning Disability,LDP South Cambs Locality - Care,Residential Independent Sector
Cambridgeshire County Council,24-Nov-16,22073439-14423157,-1198.04,Caretech Community Services,Care Establishment,2 - Operations - Learning Disability,LDP South Cambs - Special Needs,Residential Independent Sector
Cambridgeshire County Council,24-Nov-16,22073442-14423160,-1198.04,Caretech Community Services,Care Establishment,2 - Operations - Learning Disability,LDP South Cambs - Special Needs,Residential Independent Sector
Cambridgeshire County Council,24-Nov-16,22073445-14423163,-1198.04,Caretech Community Services,Care Establishment,2 - Operations - Learning Disability,LDP South Cambs Locality - Care,Residential Independent Sector
Cambridgeshire County Council,24-Nov-16,22073448-14423166,-1198.04,Caretech Community Services,Care Establishment,2 - Operations - Learning Disability,LDP South Cambs - Special Needs,Residential Independent Sector
Cambridgeshire County Council,11-Nov-16,21885246-14355128,-1173.37,17 Hamlett Close (Voyage),Care Establishment,2 - Operations - Learning Disability,LDP Huntingdonshire Locality - Care,Supported Living
Cambridgeshire County Council,11-Nov-16,21885251-14355133,-1173.37,17 Hamlett Close (Voyage),Care Establishment,2 - Operations - Learning Disability,LDP Huntingdonshire Locality - Care,Supported Living
Cambridgeshire County Council,11-Nov-16,21885252-14355134,-1173.37,17 Hamlett Close (Voyage),Care Establishment,2 - Operations - Learning Disability,LDP Huntingdonshire Locality - Care,Supported Living
Cambridgeshire County Council,11-Nov-16,21885253-14355135,-1173.37,17 Hamlett Close (Voyage),Care Establishment,2 - Operations - Learning Disability,LDP Huntingdonshire Locality - Care,Supported Living
Cambridgeshire County Council,11-Nov-16,21886073-14355064,-1171.93,2 Cheveril Lane (Voyage),Care Establishment,2 - Operations - Learning Disability,LDP Huntingdonshire Locality - Care,Supported Living
Cambridgeshire County Council,11-Nov-16,21886074-14355065,-1171.93,2 Cheveril Lane (Voyage),Care Establishment,2 - Operations - Learning Disability,LDP Huntingdonshire Locality - Care,Supported Living
Cambridgeshire County Council,11-Nov-16,21884951-14355067,-1171.93,2 Cheveril Lane (Voyage),Care Establishment,2 - Operations - Learning Disability,LDP Huntingdonshire Locality - Care,Supported Living
Cambridgeshire County Council,11-Nov-16,21885179-14355072,-1171.93,2 Cheveril Lane (Voyage),Care Establishment,2 - Operations - Learning Disability,LDP Huntingdonshire Locality - Care,Supported Living
Cambridgeshire County Council,11-Nov-16,21885180-14355073,-1171.93,2 Cheveril Lane (Voyage),Care Establishment,2 - Operations - Learning Disability,LDP Huntingdonshire Locality - Care,Supported Living
Cambridgeshire County Council,11-Nov-16,21884943-14355082,-1171.93,2 Cheveril Lane (Voyage),Care Establishment,2 - Operations - Learning Disability,LDP Huntingdonshire Locality - Care,Supported Living
Cambridgeshire County Council,11-Nov-16,21884945-14355084,-1171.93,2 Cheveril Lane (Voyage),Care Establishment,2 - Operations - Learning Disability,LDP Huntingdonshire Locality - Care,Supported Living
Cambridgeshire County Council,11-Nov-16,21884949-14355087,-1171.93,2 Cheveril Lane (Voyage),Care Establishment,2 - Operations - Learning Disability,LDP Huntingdonshire Locality - Care,Supported Living
Cambridgeshire County Council,08-Nov-16,21973856-14325875,-1170,Hinchingbrooke Healthcare Nhs Trust#1,Trust (Other),2 - Commissioning - Older people Pool,CITY-OP (Non-Pool),Other Hired Contract Services
Cambridgeshire County Council,11-Nov-16,22029751-14353270,-1146.04,Macintyre Care,Care Establishment,2 - Operations - Learning Disability,LDP South Cambs Locality - Care,Residential Independent Sector
Cambridgeshire County Council,11-Nov-16,22022763-14353277,-1146.04,Macintyre Care,Care Establishment,2 - Operations - Learning Disability,LDP City Locality - Care,Residential Independent Sector
Cambridgeshire County Council,11-Nov-16,22022767-14353281,-1146.04,Macintyre Care,Care Establishment,2 - Operations - Learning Disability,LDP City Locality - Care,Residential Independent Sector
Cambridgeshire County Council,11-Nov-16,22022769-14353283,-1146.04,Macintyre Care,Care Establishment,2 - Operations - Learning Disability,LDP City Locality - Care,Residential Independent Sector
Cambridgeshire County Council,11-Nov-16,22022771-14353285,-1146.04,Macintyre Care,Care Establishment,2 - Operations - Learning Disability,LDP City Locality - Care,Residential Independent Sector
Cambridgeshire County Council,11-Nov-16,22022774-14353288,-1146.04,Macintyre Care,Care Establishment,2 - Operations - Learning Disability,LDP City Locality - Care,Residential Independent Sector
Cambridgeshire County Council,11-Nov-16,22022775-14353289,-1146.04,Macintyre Care,Care Establishment,2 - Operations - Learning Disability,LDP City Locality - Care,Residential Independent Sector
Cambridgeshire County Council,11-Nov-16,22022776-14353290,-1146.04,Macintyre Care,Care Establishment,2 - Operations - Learning Disability,LDP City Locality - Care,Residential Independent Sector
Cambridgeshire County Council,11-Nov-16,22022777-14353291,-1146.04,Macintyre Care,Care Establishment,2 - Operations - Learning Disability,LDP City Locality - Care,Residential Independent Sector
Cambridgeshire County Council,11-Nov-16,22022778-14353292,-1146.04,Macintyre Care,Care Establishment,2 - Operations - Learning Disability,LDP City Locality - Care,Residential Independent Sector
Cambridgeshire County Council,11-Nov-16,22022779-14353293,-1146.04,Macintyre Care,Care Establishment,2 - Operations - Learning Disability,LDP City Locality - Care,Residential Independent Sector
Cambridgeshire County Council,11-Nov-16,22022783-14353297,-1146.04,Macintyre Care,Care Establishment,2 - Operations - Learning Disability,LDP City Locality - Care,Residential Independent Sector
Cambridgeshire County Council,11-Nov-16,22022784-14353298,-1146.04,Macintyre Care,Care Establishment,2 - Operations - Learning Disability,LDP City Locality - Care,Residential Independent Sector
Cambridgeshire County Council,11-Nov-16,22022785-14353299,-1146.04,Macintyre Care,Care Establishment,2 - Operations - Learning Disability,LDP City Locality - Care,Residential Independent Sector
Cambridgeshire County Council,11-Nov-16,22028772-14353303,-1146.04,Macintyre Care,Care Establishment,2 - Operations - Learning Disability,LDP City Locality - Care,Residential Independent Sector
Cambridgeshire County Council,11-Nov-16,22028774-14353305,-1146.04,Macintyre Care,Care Establishment,2 - Operations - Learning Disability,LDP City Locality - Care,Residential Independent Sector
Cambridgeshire County Council,11-Nov-16,22028777-14353308,-1146.04,Macintyre Care,Care Establishment,2 - Operations - Learning Disability,LDP City Locality - Care,Residential Independent Sector
Cambridgeshire County Council,11-Nov-16,22028778-14353309,-1146.04,Macintyre Care,Care Establishment,2 - Operations - Learning Disability,LDP City Locality - Care,Residential Independent Sector
Cambridgeshire County Council,11-Nov-16,22028779-14353310,-1146.04,Macintyre Care,Care Establishment,2 - Operations - Learning Disability,LDP City Locality - Care,Residential Independent Sector
Cambridgeshire County Council,11-Nov-16,22028781-14353312,-1146.04,Macintyre Care,Care Establishment,2 - Operations - Learning Disability,LDP City Locality - Care,Residential Independent Sector
Cambridgeshire County Council,11-Nov-16,22028786-14353317,-1146.04,Macintyre Care,Care Establishment,2 - Operations - Learning Disability,LDP City Locality - Care,Residential Independent Sector
Cambridgeshire County Council,11-Nov-16,22028787-14353318,-1146.04,Macintyre Care,Care Establishment,2 - Operations - Learning Disability,LDP City Locality - Care,Residential Independent Sector
Cambridgeshire County Council,11-Nov-16,22028788-14353319,-1146.04,Macintyre Care,Care Establishment,2 - Operations - Learning Disability,LDP City Locality - Care,Residential Independent Sector
Cambridgeshire County Council,11-Nov-16,22028790-14353321,-1146.04,Macintyre Care,Care Establishment,2 - Operations - Learning Disability,LDP City Locality - Care,Residential Independent Sector
Cambridgeshire County Council,11-Nov-16,22028793-14353324,-1146.04,Macintyre Care,Care Establishment,2 - Operations - Learning Disability,LDP City Locality - Care,Residential Independent Sector
Cambridgeshire County Council,11-Nov-16,22028794-14353325,-1146.04,Macintyre Care,Care Establishment,2 - Operations - Learning Disability,LDP City Locality - Care,Residential Independent Sector
Cambridgeshire County Council,11-Nov-16,22028795-14353326,-1146.04,Macintyre Care,Care Establishment,2 - Operations - Learning Disability,LDP City Locality - Care,Residential Independent Sector
Cambridgeshire County Council,11-Nov-16,22028796-14353327,-1146.04,Macintyre Care,Care Establishment,2 - Operations - Learning Disability,LDP City Locality - Care,Residential Independent Sector
Cambridgeshire County Council,11-Nov-16,22027771-14353329,-1146.04,Macintyre Care,Care Establishment,2 - Operations - Learning Disability,LDP City Locality - Care,Residential Independent Sector
Cambridgeshire County Council,11-Nov-16,22027774-14353332,-1146.04,Macintyre Care,Care Establishment,2 - Operations - Learning Disability,LDP City Locality - Care,Residential Independent Sector
Cambridgeshire County Council,11-Nov-16,22027775-14353333,-1146.04,Macintyre Care,Care Establishment,2 - Operations - Learning Disability,LDP City Locality - Care,Residential Independent Sector
Cambridgeshire County Council,11-Nov-16,22027776-14353334,-1146.04,Macintyre Care,Care Establishment,2 - Operations - Learning Disability,LDP City Locality - Care,Residential Independent Sector
Cambridgeshire County Council,11-Nov-16,22027782-14353340,-1146.04,Macintyre Care,Care Establishment,2 - Operations - Learning Disability,LDP City Locality - Care,Residential Independent Sector
Cambridgeshire County Council,11-Nov-16,22027787-14353345,-1146.04,Macintyre Care,Care Establishment,2 - Operations - Learning Disability,LDP City Locality - Care,Residential Independent Sector
Cambridgeshire County Council,11-Nov-16,22027791-14353349,-1146.04,Macintyre Care,Care Establishment,2 - Operations - Learning Disability,LDP City Locality - Care,Residential Independent Sector
Cambridgeshire County Council,11-Nov-16,22030080-14353200,-1146.04,Macintyre Care,Care Establishment,2 - Operations - Learning Disability,LDP South Cambs Locality - Care,Residential Independent Sector
Cambridgeshire County Council,11-Nov-16,22030081-14353201,-1146.04,Macintyre Care,Care Establishment,2 - Operations - Learning Disability,LDP South Cambs Locality - Care,Residential Independent Sector
Cambridgeshire County Council,11-Nov-16,22030082-14353202,-1146.04,Macintyre Care,Care Establishment,2 - Operations - Learning Disability,LDP South Cambs Locality - Care,Residential Independent Sector
Cambridgeshire County Council,11-Nov-16,22030078-14353207,-1146.04,Macintyre Care,Care Establishment,2 - Operations - Learning Disability,LDP South Cambs Locality - Care,Residential Independent Sector
Cambridgeshire County Council,11-Nov-16,22029686-14353209,-1146.04,Macintyre Care,Care Establishment,2 - Operations - Learning Disability,LDP South Cambs Locality - Care,Residential Independent Sector
Cambridgeshire County Council,11-Nov-16,22029688-14353211,-1146.04,Macintyre Care,Care Establishment,2 - Operations - Learning Disability,LDP South Cambs Locality - Care,Residential Independent Sector
Cambridgeshire County Council,11-Nov-16,22029689-14353212,-1146.04,Macintyre Care,Care Establishment,2 - Operations - Learning Disability,LDP South Cambs Locality - Care,Residential Independent Sector
Cambridgeshire County Council,11-Nov-16,22029692-14353215,-1146.04,Macintyre Care,Care Establishment,2 - Operations - Learning Disability,LDP South Cambs Locality - Care,Residential Independent Sector
Cambridgeshire County Council,11-Nov-16,22029693-14353216,-1146.04,Macintyre Care,Care Establishment,2 - Operations - Learning Disability,LDP South Cambs Locality - Care,Residential Independent Sector
Cambridgeshire County Council,11-Nov-16,22029698-14353221,-1146.04,Macintyre Care,Care Establishment,2 - Operations - Learning Disability,LDP South Cambs Locality - Care,Residential Independent Sector
Cambridgeshire County Council,11-Nov-16,22029699-14353222,-1146.04,Macintyre Care,Care Establishment,2 - Operations - Learning Disability,LDP South Cambs Locality - Care,Residential Independent Sector
Cambridgeshire County Council,11-Nov-16,22029701-14353224,-1146.04,Macintyre Care,Care Establishment,2 - Operations - Learning Disability,LDP South Cambs Locality - Care,Residential Independent Sector
Cambridgeshire County Council,11-Nov-16,22029702-14353225,-1146.04,Macintyre Care,Care Establishment,2 - Operations - Learning Disability,LDP South Cambs Locality - Care,Residential Independent Sector
Cambridgeshire County Council,11-Nov-16,22029705-14353228,-1146.04,Macintyre Care,Care Establishment,2 - Operations - Learning Disability,LDP South Cambs Locality - Care,Residential Independent Sector
Cambridgeshire County Council,11-Nov-16,22029706-14353229,-1146.04,Macintyre Care,Care Establishment,2 - Operations - Learning Disability,LDP South Cambs Locality - Care,Residential Independent Sector
Cambridgeshire County Council,11-Nov-16,22029707-14353230,-1146.04,Macintyre Care,Care Establishment,2 - Operations - Learning Disability,LDP South Cambs Locality - Care,Residential Independent Sector
Cambridgeshire County Council,11-Nov-16,22029715-14353237,-1146.04,Macintyre Care,Care Establishment,2 - Operations - Learning Disability,LDP South Cambs Locality - Care,Residential Independent Sector
Cambridgeshire County Council,11-Nov-16,22029716-14353238,-1146.04,Macintyre Care,Care Establishment,2 - Operations - Learning Disability,LDP South Cambs Locality - Care,Residential Independent Sector
Cambridgeshire County Council,11-Nov-16,22029717-14353239,-1146.04,Macintyre Care,Care Establishment,2 - Operations - Learning Disability,LDP South Cambs Locality - Care,Residential Independent Sector
Cambridgeshire County Council,11-Nov-16,22029724-14353244,-1146.04,Macintyre Care,Care Establishment,2 - Operations - Learning Disability,LDP South Cambs Locality - Care,Residential Independent Sector
Cambridgeshire County Council,11-Nov-16,22029726-14353246,-1146.04,Macintyre Care,Care Establishment,2 - Operations - Learning Disability,LDP South Cambs Locality - Care,Residential Independent Sector
Cambridgeshire County Council,11-Nov-16,22029729-14353249,-1146.04,Macintyre Care,Care Establishment,2 - Operations - Learning Disability,LDP South Cambs Locality - Care,Residential Independent Sector
Cambridgeshire County Council,11-Nov-16,22029730-14353250,-1146.04,Macintyre Care,Care Establishment,2 - Operations - Learning Disability,LDP South Cambs Locality - Care,Residential Independent Sector
Cambridgeshire County Council,11-Nov-16,22029733-14353252,-1146.04,Macintyre Care,Care Establishment,2 - Operations - Learning Disability,LDP South Cambs Locality - Care,Residential Independent Sector
Cambridgeshire County Council,11-Nov-16,22029734-14353253,-1146.04,Macintyre Care,Care Establishment,2 - Operations - Learning Disability,LDP South Cambs Locality - Care,Residential Independent Sector
Cambridgeshire County Council,11-Nov-16,22029736-14353255,-1146.04,Macintyre Care,Care Establishment,2 - Operations - Learning Disability,LDP South Cambs Locality - Care,Residential Independent Sector
Cambridgeshire County Council,11-Nov-16,22029737-14353256,-1146.04,Macintyre Care,Care Establishment,2 - Operations - Learning Disability,LDP South Cambs Locality - Care,Residential Independent Sector
Cambridgeshire County Council,11-Nov-16,22029739-14353258,-1146.04,Macintyre Care,Care Establishment,2 - Operations - Learning Disability,LDP South Cambs Locality - Care,Residential Independent Sector
Cambridgeshire County Council,11-Nov-16,22029741-14353260,-1146.04,Macintyre Care,Care Establishment,2 - Operations - Learning Disability,LDP South Cambs Locality - Care,Residential Independent Sector
Cambridgeshire County Council,11-Nov-16,22029743-14353262,-1146.04,Macintyre Care,Care Establishment,2 - Operations - Learning Disability,LDP South Cambs Locality - Care,Residential Independent Sector
Cambridgeshire County Council,11-Nov-16,22029744-14353263,-1146.04,Macintyre Care,Care Establishment,2 - Operations - Learning Disability,LDP South Cambs Locality - Care,Residential Independent Sector
Cambridgeshire County Council,11-Nov-16,22029746-14353265,-1146.04,Macintyre Care,Care Establishment,2 - Operations - Learning Disability,LDP South Cambs Locality - Care,Residential Independent Sector
Cambridgeshire County Council,11-Nov-16,22029747-14353266,-1146.04,Macintyre Care,Care Establishment,2 - Operations - Learning Disability,LDP South Cambs Locality - Care,Residential Independent Sector
Cambridgeshire County Council,11-Nov-16,21884701-14355145,-1132.54,17 Hamlett Close (Voyage),Care Establishment,2 - Operations - Learning Disability,LDP Huntingdonshire Locality - Care,Supported Living
Cambridgeshire County Council,11-Nov-16,21884702-14355146,-1132.54,17 Hamlett Close (Voyage),Care Establishment,2 - Operations - Learning Disability,LDP Huntingdonshire Locality - Care,Supported Living
Cambridgeshire County Council,11-Nov-16,21884703-14355147,-1132.54,17 Hamlett Close (Voyage),Care Establishment,2 - Operations - Learning Disability,LDP Huntingdonshire Locality - Care,Supported Living
Cambridgeshire County Council,11-Nov-16,21884706-14355150,-1132.54,17 Hamlett Close (Voyage),Care Establishment,2 - Operations - Learning Disability,LDP Huntingdonshire Locality - Care,Supported Living
Cambridgeshire County Council,11-Nov-16,21884264-14355137,-1132.52,17 Hamlett Close (Voyage),Care Establishment,2 - Operations - Learning Disability,LDP Huntingdonshire Locality - Care,Supported Living
Cambridgeshire County Council,11-Nov-16,21884265-14355138,-1132.52,17 Hamlett Close (Voyage),Care Establishment,2 - Operations - Learning Disability,LDP Huntingdonshire Locality - Care,Supported Living
Cambridgeshire County Council,11-Nov-16,21884266-14355139,-1132.52,17 Hamlett Close (Voyage),Care Establishment,2 - Operations - Learning Disability,LDP Huntingdonshire Locality - Care,Supported Living
Cambridgeshire County Council,11-Nov-16,21884269-14355142,-1132.52,17 Hamlett Close (Voyage),Care Establishment,2 - Operations - Learning Disability,LDP Huntingdonshire Locality - Care,Supported Living
Cambridgeshire County Council,29-Nov-16,22104231-14442681,-1085.71,Brighter Futures Foster Care,Care Establishment,S&C,Placements - Social Care,Agency Placements - In Cambs
Cambridgeshire County Council,11-Nov-16,22032236-14353424,-1079.03,Macintyre Care,Care Establishment,2 - Operations - Learning Disability,LDP City Locality - Care,Residential Independent Sector
Cambridgeshire County Council,11-Nov-16,22033267-14353351,-1079.03,Macintyre Care,Care Establishment,2 - Operations - Learning Disability,LDP City Locality - Care,Residential Independent Sector
Cambridgeshire County Council,11-Nov-16,22033268-14353352,-1079.03,Macintyre Care,Care Establishment,2 - Operations - Learning Disability,LDP City Locality - Care,Residential Independent Sector
Cambridgeshire County Council,11-Nov-16,22033269-14353353,-1079.03,Macintyre Care,Care Establishment,2 - Operations - Learning Disability,LDP City Locality - Care,Residential Independent Sector
Cambridgeshire County Council,11-Nov-16,22033270-14353354,-1079.03,Macintyre Care,Care Establishment,2 - Operations - Learning Disability,LDP City Locality - Care,Residential Independent Sector
Cambridgeshire County Council,11-Nov-16,22033271-14353355,-1079.03,Macintyre Care,Care Establishment,2 - Operations - Learning Disability,LDP City Locality - Care,Residential Independent Sector
Cambridgeshire County Council,11-Nov-16,22033274-14353358,-1079.03,Macintyre Care,Care Establishment,2 - Operations - Learning Disability,LDP City Locality - Care,Residential Independent Sector
Cambridgeshire County Council,11-Nov-16,22033275-14353359,-1079.03,Macintyre Care,Care Establishment,2 - Operations - Learning Disability,LDP City Locality - Care,Residential Independent Sector
Cambridgeshire County Council,11-Nov-16,22033276-14353360,-1079.03,Macintyre Care,Care Establishment,2 - Operations - Learning Disability,LDP City Locality - Care,Residential Independent Sector
Cambridgeshire County Council,11-Nov-16,22033277-14353361,-1079.03,Macintyre Care,Care Establishment,2 - Operations - Learning Disability,LDP City Locality - Care,Residential Independent Sector
Cambridgeshire County Council,11-Nov-16,22033278-14353362,-1079.03,Macintyre Care,Care Establishment,2 - Operations - Learning Disability,LDP City Locality - Care,Residential Independent Sector
Cambridgeshire County Council,11-Nov-16,22033285-14353369,-1079.03,Macintyre Care,Care Establishment,2 - Operations - Learning Disability,LDP City Locality - Care,Residential Independent Sector
Cambridgeshire County Council,11-Nov-16,22033288-14353372,-1079.03,Macintyre Care,Care Establishment,2 - Operations - Learning Disability,LDP City Locality - Care,Residential Independent Sector
Cambridgeshire County Council,11-Nov-16,22033290-14353374,-1079.03,Macintyre Care,Care Establishment,2 - Operations - Learning Disability,LDP City Locality - Care,Residential Independent Sector
Cambridgeshire County Council,11-Nov-16,22033294-14353378,-1079.03,Macintyre Care,Care Establishment,2 - Operations - Learning Disability,LDP City Locality - Care,Residential Independent Sector
Cambridgeshire County Council,11-Nov-16,22033295-14353379,-1079.03,Macintyre Care,Care Establishment,2 - Operations - Learning Disability,LDP City Locality - Care,Residential Independent Sector
Cambridgeshire County Council,11-Nov-16,22033297-14353381,-1079.03,Macintyre Care,Care Establishment,2 - Operations - Learning Disability,LDP City Locality - Care,Residential Independent Sector
Cambridgeshire County Council,11-Nov-16,22033299-14353383,-1079.03,Macintyre Care,Care Establishment,2 - Operations - Learning Disability,LDP City Locality - Care,Residential Independent Sector
Cambridgeshire County Council,11-Nov-16,22033300-14353384,-1079.03,Macintyre Care,Care Establishment,2 - Operations - Learning Disability,LDP City Locality - Care,Residential Independent Sector
Cambridgeshire County Council,11-Nov-16,22033304-14353388,-1079.03,Macintyre Care,Care Establishment,2 - Operations - Learning Disability,LDP City Locality - Care,Residential Independent Sector
Cambridgeshire County Council,11-Nov-16,22032241-14353391,-1079.03,Macintyre Care,Care Establishment,2 - Operations - Learning Disability,LDP City Locality - Care,Residential Independent Sector
Cambridgeshire County Council,11-Nov-16,22032242-14353392,-1079.03,Macintyre Care,Care Establishment,2 - Operations - Learning Disability,LDP City Locality - Care,Residential Independent Sector
Cambridgeshire County Council,11-Nov-16,22032246-14353396,-1079.03,Macintyre Care,Care Establishment,2 - Operations - Learning Disability,LDP City Locality - Care,Residential Independent Sector
Cambridgeshire County Council,11-Nov-16,22032210-14353398,-1079.03,Macintyre Care,Care Establishment,2 - Operations - Learning Disability,LDP City Locality - Care,Residential Independent Sector
Cambridgeshire County Council,11-Nov-16,22032212-14353400,-1079.03,Macintyre Care,Care Establishment,2 - Operations - Learning Disability,LDP City Locality - Care,Residential Independent Sector
Cambridgeshire County Council,11-Nov-16,22032213-14353401,-1079.03,Macintyre Care,Care Establishment,2 - Operations - Learning Disability,LDP City Locality - Care,Residential Independent Sector
Cambridgeshire County Council,11-Nov-16,22032215-14353403,-1079.03,Macintyre Care,Care Establishment,2 - Operations - Learning Disability,LDP City Locality - Care,Residential Independent Sector
Cambridgeshire County Council,11-Nov-16,22032223-14353411,-1079.03,Macintyre Care,Care Establishment,2 - Operations - Learning Disability,LDP City Locality - Care,Residential Independent Sector
Cambridgeshire County Council,11-Nov-16,22032224-14353412,-1079.03,Macintyre Care,Care Establishment,2 - Operations - Learning Disability,LDP City Locality - Care,Residential Independent Sector
Cambridgeshire County Council,11-Nov-16,22032226-14353414,-1079.03,Macintyre Care,Care Establishment,2 - Operations - Learning Disability,LDP City Locality - Care,Residential Independent Sector
Cambridgeshire County Council,11-Nov-16,22032229-14353417,-1079.03,Macintyre Care,Care Establishment,2 - Operations - Learning Disability,LDP City Locality - Care,Residential Independent Sector
Cambridgeshire County Council,11-Nov-16,22032230-14353418,-1079.03,Macintyre Care,Care Establishment,2 - Operations - Learning Disability,LDP City Locality - Care,Residential Independent Sector
Cambridgeshire County Council,11-Nov-16,22032232-14353420,-1079.03,Macintyre Care,Care Establishment,2 - Operations - Learning Disability,LDP City Locality - Care,Residential Independent Sector
Cambridgeshire County Council,11-Nov-16,22032233-14353421,-1079.03,Macintyre Care,Care Establishment,2 - Operations - Learning Disability,LDP City Locality - Care,Residential Independent Sector
Cambridgeshire County Council,15-Nov-16,21973027-14377115,-1066,Whippet Coaches Limited,Trade Supplier,S&C,H to S Transport - Secondary,Home to School - Contract
Cambridgeshire County Council,21-Nov-16,22055136-14404700,-1066,Whippet Coaches Limited,Trade Supplier,S&C,H to S Transport - Secondary,Home to School - Contract
Cambridgeshire County Council,11-Nov-16,22017883-14353631,-1029.61,Atlas Home Support,Care Establishment,2 - Operations - Learning Disability,LDP City Locality - Care,Day and Domicillary Care Independent Sector
Cambridgeshire County Council,15-Nov-16,21909117-14377380,-1029.6,Thoroughbreads,Trade Supplier,LRNG,Professional Development Centre - Cambri,Provisions - General
Cambridgeshire County Council,03-Nov-16,21969977-14310813,-1026.89,Caretech Community Services,Care Establishment,2 - Operations - Learning Disability,LDP South Cambs - Special Needs,Residential Independent Sector
Cambridgeshire County Council,11-Nov-16,22026659-14358062,-1026.89,Caretech Community Services,Care Establishment,2 - Operations - Learning Disability,LDP South Cambs Locality - Care,Residential Independent Sector
Cambridgeshire County Council,24-Nov-16,22073409-14423195,-1026.89,Caretech Community Services,Care Establishment,2 - Operations - Learning Disability,LDP South Cambs - Special Needs,Residential Independent Sector
Cambridgeshire County Council,24-Nov-16,22093138-14423049,-1026.89,Caretech Community Services,Care Establishment,2 - Operations - Learning Disability,LDP South Cambs - Special Needs,Residential Independent Sector
Cambridgeshire County Council,11-Nov-16,22037205-14353768,-1018.21,Redacted Personal Data,Individual,3 - Operations - Countywide Services,Countywide PD Service - Care,Direct Payments - Social Services
Cambridgeshire County Council,11-Nov-16,22037208-14353771,-1018.21,Redacted Personal Data,Individual,3 - Operations - Countywide Services,Countywide PD Service - Care,Direct Payments - Social Services
Cambridgeshire County Council,11-Nov-16,22037209-14353772,-1018.21,Redacted Personal Data,Individual,3 - Operations - Countywide Services,Countywide PD Service - Care,Direct Payments - Social Services
Cambridgeshire County Council,11-Nov-16,22037212-14353775,-1018.21,Redacted Personal Data,Individual,3 - Operations - Countywide Services,Countywide PD Service - Care,Direct Payments - Social Services
Cambridgeshire County Council,11-Nov-16,22037214-14353777,-1018.21,Redacted Personal Data,Individual,3 - Operations - Countywide Services,Countywide PD Service - Care,Direct Payments - Social Services
Cambridgeshire County Council,11-Nov-16,22037215-14353778,-1018.21,Redacted Personal Data,Individual,3 - Operations - Countywide Services,Countywide PD Service - Care,Direct Payments - Social Services
Cambridgeshire County Council,11-Nov-16,22037216-14353779,-1018.21,Redacted Personal Data,Individual,3 - Operations - Countywide Services,Countywide PD Service - Care,Direct Payments - Social Services
Cambridgeshire County Council,11-Nov-16,22037217-14353780,-1018.21,Redacted Personal Data,Individual,3 - Operations - Countywide Services,Countywide PD Service - Care,Direct Payments - Social Services
Cambridgeshire County Council,11-Nov-16,22037220-14353783,-1018.21,Redacted Personal Data,Individual,3 - Operations - Countywide Services,Countywide PD Service - Care,Direct Payments - Social Services
Cambridgeshire County Council,11-Nov-16,22037224-14353787,-1018.21,Redacted Personal Data,Individual,3 - Operations - Countywide Services,Countywide PD Service - Care,Direct Payments - Social Services
Cambridgeshire County Council,17-Nov-16,22023686-14398767,-1010.03,The Manor Cheshire Home,Care Establishment,3 - Operations - Countywide Services,Countywide PD Service - Care,Residential Independent Sector
Cambridgeshire County Council,17-Nov-16,22023691-14398768,-1010.03,The Manor Cheshire Home,Care Establishment,3 - Operations - Countywide Services,Countywide PD Service - Care,Residential Independent Sector
Cambridgeshire County Council,17-Nov-16,22023692-14398769,-1010.03,The Manor Cheshire Home,Care Establishment,3 - Operations - Countywide Services,Countywide PD Service - Care,Residential Independent Sector
Cambridgeshire County Council,11-Nov-16,21885313-14355074,-1001.03,2 Cheveril Lane (Voyage),Care Establishment,2 - Operations - Learning Disability,LDP Huntingdonshire Locality - Care,Supported Living
Cambridgeshire County Council,11-Nov-16,21885315-14355076,-1001.03,2 Cheveril Lane (Voyage),Care Establishment,2 - Operations - Learning Disability,LDP Huntingdonshire Locality - Care,Supported Living
Cambridgeshire County Council,11-Nov-16,21885316-14355077,-1001.03,2 Cheveril Lane (Voyage),Care Establishment,2 - Operations - Learning Disability,LDP Huntingdonshire Locality - Care,Supported Living
Cambridgeshire County Council,11-Nov-16,21885318-14355079,-1001.03,2 Cheveril Lane (Voyage),Care Establishment,2 - Operations - Learning Disability,LDP Huntingdonshire Locality - Care,Supported Living
Cambridgeshire County Council,15-Nov-16,22048174-14376883,-998.4,Phonak Uk Ltd,Trade Supplier,E&P,Hearing Impaired Service,Educational equipment
Cambridgeshire County Council,29-Nov-16,22104227-14442680,-977.17,Brighter Futures Foster Care,Care Establishment,S&C,Placements - Social Care,Agency Placements - In Cambs
Cambridgeshire County Council,11-Nov-16,21886465-14355120,-969.14,17 Hamlett Close (Voyage),Care Establishment,2 - Operations - Learning Disability,LDP Huntingdonshire Locality - Care,Supported Living
Cambridgeshire County Council,11-Nov-16,21886467-14355122,-969.14,17 Hamlett Close (Voyage),Care Establishment,2 - Operations - Learning Disability,LDP Huntingdonshire Locality - Care,Supported Living
Cambridgeshire County Council,11-Nov-16,21886468-14355123,-969.14,17 Hamlett Close (Voyage),Care Establishment,2 - Operations - Learning Disability,LDP Huntingdonshire Locality - Care,Supported Living
Cambridgeshire County Council,11-Nov-16,21886471-14355126,-969.14,17 Hamlett Close (Voyage),Care Establishment,2 - Operations - Learning Disability,LDP Huntingdonshire Locality - Care,Supported Living
Cambridgeshire County Council,11-Nov-16,22024097-14357992,-959.2,Caretech Community Services,Care Establishment,2 - Operations - Learning Disability,LDP Huntingdonshire Locality - Care,Residential Independent Sector
Cambridgeshire County Council,11-Nov-16,21913052-14349762,-944.25,Glennfield Care Centre (Op),Care Establishment,2 - Commissioning - Older people Pool,Older People Mental Health Fenland,Nursing Independent Sector
Cambridgeshire County Council,11-Nov-16,21913056-14349763,-944.25,Glennfield Care Centre (Op),Care Establishment,2 - Commissioning - Older people Pool,Older People Mental Health Fenland,Nursing Independent Sector
Cambridgeshire County Council,11-Nov-16,21913057-14349764,-944.25,Glennfield Care Centre (Op),Care Establishment,2 - Commissioning - Older people Pool,Older People Mental Health Fenland,Nursing Independent Sector
Cambridgeshire County Council,11-Nov-16,21913065-14349765,-944.25,Glennfield Care Centre (Op),Care Establishment,2 - Commissioning - Older people Pool,Older People Mental Health Fenland,Nursing Independent Sector
Cambridgeshire County Council,11-Nov-16,21913067-14349766,-944.25,Glennfield Care Centre (Op),Care Establishment,2 - Commissioning - Older people Pool,Older People Mental Health Fenland,Nursing Independent Sector
Cambridgeshire County Council,11-Nov-16,21913068-14349767,-944.25,Glennfield Care Centre (Op),Care Establishment,2 - Commissioning - Older people Pool,Older People Mental Health Fenland,Nursing Independent Sector
Cambridgeshire County Council,11-Nov-16,21913072-14349768,-944.25,Glennfield Care Centre (Op),Care Establishment,2 - Commissioning - Older people Pool,Older People Mental Health Fenland,Nursing Independent Sector
Cambridgeshire County Council,11-Nov-16,21913074-14349769,-944.25,Glennfield Care Centre (Op),Care Establishment,2 - Commissioning - Older people Pool,Older People Mental Health Fenland,Nursing Independent Sector
Cambridgeshire County Council,08-Nov-16,21985888-14325706,-939.36,Vwfs Uk Ltd T/A Vw Group Leasing,Trade Supplier,LGSS Managed,LGSS Property Trading Recharges,Leased Vehicle Costs
Cambridgeshire County Council,11-Nov-16,21969797-14351458,-927.09,Voyage,Care Establishment,2 - Operations - Learning Disability,LDP City Locality - Care,Supported Living
Cambridgeshire County Council,11-Nov-16,21969806-14351463,-927.09,Voyage,Care Establishment,2 - Operations - Learning Disability,LDP City Locality - Care,Supported Living
Cambridgeshire County Council,11-Nov-16,21969807-14351464,-927.09,Voyage,Care Establishment,2 - Operations - Learning Disability,LDP City Locality - Care,Supported Living
Cambridgeshire County Council,11-Nov-16,22034778-14349254,-926.11,Making Space#1,Care Establishment,3 - Operations - Countywide Services,Countywide PD Service - Care,Nursing Independent Sector
Cambridgeshire County Council,11-Nov-16,22034782-14349258,-926.11,Making Space#1,Care Establishment,3 - Operations - Countywide Services,Countywide PD Service - Care,Nursing Independent Sector
Cambridgeshire County Council,11-Nov-16,22034784-14349260,-926.11,Making Space#1,Care Establishment,3 - Operations - Countywide Services,Countywide PD Service - Care,Nursing Independent Sector
Cambridgeshire County Council,11-Nov-16,22034785-14349261,-926.11,Making Space#1,Care Establishment,3 - Operations - Countywide Services,Countywide PD Service - Care,Nursing Independent Sector
Cambridgeshire County Council,11-Nov-16,22034786-14349262,-926.11,Making Space#1,Care Establishment,3 - Operations - Countywide Services,Countywide PD Service - Care,Nursing Independent Sector
Cambridgeshire County Council,11-Nov-16,22034787-14349263,-926.11,Making Space#1,Care Establishment,3 - Operations - Countywide Services,Countywide PD Service - Care,Nursing Independent Sector
Cambridgeshire County Council,11-Nov-16,22034789-14349265,-926.11,Making Space#1,Care Establishment,3 - Operations - Countywide Services,Countywide PD Service - Care,Nursing Independent Sector
Cambridgeshire County Council,11-Nov-16,22034761-14349266,-926.11,Making Space#1,Care Establishment,3 - Operations - Countywide Services,Countywide PD Service - Care,Nursing Independent Sector
Cambridgeshire County Council,11-Nov-16,22034762-14349267,-926.11,Making Space#1,Care Establishment,3 - Operations - Countywide Services,Countywide PD Service - Care,Nursing Independent Sector
Cambridgeshire County Council,11-Nov-16,22034765-14349270,-926.11,Making Space#1,Care Establishment,3 - Operations - Countywide Services,Countywide PD Service - Care,Nursing Independent Sector
Cambridgeshire County Council,11-Nov-16,22034767-14349272,-926.11,Making Space#1,Care Establishment,3 - Operations - Countywide Services,Countywide PD Service - Care,Nursing Independent Sector
Cambridgeshire County Council,11-Nov-16,22034768-14349273,-926.11,Making Space#1,Care Establishment,3 - Operations - Countywide Services,Countywide PD Service - Care,Nursing Independent Sector
Cambridgeshire County Council,11-Nov-16,22034771-14349276,-926.11,Making Space#1,Care Establishment,3 - Operations - Countywide Services,Countywide PD Service - Care,Nursing Independent Sector
Cambridgeshire County Council,11-Nov-16,22034773-14349278,-926.11,Making Space#1,Care Establishment,3 - Operations - Countywide Services,Countywide PD Service - Care,Nursing Independent Sector
Cambridgeshire County Council,11-Nov-16,22032860-14349279,-926.11,Making Space#1,Care Establishment,3 - Operations - Countywide Services,Countywide PD Service - Care,Nursing Independent Sector
Cambridgeshire County Council,11-Nov-16,22032861-14349280,-926.11,Making Space#1,Care Establishment,3 - Operations - Countywide Services,Countywide PD Service - Care,Nursing Independent Sector
Cambridgeshire County Council,11-Nov-16,22032862-14349281,-926.11,Making Space#1,Care Establishment,3 - Operations - Countywide Services,Countywide PD Service - Care,Nursing Independent Sector
Cambridgeshire County Council,11-Nov-16,22032863-14349282,-926.11,Making Space#1,Care Establishment,3 - Operations - Countywide Services,Countywide PD Service - Care,Nursing Independent Sector
Cambridgeshire County Council,11-Nov-16,22032865-14349284,-926.11,Making Space#1,Care Establishment,3 - Operations - Countywide Services,Countywide PD Service - Care,Nursing Independent Sector
Cambridgeshire County Council,11-Nov-16,22032866-14349285,-926.11,Making Space#1,Care Establishment,3 - Operations - Countywide Services,Countywide PD Service - Care,Nursing Independent Sector
Cambridgeshire County Council,11-Nov-16,22032867-14349286,-926.11,Making Space#1,Care Establishment,3 - Operations - Countywide Services,Countywide PD Service - Care,Nursing Independent Sector
Cambridgeshire County Council,11-Nov-16,22032874-14349293,-926.11,Making Space#1,Care Establishment,3 - Operations - Countywide Services,Countywide PD Service - Care,Nursing Independent Sector
Cambridgeshire County Council,11-Nov-16,22032875-14349294,-926.11,Making Space#1,Care Establishment,3 - Operations - Countywide Services,Countywide PD Service - Care,Nursing Independent Sector
Cambridgeshire County Council,11-Nov-16,22032877-14349296,-926.11,Making Space#1,Care Establishment,3 - Operations - Countywide Services,Countywide PD Service - Care,Nursing Independent Sector
Cambridgeshire County Council,11-Nov-16,22032880-14349299,-926.11,Making Space#1,Care Establishment,3 - Operations - Countywide Services,Countywide PD Service - Care,Nursing Independent Sector
Cambridgeshire County Council,11-Nov-16,22032883-14349302,-926.11,Making Space#1,Care Establishment,3 - Operations - Countywide Services,Countywide PD Service - Care,Nursing Independent Sector
Cambridgeshire County Council,11-Nov-16,22032885-14349304,-926.11,Making Space#1,Care Establishment,3 - Operations - Countywide Services,Countywide PD Service - Care,Nursing Independent Sector
Cambridgeshire County Council,11-Nov-16,22032888-14349307,-926.11,Making Space#1,Care Establishment,3 - Operations - Countywide Services,Countywide PD Service - Care,Nursing Independent Sector
Cambridgeshire County Council,11-Nov-16,22032890-14349309,-926.11,Making Space#1,Care Establishment,3 - Operations - Countywide Services,Countywide PD Service - Care,Nursing Independent Sector
Cambridgeshire County Council,11-Nov-16,22032893-14349312,-926.11,Making Space#1,Care Establishment,3 - Operations - Countywide Services,Countywide PD Service - Care,Nursing Independent Sector
Cambridgeshire County Council,11-Nov-16,22032894-14349313,-926.11,Making Space#1,Care Establishment,3 - Operations - Countywide Services,Countywide PD Service - Care,Nursing Independent Sector
Cambridgeshire County Council,11-Nov-16,22032895-14349314,-926.11,Making Space#1,Care Establishment,3 - Operations - Countywide Services,Countywide PD Service - Care,Nursing Independent Sector
Cambridgeshire County Council,11-Nov-16,21967839-14349317,-926.11,Making Space#1,Care Establishment,3 - Operations - Countywide Services,Countywide PD Service - Care,Nursing Independent Sector
Cambridgeshire County Council,11-Nov-16,21967843-14349318,-926.11,Making Space#1,Care Establishment,3 - Operations - Countywide Services,Countywide PD Service - Care,Nursing Independent Sector
Cambridgeshire County Council,11-Nov-16,21967845-14349319,-926.11,Making Space#1,Care Establishment,3 - Operations - Countywide Services,Countywide PD Service - Care,Nursing Independent Sector
Cambridgeshire County Council,11-Nov-16,21967846-14349320,-926.11,Making Space#1,Care Establishment,3 - Operations - Countywide Services,Countywide PD Service - Care,Nursing Independent Sector
Cambridgeshire County Council,11-Nov-16,21967847-14349321,-926.11,Making Space#1,Care Establishment,3 - Operations - Countywide Services,Countywide PD Service - Care,Nursing Independent Sector
Cambridgeshire County Council,11-Nov-16,21967855-14349327,-926.11,Making Space#1,Care Establishment,3 - Operations - Countywide Services,Countywide PD Service - Care,Nursing Independent Sector
Cambridgeshire County Council,11-Nov-16,21967856-14349328,-926.11,Making Space#1,Care Establishment,3 - Operations - Countywide Services,Countywide PD Service - Care,Nursing Independent Sector
Cambridgeshire County Council,11-Nov-16,21967867-14349335,-926.11,Making Space#1,Care Establishment,3 - Operations - Countywide Services,Countywide PD Service - Care,Nursing Independent Sector
Cambridgeshire County Council,11-Nov-16,21967868-14349336,-926.11,Making Space#1,Care Establishment,3 - Operations - Countywide Services,Countywide PD Service - Care,Nursing Independent Sector
Cambridgeshire County Council,11-Nov-16,21967869-14349337,-926.11,Making Space#1,Care Establishment,3 - Operations - Countywide Services,Countywide PD Service - Care,Nursing Independent Sector
Cambridgeshire County Council,11-Nov-16,21967870-14349338,-926.11,Making Space#1,Care Establishment,3 - Operations - Countywide Services,Countywide PD Service - Care,Nursing Independent Sector
Cambridgeshire County Council,11-Nov-16,21967871-14349339,-926.11,Making Space#1,Care Establishment,3 - Operations - Countywide Services,Countywide PD Service - Care,Nursing Independent Sector
Cambridgeshire County Council,11-Nov-16,21967877-14349343,-926.11,Making Space#1,Care Establishment,3 - Operations - Countywide Services,Countywide PD Service - Care,Nursing Independent Sector
Cambridgeshire County Council,11-Nov-16,21967879-14349345,-926.11,Making Space#1,Care Establishment,3 - Operations - Countywide Services,Countywide PD Service - Care,Nursing Independent Sector
Cambridgeshire County Council,11-Nov-16,21967881-14349347,-926.11,Making Space#1,Care Establishment,3 - Operations - Countywide Services,Countywide PD Service - Care,Nursing Independent Sector
Cambridgeshire County Council,11-Nov-16,21967882-14349348,-926.11,Making Space#1,Care Establishment,3 - Operations - Countywide Services,Countywide PD Service - Care,Nursing Independent Sector
Cambridgeshire County Council,11-Nov-16,21967884-14349350,-926.11,Making Space#1,Care Establishment,3 - Operations - Countywide Services,Countywide PD Service - Care,Nursing Independent Sector
Cambridgeshire County Council,11-Nov-16,21967885-14349351,-926.11,Making Space#1,Care Establishment,3 - Operations - Countywide Services,Countywide PD Service - Care,Nursing Independent Sector
Cambridgeshire County Council,11-Nov-16,21967888-14349353,-926.11,Making Space#1,Care Establishment,3 - Operations - Countywide Services,Countywide PD Service - Care,Nursing Independent Sector
Cambridgeshire County Council,11-Nov-16,21967889-14349354,-926.11,Making Space#1,Care Establishment,3 - Operations - Countywide Services,Countywide PD Service - Care,Nursing Independent Sector
Cambridgeshire County Council,11-Nov-16,21967892-14349356,-926.11,Making Space#1,Care Establishment,3 - Operations - Countywide Services,Countywide PD Service - Care,Nursing Independent Sector
Cambridgeshire County Council,11-Nov-16,21967893-14349357,-926.11,Making Space#1,Care Establishment,3 - Operations - Countywide Services,Countywide PD Service - Care,Nursing Independent Sector
Cambridgeshire County Council,11-Nov-16,21967894-14349358,-926.11,Making Space#1,Care Establishment,3 - Operations - Countywide Services,Countywide PD Service - Care,Nursing Independent Sector
Cambridgeshire County Council,11-Nov-16,21967897-14349360,-926.11,Making Space#1,Care Establishment,3 - Operations - Countywide Services,Countywide PD Service - Care,Nursing Independent Sector
Cambridgeshire County Council,11-Nov-16,21967905-14349365,-926.11,Making Space#1,Care Establishment,3 - Operations - Countywide Services,Countywide PD Service - Care,Nursing Independent Sector
Cambridgeshire County Council,11-Nov-16,21967918-14349372,-926.11,Making Space#1,Care Establishment,3 - Operations - Countywide Services,Countywide PD Service - Care,Nursing Independent Sector
Cambridgeshire County Council,11-Nov-16,21967919-14349373,-926.11,Making Space#1,Care Establishment,3 - Operations - Countywide Services,Countywide PD Service - Care,Nursing Independent Sector
Cambridgeshire County Council,11-Nov-16,21967925-14349377,-926.11,Making Space#1,Care Establishment,3 - Operations - Countywide Services,Countywide PD Service - Care,Nursing Independent Sector
Cambridgeshire County Council,11-Nov-16,21967927-14349378,-926.11,Making Space#1,Care Establishment,3 - Operations - Countywide Services,Countywide PD Service - Care,Nursing Independent Sector
Cambridgeshire County Council,11-Nov-16,21967929-14349379,-926.11,Making Space#1,Care Establishment,3 - Operations - Countywide Services,Countywide PD Service - Care,Nursing Independent Sector
Cambridgeshire County Council,11-Nov-16,21967931-14349381,-926.11,Making Space#1,Care Establishment,3 - Operations - Countywide Services,Countywide PD Service - Care,Nursing Independent Sector
Cambridgeshire County Council,11-Nov-16,21967932-14349382,-926.11,Making Space#1,Care Establishment,3 - Operations - Countywide Services,Countywide PD Service - Care,Nursing Independent Sector
Cambridgeshire County Council,24-Nov-16,22090596-14422039,-926.11,Making Space#1,Care Establishment,3 - Operations - Countywide Services,Countywide PD Service - Care,Nursing Independent Sector
Cambridgeshire County Council,24-Nov-16,22090598-14422041,-926.11,Making Space#1,Care Establishment,3 - Operations - Countywide Services,Countywide PD Service - Care,Nursing Independent Sector
Cambridgeshire County Council,24-Nov-16,22090599-14422042,-926.11,Making Space#1,Care Establishment,3 - Operations - Countywide Services,Countywide PD Service - Care,Nursing Independent Sector
Cambridgeshire County Council,24-Nov-16,22090600-14422043,-926.11,Making Space#1,Care Establishment,3 - Operations - Countywide Services,Countywide PD Service - Care,Nursing Independent Sector
Cambridgeshire County Council,24-Nov-16,22090603-14422046,-926.11,Making Space#1,Care Establishment,3 - Operations - Countywide Services,Countywide PD Service - Care,Nursing Independent Sector
Cambridgeshire County Council,24-Nov-16,22090609-14422052,-926.11,Making Space#1,Care Establishment,3 - Operations - Countywide Services,Countywide PD Service - Care,Nursing Independent Sector
Cambridgeshire County Council,24-Nov-16,22090610-14422053,-926.11,Making Space#1,Care Establishment,3 - Operations - Countywide Services,Countywide PD Service - Care,Nursing Independent Sector
Cambridgeshire County Council,24-Nov-16,22090612-14422055,-926.11,Making Space#1,Care Establishment,3 - Operations - Countywide Services,Countywide PD Service - Care,Nursing Independent Sector
Cambridgeshire County Council,24-Nov-16,22090613-14422056,-926.11,Making Space#1,Care Establishment,3 - Operations - Countywide Services,Countywide PD Service - Care,Nursing Independent Sector
Cambridgeshire County Council,24-Nov-16,22090614-14422057,-926.11,Making Space#1,Care Establishment,3 - Operations - Countywide Services,Countywide PD Service - Care,Nursing Independent Sector
Cambridgeshire County Council,24-Nov-16,22090615-14422058,-926.11,Making Space#1,Care Establishment,3 - Operations - Countywide Services,Countywide PD Service - Care,Nursing Independent Sector
Cambridgeshire County Council,24-Nov-16,22090616-14422059,-926.11,Making Space#1,Care Establishment,3 - Operations - Countywide Services,Countywide PD Service - Care,Nursing Independent Sector
Cambridgeshire County Council,24-Nov-16,22090623-14422066,-926.11,Making Space#1,Care Establishment,3 - Operations - Countywide Services,Countywide PD Service - Care,Nursing Independent Sector
Cambridgeshire County Council,24-Nov-16,22090625-14422068,-926.11,Making Space#1,Care Establishment,3 - Operations - Countywide Services,Countywide PD Service - Care,Nursing Independent Sector
Cambridgeshire County Council,24-Nov-16,22090627-14422070,-926.11,Making Space#1,Care Establishment,3 - Operations - Countywide Services,Countywide PD Service - Care,Nursing Independent Sector
Cambridgeshire County Council,24-Nov-16,22090628-14422071,-926.11,Making Space#1,Care Establishment,3 - Operations - Countywide Services,Countywide PD Service - Care,Nursing Independent Sector
Cambridgeshire County Council,24-Nov-16,22090638-14422081,-926.11,Making Space#1,Care Establishment,3 - Operations - Countywide Services,Countywide PD Service - Care,Nursing Independent Sector
Cambridgeshire County Council,24-Nov-16,22090642-14422085,-926.11,Making Space#1,Care Establishment,3 - Operations - Countywide Services,Countywide PD Service - Care,Nursing Independent Sector
Cambridgeshire County Council,24-Nov-16,22090645-14422088,-926.11,Making Space#1,Care Establishment,3 - Operations - Countywide Services,Countywide PD Service - Care,Nursing Independent Sector
Cambridgeshire County Council,24-Nov-16,22090646-14422089,-926.11,Making Space#1,Care Establishment,3 - Operations - Countywide Services,Countywide PD Service - Care,Nursing Independent Sector
Cambridgeshire County Council,24-Nov-16,22090649-14422092,-926.11,Making Space#1,Care Establishment,3 - Operations - Countywide Services,Countywide PD Service - Care,Nursing Independent Sector
Cambridgeshire County Council,24-Nov-16,22090651-14422094,-926.11,Making Space#1,Care Establishment,3 - Operations - Countywide Services,Countywide PD Service - Care,Nursing Independent Sector
Cambridgeshire County Council,24-Nov-16,22090653-14422096,-926.11,Making Space#1,Care Establishment,3 - Operations - Countywide Services,Countywide PD Service - Care,Nursing Independent Sector
Cambridgeshire County Council,24-Nov-16,22090654-14422097,-926.11,Making Space#1,Care Establishment,3 - Operations - Countywide Services,Countywide PD Service - Care,Nursing Independent Sector
Cambridgeshire County Council,24-Nov-16,22090655-14422098,-926.11,Making Space#1,Care Establishment,3 - Operations - Countywide Services,Countywide PD Service - Care,Nursing Independent Sector
Cambridgeshire County Council,24-Nov-16,22090656-14422099,-926.11,Making Space#1,Care Establishment,3 - Operations - Countywide Services,Countywide PD Service - Care,Nursing Independent Sector
Cambridgeshire County Council,24-Nov-16,22090657-14422100,-926.11,Making Space#1,Care Establishment,3 - Operations - Countywide Services,Countywide PD Service - Care,Nursing Independent Sector
Cambridgeshire County Council,24-Nov-16,22090659-14422102,-926.11,Making Space#1,Care Establishment,3 - Operations - Countywide Services,Countywide PD Service - Care,Nursing Independent Sector
Cambridgeshire County Council,24-Nov-16,22090660-14422103,-926.11,Making Space#1,Care Establishment,3 - Operations - Countywide Services,Countywide PD Service - Care,Nursing Independent Sector
Cambridgeshire County Council,24-Nov-16,22090661-14422104,-926.11,Making Space#1,Care Establishment,3 - Operations - Countywide Services,Countywide PD Service - Care,Nursing Independent Sector
Cambridgeshire County Council,24-Nov-16,22090662-14422105,-926.11,Making Space#1,Care Establishment,3 - Operations - Countywide Services,Countywide PD Service - Care,Nursing Independent Sector
Cambridgeshire County Council,24-Nov-16,22090663-14422106,-926.11,Making Space#1,Care Establishment,3 - Operations - Countywide Services,Countywide PD Service - Care,Nursing Independent Sector
Cambridgeshire County Council,24-Nov-16,22071892-14422119,-926.11,Making Space#1,Care Establishment,3 - Operations - Countywide Services,Countywide PD Service - Care,Nursing Independent Sector
Cambridgeshire County Council,24-Nov-16,22071894-14422121,-926.11,Making Space#1,Care Establishment,3 - Operations - Countywide Services,Countywide PD Service - Care,Nursing Independent Sector
Cambridgeshire County Council,24-Nov-16,22071895-14422122,-926.11,Making Space#1,Care Establishment,3 - Operations - Countywide Services,Countywide PD Service - Care,Nursing Independent Sector
Cambridgeshire County Council,24-Nov-16,22071900-14422127,-926.11,Making Space#1,Care Establishment,3 - Operations - Countywide Services,Countywide PD Service - Care,Nursing Independent Sector
Cambridgeshire County Council,24-Nov-16,22071902-14422129,-926.11,Making Space#1,Care Establishment,3 - Operations - Countywide Services,Countywide PD Service - Care,Nursing Independent Sector
Cambridgeshire County Council,24-Nov-16,22071904-14422131,-926.11,Making Space#1,Care Establishment,3 - Operations - Countywide Services,Countywide PD Service - Care,Nursing Independent Sector
Cambridgeshire County Council,24-Nov-16,22071906-14422133,-926.11,Making Space#1,Care Establishment,3 - Operations - Countywide Services,Countywide PD Service - Care,Nursing Independent Sector
Cambridgeshire County Council,24-Nov-16,22071907-14422134,-926.11,Making Space#1,Care Establishment,3 - Operations - Countywide Services,Countywide PD Service - Care,Nursing Independent Sector
Cambridgeshire County Council,24-Nov-16,22071910-14422137,-926.11,Making Space#1,Care Establishment,3 - Operations - Countywide Services,Countywide PD Service - Care,Nursing Independent Sector
Cambridgeshire County Council,24-Nov-16,22071911-14422138,-926.11,Making Space#1,Care Establishment,3 - Operations - Countywide Services,Countywide PD Service - Care,Nursing Independent Sector
Cambridgeshire County Council,24-Nov-16,22071914-14422141,-926.11,Making Space#1,Care Establishment,3 - Operations - Countywide Services,Countywide PD Service - Care,Nursing Independent Sector
Cambridgeshire County Council,24-Nov-16,22071915-14422142,-926.11,Making Space#1,Care Establishment,3 - Operations - Countywide Services,Countywide PD Service - Care,Nursing Independent Sector
Cambridgeshire County Council,24-Nov-16,22071916-14422143,-926.11,Making Space#1,Care Establishment,3 - Operations - Countywide Services,Countywide PD Service - Care,Nursing Independent Sector
Cambridgeshire County Council,24-Nov-16,22071918-14422145,-926.11,Making Space#1,Care Establishment,3 - Operations - Countywide Services,Countywide PD Service - Care,Nursing Independent Sector
Cambridgeshire County Council,24-Nov-16,22071919-14422146,-926.11,Making Space#1,Care Establishment,3 - Operations - Countywide Services,Countywide PD Service - Care,Nursing Independent Sector
Cambridgeshire County Council,24-Nov-16,22071922-14422149,-926.11,Making Space#1,Care Establishment,3 - Operations - Countywide Services,Countywide PD Service - Care,Nursing Independent Sector
Cambridgeshire County Council,24-Nov-16,22071925-14422152,-926.11,Making Space#1,Care Establishment,3 - Operations - Countywide Services,Countywide PD Service - Care,Nursing Independent Sector
Cambridgeshire County Council,24-Nov-16,22071926-14422153,-926.11,Making Space#1,Care Establishment,3 - Operations - Countywide Services,Countywide PD Service - Care,Nursing Independent Sector
Cambridgeshire County Council,24-Nov-16,22071928-14422155,-926.11,Making Space#1,Care Establishment,3 - Operations - Countywide Services,Countywide PD Service - Care,Nursing Independent Sector
Cambridgeshire County Council,24-Nov-16,22071930-14422157,-926.11,Making Space#1,Care Establishment,3 - Operations - Countywide Services,Countywide PD Service - Care,Nursing Independent Sector
Cambridgeshire County Council,24-Nov-16,22071932-14422159,-926.11,Making Space#1,Care Establishment,3 - Operations - Countywide Services,Countywide PD Service - Care,Nursing Independent Sector
Cambridgeshire County Council,24-Nov-16,22071933-14422160,-926.11,Making Space#1,Care Establishment,3 - Operations - Countywide Services,Countywide PD Service - Care,Nursing Independent Sector
Cambridgeshire County Council,24-Nov-16,22071934-14422161,-926.11,Making Space#1,Care Establishment,3 - Operations - Countywide Services,Countywide PD Service - Care,Nursing Independent Sector
Cambridgeshire County Council,24-Nov-16,22071937-14422164,-926.11,Making Space#1,Care Establishment,3 - Operations - Countywide Services,Countywide PD Service - Care,Nursing Independent Sector
Cambridgeshire County Council,24-Nov-16,22071939-14422166,-926.11,Making Space#1,Care Establishment,3 - Operations - Countywide Services,Countywide PD Service - Care,Nursing Independent Sector
Cambridgeshire County Council,24-Nov-16,22071940-14422167,-926.11,Making Space#1,Care Establishment,3 - Operations - Countywide Services,Countywide PD Service - Care,Nursing Independent Sector
Cambridgeshire County Council,24-Nov-16,22071945-14422172,-926.11,Making Space#1,Care Establishment,3 - Operations - Countywide Services,Countywide PD Service - Care,Nursing Independent Sector
Cambridgeshire County Council,24-Nov-16,22071948-14422175,-926.11,Making Space#1,Care Establishment,3 - Operations - Countywide Services,Countywide PD Service - Care,Nursing Independent Sector
Cambridgeshire County Council,24-Nov-16,22071949-14422176,-926.11,Making Space#1,Care Establishment,3 - Operations - Countywide Services,Countywide PD Service - Care,Nursing Independent Sector
Cambridgeshire County Council,24-Nov-16,22071950-14422177,-926.11,Making Space#1,Care Establishment,3 - Operations - Countywide Services,Countywide PD Service - Care,Nursing Independent Sector
Cambridgeshire County Council,24-Nov-16,22071952-14422179,-926.11,Making Space#1,Care Establishment,3 - Operations - Countywide Services,Countywide PD Service - Care,Nursing Independent Sector
Cambridgeshire County Council,24-Nov-16,22071954-14422181,-926.11,Making Space#1,Care Establishment,3 - Operations - Countywide Services,Countywide PD Service - Care,Nursing Independent Sector
Cambridgeshire County Council,08-Nov-16,21973845-14325866,-910,Hinchingbrooke Healthcare Nhs Trust#1,Trust (Other),2 - Commissioning - Older people Pool,CITY-OP (Non-Pool),Other Hired Contract Services
Cambridgeshire County Council,08-Nov-16,21972939-14325857,-900,Hinchingbrooke Healthcare Nhs Trust#1,Trust (Other),2 - Commissioning - Older people Pool,CITY-OP (Non-Pool),Other Hired Contract Services
Cambridgeshire County Council,11-Nov-16,21915428-14352379,-900,Hales Group Limited,Trade Supplier,2 - Commissioning - Older people Pool,Hunts O P  Team,Day and Domicillary Care Independent Sector
Cambridgeshire County Council,24-Nov-16,22093038-14423257,-894.25,Woodlands Care Centre,Care Establishment,2 - Commissioning - Older people Pool,Older People Mental Health City & South,Nursing Independent Sector
Cambridgeshire County Council,24-Nov-16,22093039-14423258,-894.25,Woodlands Care Centre,Care Establishment,2 - Commissioning - Older people Pool,Older People Mental Health City & South,Nursing Independent Sector
Cambridgeshire County Council,24-Nov-16,22093048-14423259,-894.25,Woodlands Care Centre,Care Establishment,2 - Commissioning - Older people Pool,Older People Mental Health City & South,Nursing Independent Sector
Cambridgeshire County Council,24-Nov-16,22093056-14423260,-894.25,Woodlands Care Centre,Care Establishment,2 - Commissioning - Older people Pool,Older People Mental Health City & South,Nursing Independent Sector
Cambridgeshire County Council,24-Nov-16,22093031-14423261,-894.25,Woodlands Care Centre,Care Establishment,2 - Commissioning - Older people Pool,Older People Mental Health City & South,Nursing Independent Sector
Cambridgeshire County Council,24-Nov-16,22064543-14423217,-877.03,Caretech Community Services,Care Establishment,2 - Operations - Learning Disability,LDP Huntingdonshire Locality - Care,Supported Living
Cambridgeshire County Council,11-Nov-16,22037211-14353774,-872.75,Redacted Personal Data,Individual,3 - Operations - Countywide Services,Countywide PD Service - Care,Direct Payments - Social Services
Cambridgeshire County Council,11-Nov-16,21884531-14355000,-868.76,Renton Court (Voyage),Care Establishment,2 - Operations - Learning Disability,LDP Huntingdonshire Locality - Care,Supported Living
Cambridgeshire County Council,11-Nov-16,21884533-14355002,-868.76,Renton Court (Voyage),Care Establishment,2 - Operations - Learning Disability,LDP Huntingdonshire Locality - Care,Supported Living
Cambridgeshire County Council,11-Nov-16,21884534-14355003,-868.76,Renton Court (Voyage),Care Establishment,2 - Operations - Learning Disability,LDP Huntingdonshire Locality - Care,Supported Living
Cambridgeshire County Council,11-Nov-16,21884536-14355005,-868.76,Renton Court (Voyage),Care Establishment,2 - Operations - Learning Disability,LDP Huntingdonshire Locality - Care,Supported Living
Cambridgeshire County Council,24-Nov-16,22092264-14422397,-858.3,Barchester Healthcare Homes Ltd,Care Establishment,2 - Commissioning - Older people Pool,Older People Mental Health City & South,Nursing Independent Sector
Cambridgeshire County Council,24-Nov-16,22092265-14422398,-858.3,Barchester Healthcare Homes Ltd,Care Establishment,2 - Commissioning - Older people Pool,Older People Mental Health City & South,Nursing Independent Sector
Cambridgeshire County Council,24-Nov-16,22092266-14422399,-858.3,Barchester Healthcare Homes Ltd,Care Establishment,2 - Commissioning - Older people Pool,Older People Mental Health City & South,Nursing Independent Sector
Cambridgeshire County Council,11-Nov-16,22036015-14347526,-856.8,Meadows Homecare Services,Care Establishment,2 - Commissioning - Older people Pool,Hunts O P  Team,Day and Domicillary Care Independent Sector
Cambridgeshire County Council,11-Nov-16,22036016-14347527,-856.8,Meadows Homecare Services,Care Establishment,2 - Commissioning - Older people Pool,Hunts O P  Team,Day and Domicillary Care Independent Sector
Cambridgeshire County Council,11-Nov-16,22036017-14347528,-856.8,Meadows Homecare Services,Care Establishment,2 - Commissioning - Older people Pool,Hunts O P  Team,Day and Domicillary Care Independent Sector
Cambridgeshire County Council,11-Nov-16,22036018-14347529,-856.8,Meadows Homecare Services,Care Establishment,2 - Commissioning - Older people Pool,Hunts O P  Team,Day and Domicillary Care Independent Sector
Cambridgeshire County Council,11-Nov-16,22032876-14349295,-793.81,Making Space#1,Care Establishment,3 - Operations - Countywide Services,Countywide PD Service - Care,Nursing Independent Sector
Cambridgeshire County Council,11-Nov-16,21967899-14349361,-793.81,Making Space#1,Care Establishment,3 - Operations - Countywide Services,Countywide PD Service - Care,Nursing Independent Sector
Cambridgeshire County Council,24-Nov-16,22090664-14422107,-793.81,Making Space#1,Care Establishment,3 - Operations - Countywide Services,Countywide PD Service - Care,Nursing Independent Sector
Cambridgeshire County Council,24-Nov-16,22071946-14422173,-793.81,Making Space#1,Care Establishment,3 - Operations - Countywide Services,Countywide PD Service - Care,Nursing Independent Sector
Cambridgeshire County Council,14-Nov-16,22045691-14375024,-792.12,Cambridge City Council,Other Public Bodies,E&P,YS - Camb City South - Motorbike projects,Casual hire of facilities
Cambridgeshire County Council,08-Nov-16,21973852-14325871,-780,Hinchingbrooke Healthcare Nhs Trust#1,Trust (Other),2 - Commissioning - Older people Pool,CITY-OP (Non-Pool),Other Hired Contract Services
Cambridgeshire County Council,11-Nov-16,21915431-14352382,-771.43,Hales Group Limited,Trade Supplier,2 - Commissioning - Older people Pool,Hunts O P  Team,Day and Domicillary Care Independent Sector
Cambridgeshire County Council,24-Nov-16,22089865-14424105,-757.37,Midfield Lodge Care Centre,Care Establishment,2 - Commissioning - Older people Pool,Older People - City & South,Nursing Independent Sector
Cambridgeshire County Council,24-Nov-16,22089866-14424106,-757.37,Midfield Lodge Care Centre,Care Establishment,2 - Commissioning - Older people Pool,Older People - City & South,Nursing Independent Sector
Cambridgeshire County Council,17-Nov-16,21916303-14398974,-750,Redacted Personal Data,Individual,3 - Operations - Countywide Services,Countywide PD Service - Care,Direct Payments - Social Services
Cambridgeshire County Council,17-Nov-16,21916304-14398975,-750,Redacted Personal Data,Individual,3 - Operations - Countywide Services,Countywide PD Service - Care,Direct Payments - Social Services
Cambridgeshire County Council,17-Nov-16,21916305-14398976,-750,Redacted Personal Data,Individual,3 - Operations - Countywide Services,Countywide PD Service - Care,Direct Payments - Social Services
Cambridgeshire County Council,17-Nov-16,21916230-14398902,-750,Redacted Personal Data,Individual,3 - Operations - Countywide Services,Countywide PD Service - Care,Direct Payments - Social Services
Cambridgeshire County Council,17-Nov-16,21916231-14398903,-750,Redacted Personal Data,Individual,3 - Operations - Countywide Services,Countywide PD Service - Care,Direct Payments - Social Services
Cambridgeshire County Council,17-Nov-16,21916232-14398904,-750,Redacted Personal Data,Individual,3 - Operations - Countywide Services,Countywide PD Service - Care,Direct Payments - Social Services
Cambridgeshire County Council,17-Nov-16,21916233-14398905,-750,Redacted Personal Data,Individual,3 - Operations - Countywide Services,Countywide PD Service - Care,Direct Payments - Social Services
Cambridgeshire County Council,17-Nov-16,21916234-14398906,-750,Redacted Personal Data,Individual,3 - Operations - Countywide Services,Countywide PD Service - Care,Direct Payments - Social Services
Cambridgeshire County Council,17-Nov-16,21916235-14398907,-750,Redacted Personal Data,Individual,3 - Operations - Countywide Services,Countywide PD Service - Care,Direct Payments - Social Services
Cambridgeshire County Council,17-Nov-16,21916236-14398908,-750,Redacted Personal Data,Individual,3 - Operations - Countywide Services,Countywide PD Service - Care,Direct Payments - Social Services
Cambridgeshire County Council,17-Nov-16,21916237-14398909,-750,Redacted Personal Data,Individual,3 - Operations - Countywide Services,Countywide PD Service - Care,Direct Payments - Social Services
Cambridgeshire County Council,17-Nov-16,21916238-14398910,-750,Redacted Personal Data,Individual,3 - Operations - Countywide Services,Countywide PD Service - Care,Direct Payments - Social Services
Cambridgeshire County Council,17-Nov-16,21916239-14398911,-750,Redacted Personal Data,Individual,3 - Operations - Countywide Services,Countywide PD Service - Care,Direct Payments - Social Services
Cambridgeshire County Council,17-Nov-16,21916240-14398912,-750,Redacted Personal Data,Individual,3 - Operations - Countywide Services,Countywide PD Service - Care,Direct Payments - Social Services
Cambridgeshire County Council,17-Nov-16,21916241-14398913,-750,Redacted Personal Data,Individual,3 - Operations - Countywide Services,Countywide PD Service - Care,Direct Payments - Social Services
Cambridgeshire County Council,17-Nov-16,21916242-14398914,-750,Redacted Personal Data,Individual,3 - Operations - Countywide Services,Countywide PD Service - Care,Direct Payments - Social Services
Cambridgeshire County Council,17-Nov-16,21916243-14398915,-750,Redacted Personal Data,Individual,3 - Operations - Countywide Services,Countywide PD Service - Care,Direct Payments - Social Services
Cambridgeshire County Council,17-Nov-16,21916244-14398916,-750,Redacted Personal Data,Individual,3 - Operations - Countywide Services,Countywide PD Service - Care,Direct Payments - Social Services
Cambridgeshire County Council,17-Nov-16,21916245-14398917,-750,Redacted Personal Data,Individual,3 - Operations - Countywide Services,Countywide PD Service - Care,Direct Payments - Social Services
Cambridgeshire County Council,17-Nov-16,21916246-14398918,-750,Redacted Personal Data,Individual,3 - Operations - Countywide Services,Countywide PD Service - Care,Direct Payments - Social Services
Cambridgeshire County Council,17-Nov-16,21916247-14398919,-750,Redacted Personal Data,Individual,3 - Operations - Countywide Services,Countywide PD Service - Care,Direct Payments - Social Services
Cambridgeshire County Council,17-Nov-16,21916248-14398920,-750,Redacted Personal Data,Individual,3 - Operations - Countywide Services,Countywide PD Service - Care,Direct Payments - Social Services
Cambridgeshire County Council,17-Nov-16,21916249-14398921,-750,Redacted Personal Data,Individual,3 - Operations - Countywide Services,Countywide PD Service - Care,Direct Payments - Social Services
Cambridgeshire County Council,17-Nov-16,21916250-14398922,-750,Redacted Personal Data,Individual,3 - Operations - Countywide Services,Countywide PD Service - Care,Direct Payments - Social Services
Cambridgeshire County Council,17-Nov-16,21916251-14398923,-750,Redacted Personal Data,Individual,3 - Operations - Countywide Services,Countywide PD Service - Care,Direct Payments - Social Services
Cambridgeshire County Council,17-Nov-16,21916252-14398924,-750,Redacted Personal Data,Individual,3 - Operations - Countywide Services,Countywide PD Service - Care,Direct Payments - Social Services
Cambridgeshire County Council,17-Nov-16,21916253-14398925,-750,Redacted Personal Data,Individual,3 - Operations - Countywide Services,Countywide PD Service - Care,Direct Payments - Social Services
Cambridgeshire County Council,17-Nov-16,21916254-14398926,-750,Redacted Personal Data,Individual,3 - Operations - Countywide Services,Countywide PD Service - Care,Direct Payments - Social Services
Cambridgeshire County Council,17-Nov-16,21916255-14398927,-750,Redacted Personal Data,Individual,3 - Operations - Countywide Services,Countywide PD Service - Care,Direct Payments - Social Services
Cambridgeshire County Council,17-Nov-16,21916256-14398928,-750,Redacted Personal Data,Individual,3 - Operations - Countywide Services,Countywide PD Service - Care,Direct Payments - Social Services
Cambridgeshire County Council,17-Nov-16,21916257-14398929,-750,Redacted Personal Data,Individual,3 - Operations - Countywide Services,Countywide PD Service - Care,Direct Payments - Social Services
Cambridgeshire County Council,17-Nov-16,21916258-14398930,-750,Redacted Personal Data,Individual,3 - Operations - Countywide Services,Countywide PD Service - Care,Direct Payments - Social Services
Cambridgeshire County Council,17-Nov-16,21916259-14398931,-750,Redacted Personal Data,Individual,3 - Operations - Countywide Services,Countywide PD Service - Care,Direct Payments - Social Services
Cambridgeshire County Council,17-Nov-16,21916260-14398932,-750,Redacted Personal Data,Individual,3 - Operations - Countywide Services,Countywide PD Service - Care,Direct Payments - Social Services
Cambridgeshire County Council,17-Nov-16,21916261-14398933,-750,Redacted Personal Data,Individual,3 - Operations - Countywide Services,Countywide PD Service - Care,Direct Payments - Social Services
Cambridgeshire County Council,17-Nov-16,21916263-14398935,-750,Redacted Personal Data,Individual,3 - Operations - Countywide Services,Countywide PD Service - Care,Direct Payments - Social Services
Cambridgeshire County Council,17-Nov-16,21916264-14398936,-750,Redacted Personal Data,Individual,3 - Operations - Countywide Services,Countywide PD Service - Care,Direct Payments - Social Services
Cambridgeshire County Council,17-Nov-16,21916265-14398937,-750,Redacted Personal Data,Individual,3 - Operations - Countywide Services,Countywide PD Service - Care,Direct Payments - Social Services
Cambridgeshire County Council,17-Nov-16,21916266-14398938,-750,Redacted Personal Data,Individual,3 - Operations - Countywide Services,Countywide PD Service - Care,Direct Payments - Social Services
Cambridgeshire County Council,17-Nov-16,21916267-14398939,-750,Redacted Personal Data,Individual,3 - Operations - Countywide Services,Countywide PD Service - Care,Direct Payments - Social Services
Cambridgeshire County Council,17-Nov-16,21916268-14398940,-750,Redacted Personal Data,Individual,3 - Operations - Countywide Services,Countywide PD Service - Care,Direct Payments - Social Services
Cambridgeshire County Council,17-Nov-16,21916269-14398941,-750,Redacted Personal Data,Individual,3 - Operations - Countywide Services,Countywide PD Service - Care,Direct Payments - Social Services
Cambridgeshire County Council,17-Nov-16,21916270-14398942,-750,Redacted Personal Data,Individual,3 - Operations - Countywide Services,Countywide PD Service - Care,Direct Payments - Social Services
Cambridgeshire County Council,17-Nov-16,21916271-14398943,-750,Redacted Personal Data,Individual,3 - Operations - Countywide Services,Countywide PD Service - Care,Direct Payments - Social Services
Cambridgeshire County Council,17-Nov-16,21916272-14398944,-750,Redacted Personal Data,Individual,3 - Operations - Countywide Services,Countywide PD Service - Care,Direct Payments - Social Services
Cambridgeshire County Council,17-Nov-16,21916273-14398945,-750,Redacted Personal Data,Individual,3 - Operations - Countywide Services,Countywide PD Service - Care,Direct Payments - Social Services
Cambridgeshire County Council,17-Nov-16,21916274-14398946,-750,Redacted Personal Data,Individual,3 - Operations - Countywide Services,Countywide PD Service - Care,Direct Payments - Social Services
Cambridgeshire County Council,17-Nov-16,21916275-14398947,-750,Redacted Personal Data,Individual,3 - Operations - Countywide Services,Countywide PD Service - Care,Direct Payments - Social Services
Cambridgeshire County Council,17-Nov-16,21916277-14398949,-750,Redacted Personal Data,Individual,3 - Operations - Countywide Services,Countywide PD Service - Care,Direct Payments - Social Services
Cambridgeshire County Council,17-Nov-16,21916278-14398950,-750,Redacted Personal Data,Individual,3 - Operations - Countywide Services,Countywide PD Service - Care,Direct Payments - Social Services
Cambridgeshire County Council,17-Nov-16,21916279-14398951,-750,Redacted Personal Data,Individual,3 - Operations - Countywide Services,Countywide PD Service - Care,Direct Payments - Social Services
Cambridgeshire County Council,17-Nov-16,21916280-14398952,-750,Redacted Personal Data,Individual,3 - Operations - Countywide Services,Countywide PD Service - Care,Direct Payments - Social Services
Cambridgeshire County Council,17-Nov-16,21916281-14398953,-750,Redacted Personal Data,Individual,3 - Operations - Countywide Services,Countywide PD Service - Care,Direct Payments - Social Services
Cambridgeshire County Council,17-Nov-16,21916282-14398954,-750,Redacted Personal Data,Individual,3 - Operations - Countywide Services,Countywide PD Service - Care,Direct Payments - Social Services
Cambridgeshire County Council,17-Nov-16,21916283-14398955,-750,Redacted Personal Data,Individual,3 - Operations - Countywide Services,Countywide PD Service - Care,Direct Payments - Social Services
Cambridgeshire County Council,17-Nov-16,21916284-14398956,-750,Redacted Personal Data,Individual,3 - Operations - Countywide Services,Countywide PD Service - Care,Direct Payments - Social Services
Cambridgeshire County Council,17-Nov-16,21916285-14398957,-750,Redacted Personal Data,Individual,3 - Operations - Countywide Services,Countywide PD Service - Care,Direct Payments - Social Services
Cambridgeshire County Council,17-Nov-16,21916287-14398958,-750,Redacted Personal Data,Individual,3 - Operations - Countywide Services,Countywide PD Service - Care,Direct Payments - Social Services
Cambridgeshire County Council,17-Nov-16,21916289-14398960,-750,Redacted Personal Data,Individual,3 - Operations - Countywide Services,Countywide PD Service - Care,Direct Payments - Social Services
Cambridgeshire County Council,17-Nov-16,21916290-14398961,-750,Redacted Personal Data,Individual,3 - Operations - Countywide Services,Countywide PD Service - Care,Direct Payments - Social Services
Cambridgeshire County Council,17-Nov-16,21916291-14398962,-750,Redacted Personal Data,Individual,3 - Operations - Countywide Services,Countywide PD Service - Care,Direct Payments - Social Services
Cambridgeshire County Council,17-Nov-16,21916292-14398963,-750,Redacted Personal Data,Individual,3 - Operations - Countywide Services,Countywide PD Service - Care,Direct Payments - Social Services
Cambridgeshire County Council,17-Nov-16,21916293-14398964,-750,Redacted Personal Data,Individual,3 - Operations - Countywide Services,Countywide PD Service - Care,Direct Payments - Social Services
Cambridgeshire County Council,17-Nov-16,21916294-14398965,-750,Redacted Personal Data,Individual,3 - Operations - Countywide Services,Countywide PD Service - Care,Direct Payments - Social Services
Cambridgeshire County Council,17-Nov-16,21916295-14398966,-750,Redacted Personal Data,Individual,3 - Operations - Countywide Services,Countywide PD Service - Care,Direct Payments - Social Services
Cambridgeshire County Council,17-Nov-16,21916296-14398967,-750,Redacted Personal Data,Individual,3 - Operations - Countywide Services,Countywide PD Service - Care,Direct Payments - Social Services
Cambridgeshire County Council,17-Nov-16,21916297-14398968,-750,Redacted Personal Data,Individual,3 - Operations - Countywide Services,Countywide PD Service - Care,Direct Payments - Social Services
Cambridgeshire County Council,17-Nov-16,21916298-14398969,-750,Redacted Personal Data,Individual,3 - Operations - Countywide Services,Countywide PD Service - Care,Direct Payments - Social Services
Cambridgeshire County Council,17-Nov-16,21916299-14398970,-750,Redacted Personal Data,Individual,3 - Operations - Countywide Services,Countywide PD Service - Care,Direct Payments - Social Services
Cambridgeshire County Council,17-Nov-16,21916300-14398971,-750,Redacted Personal Data,Individual,3 - Operations - Countywide Services,Countywide PD Service - Care,Direct Payments - Social Services
Cambridgeshire County Council,17-Nov-16,21916301-14398972,-750,Redacted Personal Data,Individual,3 - Operations - Countywide Services,Countywide PD Service - Care,Direct Payments - Social Services
Cambridgeshire County Council,17-Nov-16,21916302-14398973,-750,Redacted Personal Data,Individual,3 - Operations - Countywide Services,Countywide PD Service - Care,Direct Payments - Social Services
Cambridgeshire County Council,24-Nov-16,22093946-14421490,-745.33,Cherry Hinton Nursing Home,Care Establishment,2 - Commissioning - Older people Pool,Older People - City & South,Nursing Independent Sector
Cambridgeshire County Council,24-Nov-16,22093947-14421491,-745.33,Cherry Hinton Nursing Home,Care Establishment,2 - Commissioning - Older people Pool,Older People - City & South,Nursing Independent Sector
Cambridgeshire County Council,11-Nov-16,21970167-14365713,-725.25,Hunters Healthcare (Hunters Down),Care Establishment,2 - Commissioning - Older people Pool,Older People Mental Health Hunts,Nursing Independent Sector
Cambridgeshire County Council,11-Nov-16,21970168-14365714,-725.25,Hunters Healthcare (Hunters Down),Care Establishment,2 - Commissioning - Older people Pool,Older People Mental Health Hunts,Nursing Independent Sector
Cambridgeshire County Council,11-Nov-16,21970169-14365715,-725.25,Hunters Healthcare (Hunters Down),Care Establishment,2 - Commissioning - Older people Pool,Older People Mental Health Hunts,Nursing Independent Sector
Cambridgeshire County Council,11-Nov-16,21970174-14365720,-725.25,Hunters Healthcare (Hunters Down),Care Establishment,2 - Commissioning - Older people Pool,Older People Mental Health Hunts,Nursing Independent Sector
Cambridgeshire County Council,11-Nov-16,21970180-14365726,-725.25,Hunters Healthcare (Hunters Down),Care Establishment,2 - Commissioning - Older people Pool,Older People Mental Health Hunts,Nursing Independent Sector
Cambridgeshire County Council,11-Nov-16,21970181-14365727,-725.25,Hunters Healthcare (Hunters Down),Care Establishment,2 - Commissioning - Older people Pool,Older People Mental Health Hunts,Nursing Independent Sector
Cambridgeshire County Council,11-Nov-16,21970186-14365732,-725.25,Hunters Healthcare (Hunters Down),Care Establishment,2 - Commissioning - Older people Pool,Older People Mental Health Hunts,Nursing Independent Sector
Cambridgeshire County Council,11-Nov-16,21970187-14365733,-725.25,Hunters Healthcare (Hunters Down),Care Establishment,2 - Commissioning - Older people Pool,Older People Mental Health Hunts,Nursing Independent Sector
Cambridgeshire County Council,11-Nov-16,21970190-14365736,-725.25,Hunters Healthcare (Hunters Down),Care Establishment,2 - Commissioning - Older people Pool,Older People Mental Health Hunts,Nursing Independent Sector
Cambridgeshire County Council,11-Nov-16,21970194-14365740,-725.25,Hunters Healthcare (Hunters Down),Care Establishment,2 - Commissioning - Older people Pool,Older People Mental Health Hunts,Nursing Independent Sector
Cambridgeshire County Council,17-Nov-16,22067015-14400364,-725.25,Hunters Healthcare (Hunters Down),Care Establishment,2 - Commissioning - Older people Pool,Older People - City & South,Nursing Independent Sector
Cambridgeshire County Council,17-Nov-16,22067016-14400365,-725.25,Hunters Healthcare (Hunters Down),Care Establishment,2 - Commissioning - Older people Pool,Older People - City & South,Nursing Independent Sector
Cambridgeshire County Council,17-Nov-16,22067017-14400366,-725.25,Hunters Healthcare (Hunters Down),Care Establishment,2 - Commissioning - Older people Pool,Older People - City & South,Nursing Independent Sector
Cambridgeshire County Council,17-Nov-16,22067018-14400367,-725.25,Hunters Healthcare (Hunters Down),Care Establishment,2 - Commissioning - Older people Pool,Older People - City & South,Nursing Independent Sector
Cambridgeshire County Council,17-Nov-16,22067019-14400368,-725.25,Hunters Healthcare (Hunters Down),Care Establishment,2 - Commissioning - Older people Pool,Older People - City & South,Nursing Independent Sector
Cambridgeshire County Council,17-Nov-16,22067020-14400369,-725.25,Hunters Healthcare (Hunters Down),Care Establishment,2 - Commissioning - Older people Pool,Older People - City & South,Nursing Independent Sector
Cambridgeshire County Council,17-Nov-16,22067021-14400370,-725.25,Hunters Healthcare (Hunters Down),Care Establishment,2 - Commissioning - Older people Pool,Older People - City & South,Nursing Independent Sector
Cambridgeshire County Council,17-Nov-16,22067022-14400371,-725.25,Hunters Healthcare (Hunters Down),Care Establishment,2 - Commissioning - Older people Pool,Older People - City & South,Nursing Independent Sector
Cambridgeshire County Council,17-Nov-16,22067023-14400372,-725.25,Hunters Healthcare (Hunters Down),Care Establishment,2 - Commissioning - Older people Pool,Older People - City & South,Nursing Independent Sector
Cambridgeshire County Council,17-Nov-16,22067025-14400374,-725.25,Hunters Healthcare (Hunters Down),Care Establishment,2 - Commissioning - Older people Pool,Older People - City & South,Nursing Independent Sector
Cambridgeshire County Council,17-Nov-16,22067026-14400375,-725.25,Hunters Healthcare (Hunters Down),Care Establishment,2 - Commissioning - Older people Pool,Older People - City & South,Nursing Independent Sector
Cambridgeshire County Council,24-Nov-16,22092293-14423624,-715.25,Hunters Healthcare (Hunters Down),Care Establishment,2 - Commissioning - Older people Pool,Older People - City & South,Nursing Independent Sector
Cambridgeshire County Council,09-Nov-16,22001880-14331921,-715,Nasa Cars,Trade Supplier,S&C,Home to School Transport - Special,Home to School - Post 16
Cambridgeshire County Council,11-Nov-16,21970176-14365722,-708.52,Hunters Healthcare (Hunters Down),Care Establishment,2 - Commissioning - Older people Pool,Older People Mental Health Hunts,Nursing Independent Sector
Cambridgeshire County Council,11-Nov-16,21970164-14365710,-705.81,Hunters Healthcare (Hunters Down),Care Establishment,2 - Commissioning - Older people Pool,Older People Mental Health Hunts,Nursing Independent Sector
Cambridgeshire County Council,11-Nov-16,21970165-14365711,-705.81,Hunters Healthcare (Hunters Down),Care Establishment,2 - Commissioning - Older people Pool,Older People Mental Health Hunts,Nursing Independent Sector
Cambridgeshire County Council,11-Nov-16,21970171-14365717,-705.81,Hunters Healthcare (Hunters Down),Care Establishment,2 - Commissioning - Older people Pool,Older People Mental Health Hunts,Nursing Independent Sector
Cambridgeshire County Council,11-Nov-16,21970173-14365719,-705.81,Hunters Healthcare (Hunters Down),Care Establishment,2 - Commissioning - Older people Pool,Older People Mental Health Hunts,Nursing Independent Sector
Cambridgeshire County Council,11-Nov-16,21970177-14365723,-705.81,Hunters Healthcare (Hunters Down),Care Establishment,2 - Commissioning - Older people Pool,Older People Mental Health Hunts,Nursing Independent Sector
Cambridgeshire County Council,11-Nov-16,21970178-14365724,-705.81,Hunters Healthcare (Hunters Down),Care Establishment,2 - Commissioning - Older people Pool,Older People Mental Health Hunts,Nursing Independent Sector
Cambridgeshire County Council,11-Nov-16,21970182-14365728,-705.81,Hunters Healthcare (Hunters Down),Care Establishment,2 - Commissioning - Older people Pool,Older People Mental Health Hunts,Nursing Independent Sector
Cambridgeshire County Council,11-Nov-16,21970183-14365729,-705.81,Hunters Healthcare (Hunters Down),Care Establishment,2 - Commissioning - Older people Pool,Older People Mental Health Hunts,Nursing Independent Sector
Cambridgeshire County Council,11-Nov-16,21970185-14365731,-705.81,Hunters Healthcare (Hunters Down),Care Establishment,2 - Commissioning - Older people Pool,Older People Mental Health Hunts,Nursing Independent Sector
Cambridgeshire County Council,11-Nov-16,21970188-14365734,-705.81,Hunters Healthcare (Hunters Down),Care Establishment,2 - Commissioning - Older people Pool,Older People Mental Health Hunts,Nursing Independent Sector
Cambridgeshire County Council,11-Nov-16,21970189-14365735,-705.81,Hunters Healthcare (Hunters Down),Care Establishment,2 - Commissioning - Older people Pool,Older People Mental Health Hunts,Nursing Independent Sector
Cambridgeshire County Council,11-Nov-16,21970191-14365737,-705.81,Hunters Healthcare (Hunters Down),Care Establishment,2 - Commissioning - Older people Pool,Older People Mental Health Hunts,Nursing Independent Sector
Cambridgeshire County Council,11-Nov-16,21970192-14365738,-705.81,Hunters Healthcare (Hunters Down),Care Establishment,2 - Commissioning - Older people Pool,Older People Mental Health Hunts,Nursing Independent Sector
Cambridgeshire County Council,11-Nov-16,21970193-14365739,-705.81,Hunters Healthcare (Hunters Down),Care Establishment,2 - Commissioning - Older people Pool,Older People Mental Health Hunts,Nursing Independent Sector
Cambridgeshire County Council,03-Nov-16,21970914-14310667,-700,Abbey Healthcare (Huntingdon) Ltd,Care Establishment,2 - Commissioning - Older people Pool,Older People Mental Health Hunts,Nursing Independent Sector
Cambridgeshire County Council,03-Nov-16,21970916-14310669,-700,Abbey Healthcare (Huntingdon) Ltd,Care Establishment,2 - Commissioning - Older people Pool,Older People Mental Health Hunts,Nursing Independent Sector
Cambridgeshire County Council,03-Nov-16,21970917-14310670,-700,Abbey Healthcare (Huntingdon) Ltd,Care Establishment,2 - Commissioning - Older people Pool,Older People Mental Health Hunts,Nursing Independent Sector
Cambridgeshire County Council,03-Nov-16,21969604-14311641,-699.4,Granta Housing- 71 /73 Fen Road,Care Establishment,2 - Operations - Learning Disability,LDP City Locality - Care,Nursing Independent Sector
Cambridgeshire County Council,03-Nov-16,21970545-14310593,-675.84,Dell Residential Home,Care Establishment,2 - Commissioning - Older people Pool,East Cambs - O P Team,Residential Independent Sector
Cambridgeshire County Council,03-Nov-16,21970477-14310595,-675.84,Dell Residential Home,Care Establishment,2 - Commissioning - Older people Pool,East Cambs - O P Team,Residential Independent Sector
Cambridgeshire County Council,03-Nov-16,21970481-14310599,-675.84,Dell Residential Home,Care Establishment,2 - Commissioning - Older people Pool,East Cambs - O P Team,Residential Independent Sector
Cambridgeshire County Council,03-Nov-16,21970485-14310603,-675.84,Dell Residential Home,Care Establishment,2 - Commissioning - Older people Pool,East Cambs - O P Team,Residential Independent Sector
Cambridgeshire County Council,03-Nov-16,21970487-14310605,-675.84,Dell Residential Home,Care Establishment,2 - Commissioning - Older people Pool,East Cambs - O P Team,Residential Independent Sector
Cambridgeshire County Council,03-Nov-16,21970488-14310606,-675.84,Dell Residential Home,Care Establishment,2 - Commissioning - Older people Pool,East Cambs - O P Team,Residential Independent Sector
Cambridgeshire County Council,03-Nov-16,21970489-14310607,-675.84,Dell Residential Home,Care Establishment,2 - Commissioning - Older people Pool,East Cambs - O P Team,Residential Independent Sector
Cambridgeshire County Council,03-Nov-16,21970492-14310610,-675.84,Dell Residential Home,Care Establishment,2 - Commissioning - Older people Pool,East Cambs - O P Team,Residential Independent Sector
Cambridgeshire County Council,03-Nov-16,21970493-14310611,-675.84,Dell Residential Home,Care Establishment,2 - Commissioning - Older people Pool,East Cambs - O P Team,Residential Independent Sector
Cambridgeshire County Council,03-Nov-16,21970495-14310613,-675.84,Dell Residential Home,Care Establishment,2 - Commissioning - Older people Pool,East Cambs - O P Team,Residential Independent Sector
Cambridgeshire County Council,03-Nov-16,21970496-14310614,-675.84,Dell Residential Home,Care Establishment,2 - Commissioning - Older people Pool,East Cambs - O P Team,Residential Independent Sector
Cambridgeshire County Council,03-Nov-16,21970497-14310615,-675.84,Dell Residential Home,Care Establishment,2 - Commissioning - Older people Pool,East Cambs - O P Team,Residential Independent Sector
Cambridgeshire County Council,03-Nov-16,21970498-14310616,-675.84,Dell Residential Home,Care Establishment,2 - Commissioning - Older people Pool,East Cambs - O P Team,Residential Independent Sector
Cambridgeshire County Council,03-Nov-16,21970499-14310617,-675.84,Dell Residential Home,Care Establishment,2 - Commissioning - Older people Pool,East Cambs - O P Team,Residential Independent Sector
Cambridgeshire County Council,03-Nov-16,21970501-14310619,-675.84,Dell Residential Home,Care Establishment,2 - Commissioning - Older people Pool,East Cambs - O P Team,Residential Independent Sector
Cambridgeshire County Council,03-Nov-16,21970503-14310621,-675.84,Dell Residential Home,Care Establishment,2 - Commissioning - Older people Pool,East Cambs - O P Team,Residential Independent Sector
Cambridgeshire County Council,03-Nov-16,21970505-14310623,-675.84,Dell Residential Home,Care Establishment,2 - Commissioning - Older people Pool,East Cambs - O P Team,Residential Independent Sector
Cambridgeshire County Council,03-Nov-16,21970506-14310624,-675.84,Dell Residential Home,Care Establishment,2 - Commissioning - Older people Pool,East Cambs - O P Team,Residential Independent Sector
Cambridgeshire County Council,03-Nov-16,21970507-14310625,-675.84,Dell Residential Home,Care Establishment,2 - Commissioning - Older people Pool,East Cambs - O P Team,Residential Independent Sector
Cambridgeshire County Council,03-Nov-16,21970509-14310627,-675.84,Dell Residential Home,Care Establishment,2 - Commissioning - Older people Pool,East Cambs - O P Team,Residential Independent Sector
Cambridgeshire County Council,03-Nov-16,21970511-14310629,-675.84,Dell Residential Home,Care Establishment,2 - Commissioning - Older people Pool,East Cambs - O P Team,Residential Independent Sector
Cambridgeshire County Council,03-Nov-16,21970513-14310631,-675.84,Dell Residential Home,Care Establishment,2 - Commissioning - Older people Pool,East Cambs - O P Team,Residential Independent Sector
Cambridgeshire County Council,03-Nov-16,21970514-14310632,-675.84,Dell Residential Home,Care Establishment,2 - Commissioning - Older people Pool,East Cambs - O P Team,Residential Independent Sector
Cambridgeshire County Council,03-Nov-16,21970515-14310633,-675.84,Dell Residential Home,Care Establishment,2 - Commissioning - Older people Pool,East Cambs - O P Team,Residential Independent Sector
Cambridgeshire County Council,03-Nov-16,21970519-14310637,-675.84,Dell Residential Home,Care Establishment,2 - Commissioning - Older people Pool,East Cambs - O P Team,Residential Independent Sector
Cambridgeshire County Council,03-Nov-16,21970522-14310640,-675.84,Dell Residential Home,Care Establishment,2 - Commissioning - Older people Pool,East Cambs - O P Team,Residential Independent Sector
Cambridgeshire County Council,03-Nov-16,21970524-14310642,-675.84,Dell Residential Home,Care Establishment,2 - Commissioning - Older people Pool,East Cambs - O P Team,Residential Independent Sector
Cambridgeshire County Council,03-Nov-16,21970529-14310577,-675.84,Dell Residential Home,Care Establishment,2 - Commissioning - Older people Pool,East Cambs - O P Team,Residential Independent Sector
Cambridgeshire County Council,03-Nov-16,21970532-14310580,-675.84,Dell Residential Home,Care Establishment,2 - Commissioning - Older people Pool,East Cambs - O P Team,Residential Independent Sector
Cambridgeshire County Council,03-Nov-16,21970533-14310581,-675.84,Dell Residential Home,Care Establishment,2 - Commissioning - Older people Pool,East Cambs - O P Team,Residential Independent Sector
Cambridgeshire County Council,03-Nov-16,21970535-14310583,-675.84,Dell Residential Home,Care Establishment,2 - Commissioning - Older people Pool,East Cambs - O P Team,Residential Independent Sector
Cambridgeshire County Council,03-Nov-16,21970536-14310584,-675.84,Dell Residential Home,Care Establishment,2 - Commissioning - Older people Pool,East Cambs - O P Team,Residential Independent Sector
Cambridgeshire County Council,03-Nov-16,21970540-14310588,-675.84,Dell Residential Home,Care Establishment,2 - Commissioning - Older people Pool,East Cambs - O P Team,Residential Independent Sector
Cambridgeshire County Council,17-Nov-16,22066858-14400378,-671,Hunters Healthcare (Hunters Down),Care Establishment,2 - Commissioning - Older people Pool,Hunts O P  Team,Nursing Independent Sector
Cambridgeshire County Council,17-Nov-16,22066859-14400379,-671,Hunters Healthcare (Hunters Down),Care Establishment,2 - Commissioning - Older people Pool,Hunts O P  Team,Nursing Independent Sector
Cambridgeshire County Council,17-Nov-16,22066860-14400380,-671,Hunters Healthcare (Hunters Down),Care Establishment,2 - Commissioning - Older people Pool,Hunts O P  Team,Nursing Independent Sector
Cambridgeshire County Council,17-Nov-16,22066861-14400381,-671,Hunters Healthcare (Hunters Down),Care Establishment,2 - Commissioning - Older people Pool,Hunts O P  Team,Nursing Independent Sector
Cambridgeshire County Council,17-Nov-16,22066862-14400382,-671,Hunters Healthcare (Hunters Down),Care Establishment,2 - Commissioning - Older people Pool,Hunts O P  Team,Nursing Independent Sector
Cambridgeshire County Council,17-Nov-16,22066863-14400383,-671,Hunters Healthcare (Hunters Down),Care Establishment,2 - Commissioning - Older people Pool,Hunts O P  Team,Nursing Independent Sector
Cambridgeshire County Council,17-Nov-16,22066864-14400384,-671,Hunters Healthcare (Hunters Down),Care Establishment,2 - Commissioning - Older people Pool,Hunts O P  Team,Nursing Independent Sector
Cambridgeshire County Council,17-Nov-16,22066865-14400385,-671,Hunters Healthcare (Hunters Down),Care Establishment,2 - Commissioning - Older people Pool,Hunts O P  Team,Nursing Independent Sector
Cambridgeshire County Council,17-Nov-16,22066866-14400386,-671,Hunters Healthcare (Hunters Down),Care Establishment,2 - Commissioning - Older people Pool,Hunts O P  Team,Nursing Independent Sector
Cambridgeshire County Council,17-Nov-16,22066867-14400387,-671,Hunters Healthcare (Hunters Down),Care Establishment,2 - Commissioning - Older people Pool,Hunts O P  Team,Nursing Independent Sector
Cambridgeshire County Council,17-Nov-16,22066868-14400388,-671,Hunters Healthcare (Hunters Down),Care Establishment,2 - Commissioning - Older people Pool,Hunts O P  Team,Nursing Independent Sector
Cambridgeshire County Council,17-Nov-16,22066869-14400389,-671,Hunters Healthcare (Hunters Down),Care Establishment,2 - Commissioning - Older people Pool,Hunts O P  Team,Nursing Independent Sector
Cambridgeshire County Council,11-Nov-16,21970204-14343470,-667.8,Dimensions (Uk) Ltd,Care Establishment,2 - Operations - Learning Disability,LDP Cambs City - Special Needs,Supported Living
Cambridgeshire County Council,11-Nov-16,21915970-14343319,-667.8,Dimensions (Uk) Ltd,Care Establishment,2 - Operations - Learning Disability,LDP Cambs City - Special Needs,Supported Living
Cambridgeshire County Council,11-Nov-16,21888273-14343333,-667.8,Dimensions (Uk) Ltd,Care Establishment,2 - Operations - Learning Disability,LDP Cambs City - Special Needs,Supported Living
Cambridgeshire County Council,11-Nov-16,22023714-14343355,-667.8,Dimensions (Uk) Ltd,Care Establishment,2 - Operations - Learning Disability,LDP Cambs City - Special Needs,Supported Living
Cambridgeshire County Council,24-Nov-16,22093171-14423622,-665.54,Hunters Healthcare (Hunters Down),Care Establishment,2 - Commissioning - Older people Pool,Hunts O P  Team,Nursing Independent Sector
Cambridgeshire County Council,17-Nov-16,21915315-14399960,-630,Redacted Personal Data,Individual,2 - Commissioning - Older people Pool,Hunts O P  Team,Residential Independent Sector
Cambridgeshire County Council,17-Nov-16,21915316-14399961,-630,Redacted Personal Data,Individual,2 - Commissioning - Older people Pool,Hunts O P  Team,Residential Independent Sector
Cambridgeshire County Council,17-Nov-16,21915317-14399962,-630,Redacted Personal Data,Individual,2 - Commissioning - Older people Pool,Hunts O P  Team,Residential Independent Sector
Cambridgeshire County Council,17-Nov-16,21915319-14399964,-630,Redacted Personal Data,Individual,2 - Commissioning - Older people Pool,Hunts O P  Team,Residential Independent Sector
Cambridgeshire County Council,17-Nov-16,21915320-14399965,-630,Redacted Personal Data,Individual,2 - Commissioning - Older people Pool,Hunts O P  Team,Residential Independent Sector
Cambridgeshire County Council,11-Nov-16,21886934-14347792,-627.01,The Edmund Trust,Care Establishment,2 - Operations - Learning Disability,LDP Cambs City - Special Needs,Supported Living
Cambridgeshire County Council,11-Nov-16,21887752-14347796,-627.01,The Edmund Trust,Care Establishment,2 - Operations - Learning Disability,LDP South Cambs - Special Needs,Supported Living
Cambridgeshire County Council,11-Nov-16,22023024-14347819,-627.01,The Edmund Trust,Care Establishment,2 - Operations - Learning Disability,LDP South Cambs - Special Needs,Supported Living
Cambridgeshire County Council,11-Nov-16,22028123-14347869,-627.01,The Edmund Trust,Care Establishment,2 - Operations - Learning Disability,LDP Cambs City - Special Needs,Supported Living
Cambridgeshire County Council,11-Nov-16,22028124-14347870,-627.01,The Edmund Trust,Care Establishment,2 - Operations - Learning Disability,LDP South Cambs - Special Needs,Supported Living
Cambridgeshire County Council,11-Nov-16,22028136-14347878,-627.01,The Edmund Trust,Care Establishment,2 - Operations - Learning Disability,LDP South Cambs - Special Needs,Supported Living
Cambridgeshire County Council,11-Nov-16,22028141-14347879,-627.01,The Edmund Trust,Care Establishment,2 - Operations - Learning Disability,LDP South Cambs - Special Needs,Supported Living
Cambridgeshire County Council,11-Nov-16,22028147-14347880,-627.01,The Edmund Trust,Care Establishment,2 - Operations - Learning Disability,LDP South Cambs - Special Needs,Supported Living
Cambridgeshire County Council,11-Nov-16,22028150-14347882,-627.01,The Edmund Trust,Care Establishment,2 - Operations - Learning Disability,LDP Cambs City - Special Needs,Supported Living
Cambridgeshire County Council,11-Nov-16,22028116-14347885,-627.01,The Edmund Trust,Care Establishment,2 - Operations - Learning Disability,LDP Cambs City - Special Needs,Supported Living
Cambridgeshire County Council,11-Nov-16,21969370-14347976,-627.01,The Edmund Trust,Care Establishment,2 - Operations - Learning Disability,LDP Cambs City - Special Needs,Supported Living
Cambridgeshire County Council,11-Nov-16,21969371-14347977,-627.01,The Edmund Trust,Care Establishment,2 - Operations - Learning Disability,LDP Cambs City - Special Needs,Supported Living
Cambridgeshire County Council,11-Nov-16,21969373-14347978,-627.01,The Edmund Trust,Care Establishment,2 - Operations - Learning Disability,LDP Cambs City - Special Needs,Supported Living
Cambridgeshire County Council,11-Nov-16,21969376-14347981,-627.01,The Edmund Trust,Care Establishment,2 - Operations - Learning Disability,LDP Cambs City - Special Needs,Supported Living
Cambridgeshire County Council,11-Nov-16,21969379-14347983,-627.01,The Edmund Trust,Care Establishment,2 - Operations - Learning Disability,LDP South Cambs - Special Needs,Supported Living
Cambridgeshire County Council,11-Nov-16,21969383-14347986,-627.01,The Edmund Trust,Care Establishment,2 - Operations - Learning Disability,LDP South Cambs - Special Needs,Supported Living
Cambridgeshire County Council,11-Nov-16,21969386-14347988,-627.01,The Edmund Trust,Care Establishment,2 - Operations - Learning Disability,LDP South Cambs - Special Needs,Supported Living
Cambridgeshire County Council,11-Nov-16,21969387-14347989,-627.01,The Edmund Trust,Care Establishment,2 - Operations - Learning Disability,LDP Cambs City - Special Needs,Supported Living
Cambridgeshire County Council,11-Nov-16,21914546-14347764,-627.01,The Edmund Trust,Care Establishment,2 - Operations - Learning Disability,LDP Cambs City - Special Needs,Supported Living
Cambridgeshire County Council,11-Nov-16,21914547-14347765,-627.01,The Edmund Trust,Care Establishment,2 - Operations - Learning Disability,LDP Cambs City - Special Needs,Supported Living
Cambridgeshire County Council,11-Nov-16,21914549-14347767,-627.01,The Edmund Trust,Care Establishment,2 - Operations - Learning Disability,LDP South Cambs - Special Needs,Supported Living
Cambridgeshire County Council,11-Nov-16,21914553-14347769,-627.01,The Edmund Trust,Care Establishment,2 - Operations - Learning Disability,LDP Cambs City - Special Needs,Supported Living
Cambridgeshire County Council,11-Nov-16,21914555-14347771,-627.01,The Edmund Trust,Care Establishment,2 - Operations - Learning Disability,LDP Cambs City - Special Needs,Supported Living
Cambridgeshire County Council,11-Nov-16,21914557-14347772,-627.01,The Edmund Trust,Care Establishment,2 - Operations - Learning Disability,LDP South Cambs - Special Needs,Supported Living
Cambridgeshire County Council,11-Nov-16,21914558-14347773,-627.01,The Edmund Trust,Care Establishment,2 - Operations - Learning Disability,LDP Cambs City - Special Needs,Supported Living
Cambridgeshire County Council,11-Nov-16,21914561-14347775,-627.01,The Edmund Trust,Care Establishment,2 - Operations - Learning Disability,LDP Cambs City - Special Needs,Supported Living
Cambridgeshire County Council,11-Nov-16,21886907-14347782,-627.01,The Edmund Trust,Care Establishment,2 - Operations - Learning Disability,LDP South Cambs - Special Needs,Supported Living
Cambridgeshire County Council,11-Nov-16,21886911-14347784,-627.01,The Edmund Trust,Care Establishment,2 - Operations - Learning Disability,LDP Cambs City - Special Needs,Supported Living
Cambridgeshire County Council,11-Nov-16,21886914-14347786,-627.01,The Edmund Trust,Care Establishment,2 - Operations - Learning Disability,LDP Cambs City - Special Needs,Supported Living
Cambridgeshire County Council,11-Nov-16,21886915-14347787,-627.01,The Edmund Trust,Care Establishment,2 - Operations - Learning Disability,LDP South Cambs - Special Needs,Supported Living
Cambridgeshire County Council,11-Nov-16,21886921-14347789,-627.01,The Edmund Trust,Care Establishment,2 - Operations - Learning Disability,LDP South Cambs - Special Needs,Supported Living
Cambridgeshire County Council,11-Nov-16,21886922-14347790,-627.01,The Edmund Trust,Care Establishment,2 - Operations - Learning Disability,LDP South Cambs - Special Needs,Supported Living
Cambridgeshire County Council,17-Nov-16,22064264-14394832,-627.01,The Edmund Trust,Care Establishment,2 - Operations - Learning Disability,LDP South Cambs - Special Needs,Supported Living
Cambridgeshire County Council,17-Nov-16,22064265-14394833,-627.01,The Edmund Trust,Care Establishment,2 - Operations - Learning Disability,LDP South Cambs - Special Needs,Supported Living
Cambridgeshire County Council,17-Nov-16,22064267-14394835,-627.01,The Edmund Trust,Care Establishment,2 - Operations - Learning Disability,LDP South Cambs - Special Needs,Supported Living
Cambridgeshire County Council,17-Nov-16,22064268-14394836,-627.01,The Edmund Trust,Care Establishment,2 - Operations - Learning Disability,LDP South Cambs - Special Needs,Supported Living
Cambridgeshire County Council,17-Nov-16,22064274-14394842,-627.01,The Edmund Trust,Care Establishment,2 - Operations - Learning Disability,LDP Cambs City - Special Needs,Supported Living
Cambridgeshire County Council,17-Nov-16,22064276-14394844,-627.01,The Edmund Trust,Care Establishment,2 - Operations - Learning Disability,LDP South Cambs - Special Needs,Supported Living
Cambridgeshire County Council,17-Nov-16,22064277-14394845,-627.01,The Edmund Trust,Care Establishment,2 - Operations - Learning Disability,LDP Cambs City - Special Needs,Supported Living
Cambridgeshire County Council,17-Nov-16,22064279-14394847,-627.01,The Edmund Trust,Care Establishment,2 - Operations - Learning Disability,LDP South Cambs - Special Needs,Supported Living
Cambridgeshire County Council,24-Nov-16,22094066-14421132,-627.01,The Edmund Trust,Care Establishment,2 - Operations - Learning Disability,LDP South Cambs - Special Needs,Supported Living
Cambridgeshire County Council,24-Nov-16,22094067-14421133,-627.01,The Edmund Trust,Care Establishment,2 - Operations - Learning Disability,LDP South Cambs - Special Needs,Supported Living
Cambridgeshire County Council,24-Nov-16,22094072-14421136,-627.01,The Edmund Trust,Care Establishment,2 - Operations - Learning Disability,LDP Cambs City - Special Needs,Supported Living
Cambridgeshire County Council,24-Nov-16,22094074-14421138,-627.01,The Edmund Trust,Care Establishment,2 - Operations - Learning Disability,LDP South Cambs - Special Needs,Supported Living
Cambridgeshire County Council,24-Nov-16,22094075-14421139,-627.01,The Edmund Trust,Care Establishment,2 - Operations - Learning Disability,LDP South Cambs - Special Needs,Supported Living
Cambridgeshire County Council,24-Nov-16,22094079-14421141,-627.01,The Edmund Trust,Care Establishment,2 - Operations - Learning Disability,LDP South Cambs - Special Needs,Supported Living
Cambridgeshire County Council,24-Nov-16,22094083-14421144,-627.01,The Edmund Trust,Care Establishment,2 - Operations - Learning Disability,LDP South Cambs - Special Needs,Supported Living
Cambridgeshire County Council,24-Nov-16,22094090-14421148,-627.01,The Edmund Trust,Care Establishment,2 - Operations - Learning Disability,LDP Cambs City - Special Needs,Supported Living
Cambridgeshire County Council,17-Nov-16,22067027-14400376,-621.64,Hunters Healthcare (Hunters Down),Care Establishment,2 - Commissioning - Older people Pool,Older People - City & South,Nursing Independent Sector
Cambridgeshire County Council,24-Nov-16,22092618-14422394,-621.33,Barchester Healthcare Homes Ltd,Care Establishment,2 - Commissioning - Older people Pool,East Cambs - O P Team,Nursing Independent Sector
Cambridgeshire County Council,24-Nov-16,22092619-14422395,-621.33,Barchester Healthcare Homes Ltd,Care Establishment,2 - Commissioning - Older people Pool,East Cambs - O P Team,Nursing Independent Sector
Cambridgeshire County Council,11-Nov-16,21970175-14365721,-621.23,Hunters Healthcare (Hunters Down),Care Establishment,2 - Commissioning - Older people Pool,Older People Mental Health Hunts,Nursing Independent Sector
Cambridgeshire County Council,24-Nov-16,22020970-14421520,-610.64,Cherry Hinton Nursing Home,Care Establishment,2 - Commissioning - Older people Pool,Older People - City & South,Nursing Independent Sector
Cambridgeshire County Council,24-Nov-16,22020983-14421521,-610.64,Cherry Hinton Nursing Home,Care Establishment,2 - Commissioning - Older people Pool,Older People - City & South,Nursing Independent Sector
Cambridgeshire County Council,24-Nov-16,22020990-14421522,-610.64,Cherry Hinton Nursing Home,Care Establishment,2 - Commissioning - Older people Pool,Older People - City & South,Nursing Independent Sector
Cambridgeshire County Council,24-Nov-16,22020999-14421524,-610.64,Cherry Hinton Nursing Home,Care Establishment,2 - Commissioning - Older people Pool,Older People - City & South,Nursing Independent Sector
Cambridgeshire County Council,24-Nov-16,22021003-14421525,-610.64,Cherry Hinton Nursing Home,Care Establishment,2 - Commissioning - Older people Pool,Older People - City & South,Nursing Independent Sector
Cambridgeshire County Council,11-Nov-16,21881448-14353121,-610.55,Fitzwilliam Healthcare Ltd,Care Establishment,2 - Commissioning - Older people Pool,Older People - City & South,Residential Independent Sector
Cambridgeshire County Council,11-Nov-16,21881452-14353125,-610.55,Fitzwilliam Healthcare Ltd,Care Establishment,2 - Commissioning - Older people Pool,Older People - City & South,Residential Independent Sector
Cambridgeshire County Council,11-Nov-16,21881454-14353127,-610.55,Fitzwilliam Healthcare Ltd,Care Establishment,2 - Commissioning - Older people Pool,Older People - City & South,Residential Independent Sector
Cambridgeshire County Council,11-Nov-16,22037492-14354263,-609.64,Mihomecare Ltd (The Care Agency),Care Establishment,3 - Operations - Countywide Services,Countywide PD Service - Care,Day and Domicillary Care Independent Sector
Cambridgeshire County Council,11-Nov-16,21970179-14365725,-604.98,Hunters Healthcare (Hunters Down),Care Establishment,2 - Commissioning - Older people Pool,Older People Mental Health Hunts,Nursing Independent Sector
Cambridgeshire County Council,11-Nov-16,21913748-14358949,-600,Home Meadow Ltd,Care Establishment,2 - Commissioning - Older people Pool,Older People - City & South,Residential Independent Sector
Cambridgeshire County Council,11-Nov-16,21913750-14358950,-600,Home Meadow Ltd,Care Establishment,2 - Commissioning - Older people Pool,Older People - City & South,Residential Independent Sector
Cambridgeshire County Council,11-Nov-16,21912742-14358951,-600,Home Meadow Ltd,Care Establishment,2 - Commissioning - Older people Pool,Older People - City & South,Residential Independent Sector
Cambridgeshire County Council,11-Nov-16,21912745-14358952,-600,Home Meadow Ltd,Care Establishment,2 - Commissioning - Older people Pool,Older People - City & South,Residential Independent Sector
Cambridgeshire County Council,11-Nov-16,21882745-14344690,-595.66,Aria Court,Care Establishment,2 - Commissioning - Older people Pool,Older People - Fenland,Nursing Independent Sector
Cambridgeshire County Council,11-Nov-16,21882738-14344686,-592.95,Aria Court,Care Establishment,2 - Commissioning - Older people Pool,Older People - Fenland,Nursing Independent Sector
Cambridgeshire County Council,11-Nov-16,21882740-14344687,-592.95,Aria Court,Care Establishment,2 - Commissioning - Older people Pool,Older People - Fenland,Nursing Independent Sector
Cambridgeshire County Council,11-Nov-16,21882741-14344688,-592.95,Aria Court,Care Establishment,2 - Commissioning - Older people Pool,Older People - Fenland,Nursing Independent Sector
Cambridgeshire County Council,11-Nov-16,21882742-14344689,-592.95,Aria Court,Care Establishment,2 - Commissioning - Older people Pool,Older People - Fenland,Nursing Independent Sector
Cambridgeshire County Council,11-Nov-16,21882746-14344691,-592.95,Aria Court,Care Establishment,2 - Commissioning - Older people Pool,Older People - Fenland,Nursing Independent Sector
Cambridgeshire County Council,11-Nov-16,21882747-14344692,-592.95,Aria Court,Care Establishment,2 - Commissioning - Older people Pool,Older People - Fenland,Nursing Independent Sector
Cambridgeshire County Council,11-Nov-16,21882748-14344693,-592.95,Aria Court,Care Establishment,2 - Commissioning - Older people Pool,Older People - Fenland,Nursing Independent Sector
Cambridgeshire County Council,11-Nov-16,21882749-14344694,-592.95,Aria Court,Care Establishment,2 - Commissioning - Older people Pool,Older People - Fenland,Nursing Independent Sector
Cambridgeshire County Council,11-Nov-16,21882750-14344695,-592.95,Aria Court,Care Establishment,2 - Commissioning - Older people Pool,Older People - Fenland,Nursing Independent Sector
Cambridgeshire County Council,11-Nov-16,21882751-14344696,-592.95,Aria Court,Care Establishment,2 - Commissioning - Older people Pool,Older People - Fenland,Nursing Independent Sector
Cambridgeshire County Council,11-Nov-16,21879730-14344709,-592.95,Aria Court,Care Establishment,2 - Commissioning - Older people Pool,Older People - Fenland,Nursing Independent Sector
Cambridgeshire County Council,11-Nov-16,21879733-14344710,-592.95,Aria Court,Care Establishment,2 - Commissioning - Older people Pool,Older People - Fenland,Nursing Independent Sector
Cambridgeshire County Council,11-Nov-16,21879734-14344711,-592.95,Aria Court,Care Establishment,2 - Commissioning - Older people Pool,Older People - Fenland,Nursing Independent Sector
Cambridgeshire County Council,11-Nov-16,21879736-14344713,-592.95,Aria Court,Care Establishment,2 - Commissioning - Older people Pool,Older People - Fenland,Nursing Independent Sector
Cambridgeshire County Council,11-Nov-16,21879742-14344717,-592.95,Aria Court,Care Establishment,2 - Commissioning - Older people Pool,Older People - Fenland,Nursing Independent Sector
Cambridgeshire County Council,11-Nov-16,21879744-14344719,-592.95,Aria Court,Care Establishment,2 - Commissioning - Older people Pool,Older People - Fenland,Nursing Independent Sector
Cambridgeshire County Council,11-Nov-16,21879746-14344721,-592.95,Aria Court,Care Establishment,2 - Commissioning - Older people Pool,Older People - Fenland,Nursing Independent Sector
